Department Family,Entity,Date,Expense Type,Expense Area,Supplier,Transaction Number,Amount,Vat No
Department of Health,CT Revenue Funds,03/12/2015,Additions - Assets Under Construction,Balance Sheet Suspense CES Loan Equipment,THERAPOSTURE LTD,129006,6075,
Department of Health,CT Revenue Funds,03/12/2015,Additions - Assets Under Construction,Balance Sheet Suspense CES Loan Equipment,THERAPOSTURE LTD,129006,1215,
Department of Health,CT Revenue Funds,03/12/2015,Additions - Assets Under Construction,Balance Sheet Suspense CES Loan Equipment,THERAPOSTURE LTD,200561,-6075,
Department of Health,CT Revenue Funds,03/12/2015,Additions - Assets Under Construction,Balance Sheet Suspense CES Loan Equipment,THERAPOSTURE LTD,200561,-1215,
Department of Health,CT Revenue Funds,03/12/2015,Additions - Assets Under Construction,Balance Sheet Suspense IT Server replacement,DELL COMPUTER CORPORATION,7402248204,1494.77,635 8235 28
Department of Health,CT Revenue Funds,03/12/2015,Additions - Assets Under Construction,Balance Sheet Suspense IT Server replacement,DELL COMPUTER CORPORATION,7402248204,298.95,635 8235 28
Department of Health,CT Revenue Funds,03/12/2015,Additions - Assets Under Construction,Balance Sheet Suspense IT Server replacement,DELL COMPUTER CORPORATION,7402249875,636.26,635 8235 28
Department of Health,CT Revenue Funds,03/12/2015,Additions - Assets Under Construction,Balance Sheet Suspense IT Server replacement,DELL COMPUTER CORPORATION,7402249875,3181.3,635 8235 28
Department of Health,CT Revenue Funds,03/12/2015,Agency Admin & Clerical,Single Point of Referral,PERTEMPS,P695398,375.75,844 2788 00
Department of Health,CT Revenue Funds,03/12/2015,Agency Admin & Clerical,Single Point of Referral,PERTEMPS,P695398,75.15,844 2788 00
Department of Health,CT Revenue Funds,03/12/2015,Agency Consultants,Telford Child Psychiatry,INTERACT MEDICAL,140074,5279.04,650 7780 24
Department of Health,CT Revenue Funds,03/12/2015,Agency Consultants,Telford Child Psychiatry,INTERACT MEDICAL,140074,1055.81,650 7780 24
Department of Health,CT Revenue Funds,03/12/2015,Agency Consultants,Shropshire Community Paediatric Medical Staff,HEALTHMEDIX LTD,3386,888,
Department of Health,CT Revenue Funds,03/12/2015,Agency Consultants,Shropshire Community Paediatric Medical Staff,HEALTHMEDIX LTD,3386,4440,
Department of Health,CT Revenue Funds,03/12/2015,Agency Consultants,Shropshire Community Paediatric Medical Staff,HEALTHMEDIX LTD,3387,6.26,
Department of Health,CT Revenue Funds,03/12/2015,Agency Consultants,Shropshire Community Paediatric Medical Staff,HEALTHMEDIX LTD,3387,31.28,
Department of Health,CT Revenue Funds,03/12/2015,Agency Consultants,Shropshire Child Psychiatry,PSYCHIATRY PEOPLE,PP129204,6801.54,
Department of Health,CT Revenue Funds,03/12/2015,Agency Consultants,Shropshire Child Psychiatry,PSYCHIATRY PEOPLE,PP129204,1360.31,
Department of Health,CT Revenue Funds,03/12/2015,Agency Hlthcare Assistants & Support Staff,MSK Rheumatology,ID MEDICAL,10044,258.75,733 7385 18
Department of Health,CT Revenue Funds,03/12/2015,Agency Hlthcare Assistants & Support Staff,MSK Rheumatology,ID MEDICAL,10044,51.75,733 7385 18
Department of Health,CT Revenue Funds,03/12/2015,Agency Hlthcare Assistants & Support Staff,Stoke Heath Prison Healthcare,VIP NURSING LTD,76874,676.8,
Department of Health,CT Revenue Funds,03/12/2015,Agency Hlthcare Assistants & Support Staff,Stoke Heath Prison Healthcare,VIP NURSING LTD,76875,141,
Department of Health,CT Revenue Funds,03/12/2015,Agency Hlthcare Assistants & Support Staff,Stoke Heath Prison Healthcare,VIP NURSING LTD,76875,705,
Department of Health,CT Revenue Funds,03/12/2015,Agency Hlthcare Assistants & Support Staff,Stoke Heath Prison Healthcare,VIP NURSING LTD,77462,676.8,
Department of Health,CT Revenue Funds,03/12/2015,Agency Hlthcare Assistants & Support Staff,Stoke Heath Prison Healthcare,VIP NURSING LTD,77463,990.66,
Department of Health,CT Revenue Funds,03/12/2015,Agency Hlthcare Assistants & Support Staff,Stoke Heath Prison Healthcare,VIP NURSING LTD,77464,915.9,
Department of Health,CT Revenue Funds,03/12/2015,Agency Hlthcare Assistants & Support Staff,Stoke Heath Prison Healthcare,VIP NURSING LTD,77465,1174.52,
Department of Health,CT Revenue Funds,03/12/2015,Agency Hlthcare Assistants & Support Staff,Stoke Heath Prison Healthcare,VIP NURSING LTD,77466,846,
Department of Health,CT Revenue Funds,03/12/2015,Agency Hlthcare Assistants & Support Staff,Stoke Heath Prison Healthcare,VIP NURSING LTD,77467,652.28,
Department of Health,CT Revenue Funds,03/12/2015,Agency Hlthcare Assistants & Support Staff,Stoke Heath Prison Healthcare,VIP NURSING LTD,77468,507.6,
Department of Health,CT Revenue Funds,03/12/2015,Agency Hlthcare Assistants & Support Staff,Stoke Heath Prison Healthcare,VIP NURSING LTD,77469,880.89,
Department of Health,CT Revenue Funds,03/12/2015,Agency Nursing,Oswestry Minor Injuries Unit,MSI RECRUITMENT LTD,123086,932,933 2976 04
Department of Health,CT Revenue Funds,03/12/2015,Agency Nursing,Shropshire Community Paediatric Medical Staff,RANDSTAD CARE LTD,1957766,154.5,
Department of Health,CT Revenue Funds,03/12/2015,Agency Nursing,Shropshire Community Paediatric Medical Staff,RANDSTAD CARE LTD,1959244,77.25,
Department of Health,CT Revenue Funds,03/12/2015,Agency Nursing,Stoke Heath Prison Healthcare,SANCTUARY PERSONNEL LTD,35242,506,
Department of Health,CT Revenue Funds,03/12/2015,Agency Nursing,Ludlow Hospital Minor Injuries Unit,HALLAM MEDICAL,59688,296.22,
Department of Health,CT Revenue Funds,03/12/2015,Agency Nursing,Ludlow Hospital Minor Injuries Unit,HALLAM MEDICAL,59973,296.22,
Department of Health,CT Revenue Funds,03/12/2015,Agency Nursing,Ludlow Hospital Minor Injuries Unit,HALLAM MEDICAL,59974,543.07,
Department of Health,CT Revenue Funds,03/12/2015,Agency Nursing,Oswestry Minor Injuries Unit,HALLAM MEDICAL,59975,469.02,
Department of Health,CT Revenue Funds,03/12/2015,Agency Nursing,Stoke Heath Prison Healthcare,MEDACS HEALTHCARE SERVICES PLC,604-797543,1070.58,745 7310 30
Department of Health,CT Revenue Funds,03/12/2015,Agency Nursing,CAMHS Team (T&W),HCL SOCIAL CARE,HSOC5524987,285.5,
Department of Health,CT Revenue Funds,03/12/2015,Agency Nursing,CAMHS Team (T&W),HCL SOCIAL CARE,HSOC5524987,1427.52,
Department of Health,CT Revenue Funds,03/12/2015,Agency Nursing,CAMHS Team (T&W),HCL SOCIAL CARE,HSOC5524988,3.22,
Department of Health,CT Revenue Funds,03/12/2015,Agency Nursing,CAMHS Team (T&W),HCL SOCIAL CARE,HSOC5524988,16.08,
Department of Health,CT Revenue Funds,03/12/2015,Agency PAMs,Ludlow Hospital Physiotherapy,SEVEN RESOURCING LTD,122390,2213.6,
Department of Health,CT Revenue Funds,03/12/2015,Agency PAMs,Ludlow Hospital Physiotherapy,SEVEN RESOURCING LTD,122390,442.72,
Department of Health,CT Revenue Funds,03/12/2015,Agency PAMs,Ludlow Hospital Physiotherapy,SEVEN RESOURCING LTD,122417,415.05,
Department of Health,CT Revenue Funds,03/12/2015,Agency PAMs,Ludlow Hospital Physiotherapy,SEVEN RESOURCING LTD,122417,83.01,
Department of Health,CT Revenue Funds,03/12/2015,Agency PAMs,Nurse Liaison Intermediate Care (T&W),MEDI CONNECT RECRUITMENT,17433,197.7,973 5565 79
Department of Health,CT Revenue Funds,03/12/2015,Agency PAMs,Nurse Liaison Intermediate Care (T&W),MEDI CONNECT RECRUITMENT,17433,988.5,973 5565 79
Department of Health,CT Revenue Funds,03/12/2015,Agency PAMs,ICS South East,MEDI CONNECT RECRUITMENT,17442,3209.05,973 5565 79
Department of Health,CT Revenue Funds,03/12/2015,Agency PAMs,ICS South East,MEDI CONNECT RECRUITMENT,17442,641.81,973 5565 79
Department of Health,CT Revenue Funds,03/12/2015,Agency PAMs,Nurse Liaison Intermediate Care (T&W),MEDI CONNECT RECRUITMENT,17481,1087.78,973 5565 79
Department of Health,CT Revenue Funds,03/12/2015,Agency PAMs,Nurse Liaison Intermediate Care (T&W),MEDI CONNECT RECRUITMENT,17481,217.56,973 5565 79
Department of Health,CT Revenue Funds,03/12/2015,Agency PAMs,Community Neuro Rehabilitation Team (CNRT),POSITIVE MENTAL HEALTH,T01166,71.14,
Department of Health,CT Revenue Funds,03/12/2015,Agency PAMs,Community Neuro Rehabilitation Team (CNRT),POSITIVE MENTAL HEALTH,T01166,355.68,
Department of Health,CT Revenue Funds,03/12/2015,ANAES : Accessories & Equipment,Community Childrens Nurses,B&D ELECTROMEDICAL LTD,47446,35,551 3055 73
Department of Health,CT Revenue Funds,03/12/2015,ANAES : Accessories & Equipment,Community Childrens Nurses,B&D ELECTROMEDICAL LTD,47446,3.2,551 3055 73
Department of Health,CT Revenue Funds,03/12/2015,ANAES : Accessories & Equipment,Community Childrens Nurses,B&D ELECTROMEDICAL LTD,47446,175,551 3055 73
Department of Health,CT Revenue Funds,03/12/2015,ANAES : Accessories & Equipment,Community Childrens Nurses,B&D ELECTROMEDICAL LTD,47446,16,551 3055 73
Department of Health,CT Revenue Funds,03/12/2015,Awards,HR and Workforce,LONG SERVICE AWARDS,DAVIES-LONG SERV AWARD,50,
Department of Health,CT Revenue Funds,03/12/2015,Awards,HR and Workforce,LONG SERVICE AWARDS,JONES-LON SERV AWARD,50,
Department of Health,CT Revenue Funds,03/12/2015,Awards,HR and Workforce,LONG SERVICE AWARDS,LONG SERV AWARD - POLLARD,50,
Department of Health,CT Revenue Funds,03/12/2015,Awards,HR and Workforce,LONG SERVICE AWARDS,LONG SERV AWARD - WHEELER,50,
Department of Health,CT Revenue Funds,03/12/2015,Awards,HR and Workforce,LONG SERVICE AWARDS,LONG SERV AWARD-HEMS,50,
Department of Health,CT Revenue Funds,03/12/2015,Awards,HR and Workforce,LONG SERVICE AWARDS,LONG SERV AWARD-YARHAM,50,
Department of Health,CT Revenue Funds,03/12/2015,Awards,HR and Workforce,RETIREMENT GIFT,SPEKE-LONG SERV.AWARD,50,
Department of Health,CT Revenue Funds,03/12/2015,Bags Sacks,Community Equipment Stores,KEY INDUSTRIAL EQUIPMENT LTD,I0632486,760,
Department of Health,CT Revenue Funds,03/12/2015,Bags Sacks,Community Equipment Stores,KEY INDUSTRIAL EQUIPMENT LTD,I0632486,152,
Department of Health,CT Revenue Funds,03/12/2015,Bed Accessories,Community Equipment Stores,OTS LTD,0000011652,779.7,
Department of Health,CT Revenue Funds,03/12/2015,Bed Accessories,Community Equipment Stores,OTS LTD,0000011652,155.94,
Department of Health,CT Revenue Funds,03/12/2015,Bed Accessories,Community Equipment Stores,OTS LTD,0000011667,779.7,
Department of Health,CT Revenue Funds,03/12/2015,Bed Accessories,Community Equipment Stores,OTS LTD,0000011667,155.94,
Department of Health,CT Revenue Funds,03/12/2015,Bed Accessories,Community Equipment Stores,MOUNTWAY LTD,0000023821,817.02,
Department of Health,CT Revenue Funds,03/12/2015,Bed Accessories,Community Equipment Stores,MOUNTWAY LTD,0000023821,497.76,
Department of Health,CT Revenue Funds,03/12/2015,Bed Accessories,Community Equipment Stores,MOUNTWAY LTD,0000023821,99.55,
Department of Health,CT Revenue Funds,03/12/2015,Bed Accessories,Community Equipment Stores,MOUNTWAY LTD,0000023821,163.41,
Department of Health,CT Revenue Funds,03/12/2015,Bed Accessories,Community Equipment Stores,MOUNTWAY LTD,0000024903,248.88,
Department of Health,CT Revenue Funds,03/12/2015,Bed Accessories,Community Equipment Stores,MOUNTWAY LTD,0000024903,1244.4,
Department of Health,CT Revenue Funds,03/12/2015,Bed Accessories,Community Equipment Stores,MOUNTWAY LTD,0000024903,453.9,
Department of Health,CT Revenue Funds,03/12/2015,Bed Accessories,Community Equipment Stores,MOUNTWAY LTD,0000024903,2269.5,
Department of Health,CT Revenue Funds,03/12/2015,Bed Accessories,Community Equipment Stores,ROMA MEDICAL AIDS LTD,566470,1950,763 0039 51
Department of Health,CT Revenue Funds,03/12/2015,Bed Accessories,Community Equipment Stores,ROMA MEDICAL AIDS LTD,566470,390,763 0039 51
Department of Health,CT Revenue Funds,03/12/2015,Beds,Community Equipment Stores,THERAPOSTURE LTD,129763,2907,
Department of Health,CT Revenue Funds,03/12/2015,Beds,Community Equipment Stores,THERAPOSTURE LTD,129763,581.4,
Department of Health,CT Revenue Funds,03/12/2015,Beds,Community Equipment Stores,SIDHIL LTD,584697,5350,461 1277 66
Department of Health,CT Revenue Funds,03/12/2015,Beds,Community Equipment Stores,SIDHIL LTD,584697,1070,461 1277 66
Department of Health,CT Revenue Funds,03/12/2015,Beds,Community Equipment Stores,KINDERKEY HEALTHCARE LTD,6034,458,
Department of Health,CT Revenue Funds,03/12/2015,Beds,Community Equipment Stores,KINDERKEY HEALTHCARE LTD,6034,2290,
Department of Health,CT Revenue Funds,03/12/2015,"Books, Journals & Subscriptions",Diabetes Specialist Nursing,X-PERT HEALTH CIC LTD,4445,39.98,122763919
Department of Health,CT Revenue Funds,03/12/2015,"Books, Journals & Subscriptions",Diabetes Specialist Nursing,X-PERT HEALTH CIC LTD,4445,-39.98,122763919
Department of Health,CT Revenue Funds,03/12/2015,"Books, Journals & Subscriptions",Diabetes Specialist Nursing,X-PERT HEALTH CIC LTD,4445,199.9,122763919
Department of Health,CT Revenue Funds,03/12/2015,Building & Engineering Equipment Maintenance/Repairs,Premises Management,ENVIRONMENTAL ESSENTIALS,34884,60,
Department of Health,CT Revenue Funds,03/12/2015,Building & Engineering Equipment Maintenance/Repairs,Premises Management,ENVIRONMENTAL ESSENTIALS,34884,-60,
Department of Health,CT Revenue Funds,03/12/2015,Building & Engineering Equipment Maintenance/Repairs,Premises Management,ENVIRONMENTAL ESSENTIALS,34884,300,
Department of Health,CT Revenue Funds,03/12/2015,Building & Engineering Equipment Maintenance/Repairs,Premises Management,ENVIRONMENTAL ESSENTIALS,34885,43.75,
Department of Health,CT Revenue Funds,03/12/2015,Building & Engineering Equipment Maintenance/Repairs,Premises Management,ENVIRONMENTAL ESSENTIALS,34885,-43.75,
Department of Health,CT Revenue Funds,03/12/2015,Building & Engineering Equipment Maintenance/Repairs,Premises Management,ENVIRONMENTAL ESSENTIALS,34885,218.75,
Department of Health,CT Revenue Funds,03/12/2015,Building & Engineering Equipment Maintenance/Repairs,Premises Management,ENVIRONMENTAL ESSENTIALS,34886,-43.75,
Department of Health,CT Revenue Funds,03/12/2015,Building & Engineering Equipment Maintenance/Repairs,Premises Management,ENVIRONMENTAL ESSENTIALS,34886,218.75,
Department of Health,CT Revenue Funds,03/12/2015,Building & Engineering Equipment Maintenance/Repairs,Premises Management,ENVIRONMENTAL ESSENTIALS,34886,43.75,
Department of Health,CT Revenue Funds,03/12/2015,Building & Engineering Equipment Maintenance/Repairs,Premises Management,ENVIRONMENTAL ESSENTIALS,34887,395,
Department of Health,CT Revenue Funds,03/12/2015,Building & Engineering Equipment Maintenance/Repairs,Premises Management,ENVIRONMENTAL ESSENTIALS,34887,-79,
Department of Health,CT Revenue Funds,03/12/2015,Building & Engineering Equipment Maintenance/Repairs,Premises Management,ENVIRONMENTAL ESSENTIALS,34887,79,
Department of Health,CT Revenue Funds,03/12/2015,Catering Provisions,Ludlow Hospital Catering,OLLECO CYMRU,334554,63.3,909 9860 70
Department of Health,CT Revenue Funds,03/12/2015,Catering Provisions,Ludlow Hospital Catering,BRAKE BROS FOODSERVICE LTD,5504961029,-4.41,202 9353 88
Department of Health,CT Revenue Funds,03/12/2015,Catering Provisions,Bridgnorth Hospital Catering,JOHAL DAIRIES LTD,621259,113,101 3075 37
Department of Health,CT Revenue Funds,03/12/2015,Catering Provisions,Whitchurch Hospital Catering,JOHAL DAIRIES LTD,621260,82.68,101 3075 37
Department of Health,CT Revenue Funds,03/12/2015,Catering Provisions,Bridgnorth Hospital Catering,BIDVEST FOODSERVICE,64124245,478.31,643 9946 92
Department of Health,CT Revenue Funds,03/12/2015,Catering Provisions,Bridgnorth Hospital Catering,BIDVEST FOODSERVICE,64124245,3.77,643 9946 92
Department of Health,CT Revenue Funds,03/12/2015,Catering Provisions,Bridgnorth Hospital Catering,BIDVEST FOODSERVICE,64124245,18.84,643 9946 92
Department of Health,CT Revenue Funds,03/12/2015,Catering Provisions,Whitchurch Hospital Catering,BIDVEST FOODSERVICE,64165479,52.08,643 9946 92
Department of Health,CT Revenue Funds,03/12/2015,Catering Provisions,Whitchurch Hospital Catering,BIDVEST FOODSERVICE,64165479,10.42,643 9946 92
Department of Health,CT Revenue Funds,03/12/2015,Catering Provisions,Whitchurch Hospital Catering,BIDVEST FOODSERVICE,64165479,190.82,643 9946 92
Department of Health,CT Revenue Funds,03/12/2015,Catering Provisions,Ludlow Hospital Catering,BIKOLD FOODSERVICE/STERLING,844538,41.37,137 3938 47
Department of Health,CT Revenue Funds,03/12/2015,Catering Provisions,Ludlow Hospital Catering,BIKOLD FOODSERVICE/STERLING,844873,94.45,137 3938 47
Department of Health,CT Revenue Funds,03/12/2015,Catering Provisions,Ludlow Hospital Catering,BIKOLD FOODSERVICE/STERLING,845057,113.71,137 3938 47
Department of Health,CT Revenue Funds,03/12/2015,Catering Provisions,Ludlow Hospital Catering,BIKOLD FOODSERVICE/STERLING,845309,53.76,137 3938 47
Department of Health,CT Revenue Funds,03/12/2015,Catering Provisions,Ludlow Hospital Catering,BIKOLD FOODSERVICE/STERLING,845309,13.67,137 3938 47
Department of Health,CT Revenue Funds,03/12/2015,Catering Provisions,Ludlow Hospital Catering,BIKOLD FOODSERVICE/STERLING,845309,68.36,137 3938 47
Department of Health,CT Revenue Funds,03/12/2015,Catering Provisions,Ludlow Hospital Catering,BIKOLD FOODSERVICE/STERLING,845506,7.17,137 3938 47
Department of Health,CT Revenue Funds,03/12/2015,Catering Provisions,Ludlow Hospital Catering,BIKOLD FOODSERVICE/STERLING,845506,35.84,137 3938 47
Department of Health,CT Revenue Funds,03/12/2015,Catering Provisions,Ludlow Hospital Catering,BIKOLD FOODSERVICE/STERLING,845566,17.95,137 3938 47
Department of Health,CT Revenue Funds,03/12/2015,Catering Provisions,Ludlow Hospital Catering,BIKOLD FOODSERVICE/STERLING,845664,181.62,137 3938 47
Department of Health,CT Revenue Funds,03/12/2015,Catering Provisions,Ludlow Hospital Catering,BIKOLD FOODSERVICE/STERLING,845664,21.59,137 3938 47
Department of Health,CT Revenue Funds,03/12/2015,Catering Provisions,Ludlow Hospital Catering,BIKOLD FOODSERVICE/STERLING,845664,4.32,137 3938 47
Department of Health,CT Revenue Funds,03/12/2015,Catering Provisions,Ludlow Hospital Catering,BIKOLD FOODSERVICE/STERLING,846085,153.14,137 3938 47
Department of Health,CT Revenue Funds,03/12/2015,Catering Provisions,Ludlow Hospital Catering,BIKOLD FOODSERVICE/STERLING,846154,122.1,137 3938 47
Department of Health,CT Revenue Funds,03/12/2015,Catering Provisions,Ludlow Hospital Catering,BIKOLD FOODSERVICE/STERLING,846336,4.99,137 3938 47
Department of Health,CT Revenue Funds,03/12/2015,Catering Provisions,Ludlow Hospital Catering,BIKOLD FOODSERVICE/STERLING,846336,1,137 3938 47
Department of Health,CT Revenue Funds,03/12/2015,Catering Provisions,Ludlow Hospital Catering,BIKOLD FOODSERVICE/STERLING,846499,16.37,137 3938 47
Department of Health,CT Revenue Funds,03/12/2015,Catering Provisions,Ludlow Hospital Catering,BIKOLD FOODSERVICE/STERLING,846705,186.74,137 3938 47
Department of Health,CT Revenue Funds,03/12/2015,Catering Provisions,Ludlow Hospital Catering,BIKOLD FOODSERVICE/STERLING,846705,3.18,137 3938 47
Department of Health,CT Revenue Funds,03/12/2015,Catering Provisions,Ludlow Hospital Catering,BIKOLD FOODSERVICE/STERLING,846705,15.92,137 3938 47
Department of Health,CT Revenue Funds,03/12/2015,Catering Provisions,Ludlow Hospital Catering,BRAKE BROS FOODSERVICE LTD,9231134783,141.14,202 9353 88
Department of Health,CT Revenue Funds,03/12/2015,Catering Provisions,Ludlow Hospital Catering,BRAKE BROS FOODSERVICE LTD,9231135685,123.72,202 9353 88
Department of Health,CT Revenue Funds,03/12/2015,Catering Provisions,Ludlow Hospital Catering,BRAKE BROS FOODSERVICE LTD,9231135685,5.61,202 9353 88
Department of Health,CT Revenue Funds,03/12/2015,Catering Provisions,Ludlow Hospital Catering,BRAKE BROS FOODSERVICE LTD,9231135685,1.12,202 9353 88
Department of Health,CT Revenue Funds,03/12/2015,Catering Provisions,Ludlow Hospital Catering,TOTAL PRODUCE,HER-805802,51.83,896 5678 42
Department of Health,CT Revenue Funds,03/12/2015,Catering Provisions,Ludlow Hospital Catering,TOTAL PRODUCE,HER-806922,30.7,896 5678 42
Department of Health,CT Revenue Funds,03/12/2015,Catering Provisions,Ludlow Hospital Catering,TOTAL PRODUCE,HER-807183,40.2,896 5678 42
Department of Health,CT Revenue Funds,03/12/2015,Catering Provisions,Ludlow Hospital Catering,TOTAL PRODUCE,HER-807184,79.41,896 5678 42
Department of Health,CT Revenue Funds,03/12/2015,Catering Provisions,Ludlow Hospital Catering,TOTAL PRODUCE,HER-808314,133.45,896 5678 42
Department of Health,CT Revenue Funds,03/12/2015,Catering Provisions,Ludlow Hospital Catering,TOTAL PRODUCE,HER-809601,52.1,896 5678 42
Department of Health,CT Revenue Funds,03/12/2015,Catering Provisions,Ludlow Hospital Catering,TOTAL PRODUCE,HER-810038,15.96,896 5678 42
Department of Health,CT Revenue Funds,03/12/2015,Catering Provisions,Ludlow Hospital Catering,TOTAL PRODUCE,HER-810740,79.06,896 5678 42
Department of Health,CT Revenue Funds,03/12/2015,Catering Provisions,Ludlow Hospital Catering,TOTAL PRODUCE,HER-810874,141.38,896 5678 42
Department of Health,CT Revenue Funds,03/12/2015,Catering Provisions,Ludlow Hospital Catering,JOHN SHEPPARD BUTCHERS LTD,SINV418279,124.71,
Department of Health,CT Revenue Funds,03/12/2015,Catering Provisions,Ludlow Hospital Catering,JOHN SHEPPARD BUTCHERS LTD,SINV419144,22.69,
Department of Health,CT Revenue Funds,03/12/2015,Catering Provisions,Ludlow Hospital Catering,JOHN SHEPPARD BUTCHERS LTD,SINV421924,130.32,
Department of Health,CT Revenue Funds,03/12/2015,Catering Provisions,Bridgnorth Hospital Catering,JOHN SHEPPARD BUTCHERS LTD,SINV424177,62.8,
Department of Health,CT Revenue Funds,03/12/2015,Charity Donations,Payables,CHARITIES TRUST,NOV15,35,
Department of Health,CT Revenue Funds,03/12/2015,Cleaning Materials,Community Equipment Stores,PROVAC CLEANING SUPPLIES LTD,46805,20.45,
Department of Health,CT Revenue Funds,03/12/2015,Cleaning Materials,Community Equipment Stores,PROVAC CLEANING SUPPLIES LTD,46805,102.24,
Department of Health,CT Revenue Funds,03/12/2015,Computer Consumables,Corporate IT,MISCO COMPUTER SUPPLIES LTD,10797954,28.39,494 1756 15
Department of Health,CT Revenue Funds,03/12/2015,Computer Consumables,Corporate IT,MISCO COMPUTER SUPPLIES LTD,10797954,141.95,494 1756 15
Department of Health,CT Revenue Funds,03/12/2015,Computer Consumables,Corporate IT,MISCO COMPUTER SUPPLIES LTD,10797954,-3.18,494 1756 15
Department of Health,CT Revenue Funds,03/12/2015,Computer Consumables,Corporate IT,MISCO COMPUTER SUPPLIES LTD,10797954,-15.92,494 1756 15
Department of Health,CT Revenue Funds,03/12/2015,Computer Consumables,Corporate IT,MISCO COMPUTER SUPPLIES LTD,10798594,110.95,494 1756 15
Department of Health,CT Revenue Funds,03/12/2015,Computer Consumables,Corporate IT,MISCO COMPUTER SUPPLIES LTD,10798594,22.19,494 1756 15
Department of Health,CT Revenue Funds,03/12/2015,Computer Consumables,Corporate IT,MISCO COMPUTER SUPPLIES LTD,10798594,-9.41,494 1756 15
Department of Health,CT Revenue Funds,03/12/2015,Computer Consumables,Corporate IT,MISCO COMPUTER SUPPLIES LTD,10798594,-1.88,494 1756 15
Department of Health,CT Revenue Funds,03/12/2015,Computer Consumables,Shrewsbury and Atcham North Interdisciplinary Teams,CBC COMPUTER SYSTEMS LTD,SIN008143,31.2,534 1281 70
Department of Health,CT Revenue Funds,03/12/2015,Computer Consumables,Shrewsbury and Atcham North Interdisciplinary Teams,CBC COMPUTER SYSTEMS LTD,SIN008143,156,534 1281 70
Department of Health,CT Revenue Funds,03/12/2015,Computer Hardware & Software,Shrewsbury and Atcham Physiotherapy Clinics,MISCO COMPUTER SUPPLIES LTD,10799102,162.01,494 1756 15
Department of Health,CT Revenue Funds,03/12/2015,Computer Hardware & Software,Shrewsbury and Atcham Physiotherapy Clinics,MISCO COMPUTER SUPPLIES LTD,10799102,32.4,494 1756 15
Department of Health,CT Revenue Funds,03/12/2015,Computer Hardware & Software,MSK Management & Admin,MISCO COMPUTER SUPPLIES LTD,10805896,59.32,494 1756 15
Department of Health,CT Revenue Funds,03/12/2015,Computer Hardware & Software,MSK Management & Admin,MISCO COMPUTER SUPPLIES LTD,10805896,111.23,494 1756 15
Department of Health,CT Revenue Funds,03/12/2015,Computer Hardware & Software,MSK Management & Admin,MISCO COMPUTER SUPPLIES LTD,10805896,556.16,494 1756 15
Department of Health,CT Revenue Funds,03/12/2015,Computer Hardware & Software,MSK Management & Admin,MISCO COMPUTER SUPPLIES LTD,10805896,296.6,494 1756 15
Department of Health,CT Revenue Funds,03/12/2015,Computer Hardware & Software,Shropshire Primary CAMHS Service,DELL COMPUTER CORPORATION,7402249653,675.97,635 8235 28
Department of Health,CT Revenue Funds,03/12/2015,Computer Hardware & Software,Shropshire Primary CAMHS Service,DELL COMPUTER CORPORATION,7402249653,135.19,635 8235 28
Department of Health,CT Revenue Funds,03/12/2015,Computer Hardware & Software,MSK Management & Admin,DELL COMPUTER CORPORATION,7402251403,1.71,635 8235 28
Department of Health,CT Revenue Funds,03/12/2015,Computer Hardware & Software,MSK Management & Admin,DELL COMPUTER CORPORATION,7402251403,273.15,635 8235 28
Department of Health,CT Revenue Funds,03/12/2015,Computer Hardware & Software,MSK Management & Admin,DELL COMPUTER CORPORATION,7402251403,8.56,635 8235 28
Department of Health,CT Revenue Funds,03/12/2015,Computer Hardware & Software,MSK Management & Admin,DELL COMPUTER CORPORATION,7402251403,1365.72,635 8235 28
Department of Health,CT Revenue Funds,03/12/2015,Computer Maintenance,Coral House,ASAP COMPUTER SERVICE,42743,197.16,
Department of Health,CT Revenue Funds,03/12/2015,Computer Maintenance,Coral House,ASAP COMPUTER SERVICE,42743,39.43,
Department of Health,CT Revenue Funds,03/12/2015,Conferences And Seminars,Trust Board,HFMA LTD,BRI-000013815,660,
Department of Health,CT Revenue Funds,03/12/2015,Conferences And Seminars,Trust Board,HFMA LTD,BRI-000013815,132,
Department of Health,CT Revenue Funds,03/12/2015,Confidential Waste Collection,North West Shropshire Interdisciplinary Teams,PHS GROUP LTD,63065357,10.67,542 9514 38
Department of Health,CT Revenue Funds,03/12/2015,Confidential Waste Collection,North Shropshire Health Visitors,PHS GROUP LTD,63065357,10.67,542 9514 38
Department of Health,CT Revenue Funds,03/12/2015,Confidential Waste Collection,Shropshire School Nurses,PHS GROUP LTD,63065357,10.68,542 9514 38
Department of Health,CT Revenue Funds,03/12/2015,Confidential Waste Collection,ICS Central,PHS GROUP LTD,63065357,10.66,542 9514 38
Department of Health,CT Revenue Funds,03/12/2015,Confidential Waste Collection,North Shropshire Health Visitors,PHS GROUP LTD,63116021,37.5,542 9514 38
Department of Health,CT Revenue Funds,03/12/2015,Confidential Waste Collection,Coral House,PHS GROUP LTD,63153565,8.42,542 9514 38
Department of Health,CT Revenue Funds,03/12/2015,Confidential Waste Collection,APCS Administration,PHS GROUP LTD,63153575,7.9,542 9514 38
Department of Health,CT Revenue Funds,03/12/2015,Confidential Waste Collection,Whitchurch Hospital Administration,PHS GROUP LTD,63153577,4.92,542 9514 38
Department of Health,CT Revenue Funds,03/12/2015,Confidential Waste Collection,APCS Administration,PHS GROUP LTD,63153578,4.21,542 9514 38
Department of Health,CT Revenue Funds,03/12/2015,Confidential Waste Collection,MSK Rheumatology,PHS GROUP LTD,63153579,6.08,542 9514 38
Department of Health,CT Revenue Funds,03/12/2015,Confidential Waste Collection,Whitchurch Hospital Administration,PHS GROUP LTD,63153580,7.38,542 9514 38
Department of Health,CT Revenue Funds,03/12/2015,Confidential Waste Collection,Safeguarding Team,PHS GROUP LTD,63153581,6.5,542 9514 38
Department of Health,CT Revenue Funds,03/12/2015,Confidential Waste Collection,Coral House,PHS GROUP LTD,63172217,74.42,542 9514 38
Department of Health,CT Revenue Funds,03/12/2015,Consultant - Psychiatry,Paediatric Psychology,ANNIE MERCER,26.11.15 SUPERVISION,100,
Department of Health,CT Revenue Funds,03/12/2015,Contract : Grounds & Gardens,MSK Rheumatology,SPACECARE (SHROPSHIRE),1115024,45,790 8831 89
Department of Health,CT Revenue Funds,03/12/2015,Contract : Photocopying Rental & Charges,Ludlow Hospital Inpatient Wards,KONICA BUSINESS MACHINES (UK) LTD,1121401192,61.8,974 9607 63
Department of Health,CT Revenue Funds,03/12/2015,Contract : Photocopying Rental & Charges,South Shropshire Health Visitors,XEROX UK,1605026953,243.67,232 3646 82
Department of Health,CT Revenue Funds,03/12/2015,Contract : Photocopying Rental & Charges,South West Interdisciplinary Teams,XEROX FINANCE LTD,96981879,67,232 3646 82
Department of Health,CT Revenue Funds,03/12/2015,Contract : Photocopying Rental & Charges,Community Nursing Team 1,XEROX FINANCE LTD,96981879,67,232 3646 82
Department of Health,CT Revenue Funds,03/12/2015,Contract : Photocopying Rental & Charges,Community Equipment Stores,XEROX FINANCE LTD,96982369,198.82,232 3646 82
Department of Health,CT Revenue Funds,03/12/2015,Contract : Photocopying Rental & Charges,CAMHS Management,XEROX FINANCE LTD,96982637,144.77,232 3646 82
Department of Health,CT Revenue Funds,03/12/2015,Contract : Photocopying Rental & Charges,Coral House,XEROX FINANCE LTD,96982637,233.87,232 3646 82
Department of Health,CT Revenue Funds,03/12/2015,Contract : Photocopying Rental & Charges,Bridgnorth Hospital Administration,XEROX FINANCE LTD,96982675,147.31,232 3646 82
Department of Health,CT Revenue Funds,03/12/2015,Contract : Photocopying Rental & Charges,Ludlow Hospital Inpatient Wards,XEROX FINANCE LTD,96982676,86.34,232 3646 82
Department of Health,CT Revenue Funds,03/12/2015,Contract : Premises Security,Coral House,BUSINESS WATCH GUARDING LTD,15036,324.32,818 2993 93
Department of Health,CT Revenue Funds,03/12/2015,Course Fees,Learning Beyond Registration,KEELE UNIVERSITY,11005958-001,490,
Department of Health,CT Revenue Funds,03/12/2015,Course Fees,APCS Administration,AMPLIVOX LTD,CAM004 16099,465,
Department of Health,CT Revenue Funds,03/12/2015,Court Order Payment,Payables,CHESHIRE WEST & CHESHIRE COUNCIL,206436834 NOV15,36.4,
Department of Health,CT Revenue Funds,03/12/2015,Court Order Payment,Payables,CHILD SUPPORT AGENCY,NA832670D NOV15,268.58,
Department of Health,CT Revenue Funds,03/12/2015,Court Order Payment,Payables,SHROPSHIRE COUNCIL,NOV15,880.4,162 3474 72
Department of Health,CT Revenue Funds,03/12/2015,Criminal Records Bureau Checks,HR and Workforce,CAPITA RESOURCING LTD,R0027884,55.3,
Department of Health,CT Revenue Funds,03/12/2015,Criminal Records Bureau Checks,HR and Workforce,CAPITA RESOURCING LTD,R0027884,276.5,
Department of Health,CT Revenue Funds,03/12/2015,Criminal Records Bureau Checks,HR and Workforce,CAPITA RESOURCING LTD,R0027884,1558,
Department of Health,CT Revenue Funds,03/12/2015,Dental Equipment Maintenance,SpecialCare and Access,PEACOCKS MEDICAL GROUP LTD,0000012736,275,755 9980 65
Department of Health,CT Revenue Funds,03/12/2015,Dental Laboratory Items,Stoke Heath Prison Healthcare,S4 DENTAL LABORATORY,BRISTSTOKE-I84149,24,
Department of Health,CT Revenue Funds,03/12/2015,Dental Officer,PDS Out of Hours,DR ARUN MENON,NOV15 SESSIONS,228.18,
Department of Health,CT Revenue Funds,03/12/2015,Dental Officer,PDS Out of Hours,MARK WARD,NOV15 SESSIONS,658.56,
Department of Health,CT Revenue Funds,03/12/2015,Dental Surgery Sundries,SpecialCare and Access,AURORA CBA LTD,117859,57.5,
Department of Health,CT Revenue Funds,03/12/2015,Dental Surgery Sundries,SpecialCare and Access,S4 DENTAL LABORATORY,APPLE-NOV15,147,
Department of Health,CT Revenue Funds,03/12/2015,Dental Surgery Sundries,SpecialCare and Access,S4 DENTAL LABORATORY,BELL01-NOV15,76,
Department of Health,CT Revenue Funds,03/12/2015,Dental Surgery Sundries,SpecialCare and Access,OSWESTRY DENTAL LAB,NOV15 - 1474,144.5,
Department of Health,CT Revenue Funds,03/12/2015,Dental Surgery Sundries,SpecialCare and Access,OSWESTRY DENTAL LAB,NOV15 -1621,243.25,
Department of Health,CT Revenue Funds,03/12/2015,Dental Surgery Sundries,M Drayton Dental Practice,OSWESTRY DENTAL LAB,NOV15-1020,204.25,
Department of Health,CT Revenue Funds,03/12/2015,Dental Surgery Sundries,M Drayton Dental Practice,OSWESTRY DENTAL LAB,NOV15-429,135.14,
Department of Health,CT Revenue Funds,03/12/2015,Dental Surgery Sundries,SpecialCare and Access,S4 DENTAL LABORATORY,SEAGDAWLEY -NOV15,109,
Department of Health,CT Revenue Funds,03/12/2015,Dental Surgery Sundries,SpecialCare and Access,S4 DENTAL LABORATORY,SEAGSHREW-NOV15,562,
Department of Health,CT Revenue Funds,03/12/2015,Dental Surgery Sundries,M Drayton Dental Practice,S4 DENTAL LABORATORY,SHIMMINO-NOV15,111.9,
Department of Health,CT Revenue Funds,03/12/2015,Dental Surgery Sundries,C Arms Dental Practice,S4 DENTAL LABORATORY,SHR01-NOV15,505.1,
Department of Health,CT Revenue Funds,03/12/2015,Dental Surgery Sundries,SpecialCare and Access,S4 DENTAL LABORATORY,SHR01-NOV15,122.5,
Department of Health,CT Revenue Funds,03/12/2015,Drugs,Occupational Health Stoke,SANOFI PASTEUR MSD,6060621812,42.96,247 9665 11
Department of Health,CT Revenue Funds,03/12/2015,Drugs,Occupational Health Stoke,SANOFI PASTEUR MSD,6060621812,214.8,247 9665 11
Department of Health,CT Revenue Funds,03/12/2015,Drugs,Stoke Heath Prison Healthcare,AAH PHARMACEUTICALS,81494892N,9.48,546 5733 22
Department of Health,CT Revenue Funds,03/12/2015,Drugs,Stoke Heath Prison Healthcare,AAH PHARMACEUTICALS,81494892N,47.4,546 5733 22
Department of Health,CT Revenue Funds,03/12/2015,Drugs,Oswestry Minor Injuries Unit,LEXON UK LTD,SO9784903,99.2,661 2658 33
Department of Health,CT Revenue Funds,03/12/2015,Drugs,Oswestry Minor Injuries Unit,LEXON UK LTD,SO9784903,19.84,661 2658 33
Department of Health,CT Revenue Funds,03/12/2015,Drugs,Oswestry Minor Injuries Unit,LEXON UK LTD,SO9790189,6.32,661 2658 33
Department of Health,CT Revenue Funds,03/12/2015,Drugs,Oswestry Minor Injuries Unit,LEXON UK LTD,SO9790189,31.6,661 2658 33
Department of Health,CT Revenue Funds,03/12/2015,Drugs,Stoke Heath Prison Healthcare,LEXON UK LTD,SO9887454,83,661 2658 33
Department of Health,CT Revenue Funds,03/12/2015,Drugs,Stoke Heath Prison Healthcare,LEXON UK LTD,SO9887454,16.6,661 2658 33
Department of Health,CT Revenue Funds,03/12/2015,DWP Direct Earnings Attachment,Payables,DEPARTMENT FOR WORK AND PENSIONS,NP042517C/YY434806B NOV15,65.12,
Department of Health,CT Revenue Funds,03/12/2015,Enteral Feeding,Community Childrens Nurses,GB UK HEALTHCARE LTD,0000056033,19.6,933 1964 16
Department of Health,CT Revenue Funds,03/12/2015,Enteral Feeding,Community Childrens Nurses,GB UK HEALTHCARE LTD,0000056033,98,933 1964 16
Department of Health,CT Revenue Funds,03/12/2015,Enteral Feeding,Community Childrens Nurses,GB UK HEALTHCARE LTD,0000056097,18,933 1964 16
Department of Health,CT Revenue Funds,03/12/2015,Enteral Feeding,Community Childrens Nurses,GB UK HEALTHCARE LTD,0000056097,90,933 1964 16
Department of Health,CT Revenue Funds,03/12/2015,Enteral Feeding,Community Childrens Nurses,GB UK HEALTHCARE LTD,0000056104,19.6,933 1964 16
Department of Health,CT Revenue Funds,03/12/2015,Enteral Feeding,Community Childrens Nurses,GB UK HEALTHCARE LTD,0000056104,98,933 1964 16
Department of Health,CT Revenue Funds,03/12/2015,Enteral Feeding,Community Childrens Nurses,GB UK HEALTHCARE LTD,0000056157,19.6,933 1964 16
Department of Health,CT Revenue Funds,03/12/2015,Enteral Feeding,Community Childrens Nurses,GB UK HEALTHCARE LTD,0000056157,98,933 1964 16
Department of Health,CT Revenue Funds,03/12/2015,Enteral Feeding,Community Childrens Nurses,GB UK HEALTHCARE LTD,0000056164,17,933 1964 16
Department of Health,CT Revenue Funds,03/12/2015,Enteral Feeding,Community Childrens Nurses,GB UK HEALTHCARE LTD,0000056164,85,933 1964 16
Department of Health,CT Revenue Funds,03/12/2015,Enteral Feeding,Community Childrens Nurses,GB UK HEALTHCARE LTD,0000056166,19.6,933 1964 16
Department of Health,CT Revenue Funds,03/12/2015,Enteral Feeding,Community Childrens Nurses,GB UK HEALTHCARE LTD,0000056166,98,933 1964 16
Department of Health,CT Revenue Funds,03/12/2015,Enteral Feeding,Community Childrens Nurses,GB UK HEALTHCARE LTD,0000056266,17,933 1964 16
Department of Health,CT Revenue Funds,03/12/2015,Enteral Feeding,Community Childrens Nurses,GB UK HEALTHCARE LTD,0000056266,85,933 1964 16
Department of Health,CT Revenue Funds,03/12/2015,External Contracts : Catering,Bishops Castle Hospital Management,COVERAGE CARE LTD,PSI97549,2971.73,
Department of Health,CT Revenue Funds,03/12/2015,External Contracts : Domestics,MSK Rheumatology,CLEVELAND CLEANING LIMITED,04/9628,632.83,
Department of Health,CT Revenue Funds,03/12/2015,External Contracts : Domestics,Community Equipment Stores,DUSTBUSTERS,15/DB7021,84,
Department of Health,CT Revenue Funds,03/12/2015,External Contracts : Domestics,Community Matrons Telford,DUSTBUSTERS,15/DB7028,24,
Department of Health,CT Revenue Funds,03/12/2015,External Contracts : Domestics,Community Equipment Stores,DUSTBUSTERS,15/DB7029,84,
Department of Health,CT Revenue Funds,03/12/2015,External Contracts : Domestics,South East Interdisciplinary Teams,CLEANIT CLEANING SERVICES,225380,270.83,
Department of Health,CT Revenue Funds,03/12/2015,External Contracts : Domestics,South East Interdisciplinary Teams,MJS WINDOW CLEANING,23.11.15 MUCH WENLOCK DN'S,30,
Department of Health,CT Revenue Funds,03/12/2015,External Contracts : Domestics,Organisational Development,AFRESH CLEANING SERVICE,317,667.5,
Department of Health,CT Revenue Funds,03/12/2015,Fair Share Credit Union,Payables,FAIRSHARE CREDIT UNION LTD,NOV15,540,
Department of Health,CT Revenue Funds,03/12/2015,Fire/Security/Alarm Equipment,Bridgnorth Hospital Management,SITEWATCH FIRE & SURVEILLANCE LTD,32025,45,
Department of Health,CT Revenue Funds,03/12/2015,General And Acute,Bridgnorth Hospital Outpatients,NUFFIELD HEALTH,222971,369,564 2911 37
Department of Health,CT Revenue Funds,03/12/2015,General And Acute,Bridgnorth Hospital Outpatients,NUFFIELD HEALTH,222972,369,564 2911 37
Department of Health,CT Charitable Funds,03/12/2015,Grants re Patients Welfare,SCW1 Whitchurch Hospital Patient Welfare,HORIZON SOFT DRINKS LTD,103779,12.53,377 5375 11
Department of Health,CT Charitable Funds,03/12/2015,Grants re Patients Welfare,SCW1 Whitchurch Hospital Patient Welfare,HORIZON SOFT DRINKS LTD,103779,2.51,377 5375 11
Department of Health,CT Charitable Funds,03/12/2015,Grants re Patients Welfare,SCW1 Whitchurch Hospital Patient Welfare,HORIZON SOFT DRINKS LTD,103780,2.51,377 5375 11
Department of Health,CT Charitable Funds,03/12/2015,Grants re Patients Welfare,SCW1 Whitchurch Hospital Patient Welfare,HORIZON SOFT DRINKS LTD,103780,12.53,377 5375 11
Department of Health,CT Charitable Funds,03/12/2015,Grants re Patients Welfare,SCW1 Whitchurch Hospital Patient Welfare,HORIZON SOFT DRINKS LTD,104347,5.01,377 5375 11
Department of Health,CT Charitable Funds,03/12/2015,Grants re Patients Welfare,SCW1 Whitchurch Hospital Patient Welfare,HORIZON SOFT DRINKS LTD,104347,25.06,377 5375 11
Department of Health,CT Revenue Funds,03/12/2015,Hearing Aids : Purchases,New Born Hearing Screening,GENESYS MEDICAL SOLUTIONS,IN029933,756,
Department of Health,CT Revenue Funds,03/12/2015,Hearing Aids : Purchases,New Born Hearing Screening,GENESYS MEDICAL SOLUTIONS,IN029933,151.2,
Department of Health,CT Revenue Funds,03/12/2015,Hoists/Slings,Community Equipment Stores,OSPREY HEALTHCARE LTD,11692,-5,
Department of Health,CT Revenue Funds,03/12/2015,Hoists/Slings,Community Equipment Stores,OSPREY HEALTHCARE LTD,11692,54,
Department of Health,CT Revenue Funds,03/12/2015,Hoists/Slings,Community Equipment Stores,OSPREY HEALTHCARE LTD,11692,270,
Department of Health,CT Revenue Funds,03/12/2015,Hoists/Slings,Community Equipment Stores,OSPREY HEALTHCARE LTD,11692,-1,
Department of Health,CT Revenue Funds,03/12/2015,Home Management daily Living Aids Miscellaneous Appliances,Community Equipment Stores,SIDHIL LTD,586153,47.92,461 1277 66
Department of Health,CT Revenue Funds,03/12/2015,Home Management daily Living Aids Miscellaneous Appliances,Community Equipment Stores,SIDHIL LTD,586153,239.58,461 1277 66
Department of Health,CT Revenue Funds,03/12/2015,Home Management daily Living Aids Miscellaneous Appliances,Community Equipment Stores,HEALTHCARE MATTERS,64230,140,862 9754 77
Department of Health,CT Revenue Funds,03/12/2015,Home Management daily Living Aids Miscellaneous Appliances,Community Equipment Stores,HEALTHCARE MATTERS,64231,136.25,862 9754 77
Department of Health,CT Revenue Funds,03/12/2015,Home Management daily Living Aids Miscellaneous Appliances,Community Equipment Stores,HEALTHCARE MATTERS,64232,70,862 9754 77
Department of Health,CT Revenue Funds,03/12/2015,Home Management daily Living Aids Miscellaneous Appliances,Community Equipment Stores,HEALTHCARE MATTERS,64233,96.25,862 9754 77
Department of Health,CT Revenue Funds,03/12/2015,Home Management daily Living Aids Miscellaneous Appliances,Community Equipment Stores,HEALTHCARE MATTERS,64234,70,862 9754 77
Department of Health,CT Revenue Funds,03/12/2015,Home Management daily Living Aids Miscellaneous Appliances,Community Equipment Stores,HEALTHCARE MATTERS,64235,69.73,862 9754 77
Department of Health,CT Revenue Funds,03/12/2015,Home Management daily Living Aids Miscellaneous Appliances,Community Equipment Stores,HEALTHCARE MATTERS,64236,204.01,862 9754 77
Department of Health,CT Revenue Funds,03/12/2015,Home Management daily Living Aids Miscellaneous Appliances,Community Equipment Stores,HEALTHCARE MATTERS,64239,168.25,862 9754 77
Department of Health,CT Revenue Funds,03/12/2015,Home Management daily Living Aids Miscellaneous Appliances,Community Equipment Stores,HEALTHCARE MATTERS,64275,204.11,862 9754 77
Department of Health,CT Revenue Funds,03/12/2015,Home Management daily Living Aids Miscellaneous Appliances,Community Equipment Stores,HEALTHCARE MATTERS,64276,70,862 9754 77
Department of Health,CT Revenue Funds,03/12/2015,Home Management daily Living Aids Miscellaneous Appliances,Community Equipment Stores,HEALTHCARE MATTERS,64277,309.12,862 9754 77
Department of Health,CT Revenue Funds,03/12/2015,Home Management daily Living Aids Miscellaneous Appliances,Community Equipment Stores,HEALTHCARE MATTERS,64278,269.24,862 9754 77
Department of Health,CT Revenue Funds,03/12/2015,Home Management daily Living Aids Miscellaneous Appliances,Community Equipment Stores,HEALTHCARE MATTERS,64279,75,862 9754 77
Department of Health,CT Revenue Funds,03/12/2015,Home Management daily Living Aids Miscellaneous Appliances,Community Equipment Stores,HEALTHCARE MATTERS,64280,87.5,862 9754 77
Department of Health,CT Revenue Funds,03/12/2015,Home Management daily Living Aids Miscellaneous Appliances,Community Equipment Stores,IKA MOBILITY,IN0759,25,971 5578 82
Department of Health,CT Revenue Funds,03/12/2015,Home Management daily Living Aids Miscellaneous Appliances,Community Equipment Stores,IKA MOBILITY,IN0759,-25,971 5578 82
Department of Health,CT Revenue Funds,03/12/2015,Home Management daily Living Aids Miscellaneous Appliances,Community Equipment Stores,IKA MOBILITY,IN0759,125,971 5578 82
Department of Health,CT Revenue Funds,03/12/2015,Home Management daily Living Aids Miscellaneous Appliances,Community Equipment Stores,IKA MOBILITY,IN0760,25,971 5578 82
Department of Health,CT Revenue Funds,03/12/2015,Home Management daily Living Aids Miscellaneous Appliances,Community Equipment Stores,IKA MOBILITY,IN0760,125,971 5578 82
Department of Health,CT Revenue Funds,03/12/2015,Home Management daily Living Aids Miscellaneous Appliances,Community Equipment Stores,IKA MOBILITY,IN0760,-25,971 5578 82
Department of Health,CT Revenue Funds,03/12/2015,Home Management daily Living Aids Miscellaneous Appliances,Community Equipment Stores,KENWAY MOBILITY,KS0009119,96.25,
Department of Health,CT Revenue Funds,03/12/2015,Home Management daily Living Aids Miscellaneous Appliances,Community Equipment Stores,KENWAY MOBILITY,KS000912,180.5,
Department of Health,CT Revenue Funds,03/12/2015,Home Management daily Living Aids Miscellaneous Appliances,Community Equipment Stores,KENWAY MOBILITY,KS000914,115.5,
Department of Health,CT Revenue Funds,03/12/2015,Home Management daily Living Aids Miscellaneous Appliances,Community Equipment Stores,KENWAY MOBILITY,KS000915,134.75,
Department of Health,CT Revenue Funds,03/12/2015,Home Management daily Living Aids Miscellaneous Appliances,Community Equipment Stores,KENWAY MOBILITY,KS000916,166.3,
Department of Health,CT Revenue Funds,03/12/2015,Home Management daily Living Aids Miscellaneous Appliances,Community Equipment Stores,KENWAY MOBILITY,KS000917,-158.26,
Department of Health,CT Revenue Funds,03/12/2015,Home Management daily Living Aids Miscellaneous Appliances,Community Equipment Stores,KENWAY MOBILITY,KS000917,158.25,
Department of Health,CT Revenue Funds,03/12/2015,Home Management daily Living Aids Miscellaneous Appliances,Community Equipment Stores,KENWAY MOBILITY,KS000917,158.26,
Department of Health,CT Revenue Funds,03/12/2015,Home Management daily Living Aids Miscellaneous Appliances,Community Equipment Stores,KENWAY MOBILITY,KS000917 30.11.15,115.5,
Department of Health,CT Revenue Funds,03/12/2015,Home Management daily Living Aids Miscellaneous Appliances,Community Equipment Stores,KENWAY MOBILITY,KS000920,115.5,
Department of Health,CT Revenue Funds,03/12/2015,Hospital Saturday Fund,Payables,BIRMINGHAM HOSPITAL SATURDAY FUND,NOV15,127.84,
Department of Health,CT Revenue Funds,03/12/2015,Interpreting Services,Shrewsbury and Atcham Physiotherapy Clinics,VISS SIGN LANGUAGE INTERPRETING SERVICE,5347,118.75,875 9280 71
Department of Health,CT Revenue Funds,03/12/2015,Interpreting Services,Shrewsbury and Atcham Physiotherapy Clinics,VISS SIGN LANGUAGE INTERPRETING SERVICE,5349,118.75,875 9280 71
Department of Health,CT Revenue Funds,03/12/2015,Laboratory External Tests,Occupational Health Shropshire,MIDLAND PATHOLOGY SERVICES LIMITED,OHSA D 11 2015,607.8,
Department of Health,CT Revenue Funds,03/12/2015,Laboratory External Tests,Occupational Health Stoke,MIDLAND PATHOLOGY SERVICES LIMITED,SCHA D 11 2015,231,
Department of Health,CT Revenue Funds,03/12/2015,Mattress Systems,Community Equipment Stores,FRONTIER THERAPEUTICS,420441,737.12,700 8536 57
Department of Health,CT Revenue Funds,03/12/2015,Mattress Systems,Community Equipment Stores,FRONTIER THERAPEUTICS,420441,3685.6,700 8536 57
Department of Health,CT Revenue Funds,03/12/2015,Mattress Systems,Community Equipment Stores,FRONTIER THERAPEUTICS,420452,2895.6,700 8536 57
Department of Health,CT Revenue Funds,03/12/2015,Mattress Systems,Community Equipment Stores,FRONTIER THERAPEUTICS,420452,579.12,700 8536 57
Department of Health,CT Revenue Funds,03/12/2015,Mattress Systems,Community Equipment Stores,IKA MOBILITY,IN0758,5950,971 5578 82
Department of Health,CT Revenue Funds,03/12/2015,Mattress Systems,Community Equipment Stores,IKA MOBILITY,IN0758,1190,971 5578 82
Department of Health,CT Revenue Funds,03/12/2015,Medical & Surgical Equipment : Disposable,Bridgnorth Hospital Minor Injuries Unit,MEDTRONIC LTD,1051317439,41,467 2545 26
Department of Health,CT Revenue Funds,03/12/2015,Medical & Surgical Equipment : Disposable,Bridgnorth Hospital Minor Injuries Unit,MEDTRONIC LTD,1051317439,8.2,467 2545 26
Department of Health,CT Revenue Funds,03/12/2015,Medical Gases,Ludlow Hospital Inpatient Wards,BOC LTD,3033016497,8.84,226 5565 55
Department of Health,CT Revenue Funds,03/12/2015,Medical Gases,Ludlow Hospital Inpatient Wards,BOC LTD,3033016497,44.17,226 5565 55
Department of Health,CT Revenue Funds,03/12/2015,Medical Gases,Whitchurch Hospital Inpatient Ward,BOC LTD,3033035119,38.65,226 5565 55
Department of Health,CT Revenue Funds,03/12/2015,Medical Gases,Whitchurch Hospital Inpatient Ward,BOC LTD,3033035119,7.73,226 5565 55
Department of Health,CT Revenue Funds,03/12/2015,Medical Gases,SpecialCare and Access,BOC LTD,3033051899,35.85,226 5565 55
Department of Health,CT Revenue Funds,03/12/2015,Medical Gases,SpecialCare and Access,BOC LTD,3033051899,7.17,226 5565 55
Department of Health,CT Revenue Funds,03/12/2015,Medical Gases,Whitchurch Hospital Inpatient Ward,BOC LTD,3033062717,38.65,226 5565 55
Department of Health,CT Revenue Funds,03/12/2015,Medical Gases,Whitchurch Hospital Inpatient Ward,BOC LTD,3033062717,7.73,226 5565 55
Department of Health,CT Revenue Funds,03/12/2015,Medical Gases,SpecialCare and Access,BOC LTD,3033062720,23.55,226 5565 55
Department of Health,CT Revenue Funds,03/12/2015,Medical Gases,SpecialCare and Access,BOC LTD,3033062720,4.71,226 5565 55
Department of Health,CT Revenue Funds,03/12/2015,Medical Gases,Ludlow Hospital Inpatient Wards,BOC LTD,3033062724,45.15,226 5565 55
Department of Health,CT Revenue Funds,03/12/2015,Medical Gases,Ludlow Hospital Inpatient Wards,BOC LTD,3033062724,9.03,226 5565 55
Department of Health,CT Revenue Funds,03/12/2015,Medical Gases,SpecialCare and Access,BOC LTD,3033069170,4.71,226 5565 55
Department of Health,CT Revenue Funds,03/12/2015,Medical Gases,SpecialCare and Access,BOC LTD,3033069170,23.55,226 5565 55
Department of Health,CT Revenue Funds,03/12/2015,Medical Gases,Bridgnorth Hospital Inpatient Ward,BOC LTD,3033076684,10.14,226 5565 55
Department of Health,CT Revenue Funds,03/12/2015,Medical Gases,Bridgnorth Hospital Inpatient Ward,BOC LTD,3033076684,50.72,226 5565 55
Department of Health,CT Revenue Funds,03/12/2015,Medical Gases,MSK Rheumatology,BOC LTD,3033141915,4.42,226 5565 55
Department of Health,CT Revenue Funds,03/12/2015,Medical Gases,MSK Rheumatology,BOC LTD,3033141915,0.88,226 5565 55
Department of Health,CT Revenue Funds,03/12/2015,Medical Gases,Whitchurch Hospital Inpatient Ward,BOC LTD,3033146852,252.57,226 5565 55
Department of Health,CT Revenue Funds,03/12/2015,Medical Gases,Whitchurch Hospital Inpatient Ward,BOC LTD,3033146852,50.52,226 5565 55
Department of Health,CT Revenue Funds,03/12/2015,Medical Gases,Bridgnorth Hospital Inpatient Ward,BOC LTD,3033146865,83.96,226 5565 55
Department of Health,CT Revenue Funds,03/12/2015,Medical Gases,Bridgnorth Hospital Inpatient Ward,BOC LTD,3033146865,419.8,226 5565 55
Department of Health,CT Revenue Funds,03/12/2015,Medical Gases,APCS Administration,BOC LTD,3033161391,0.88,226 5565 55
Department of Health,CT Revenue Funds,03/12/2015,Medical Gases,APCS Administration,BOC LTD,3033161391,4.42,226 5565 55
Department of Health,CT Revenue Funds,03/12/2015,Medical Gases,Oswestry Minor Injuries Unit,BOC LTD,3033199200,14.29,226 5565 55
Department of Health,CT Revenue Funds,03/12/2015,Medical Gases,Oswestry Minor Injuries Unit,BOC LTD,3033199200,71.45,226 5565 55
Department of Health,CT Revenue Funds,03/12/2015,Medical Gases,Whitchurch Hospital Inpatient Ward,BOC LTD,3033236117,7.73,226 5565 55
Department of Health,CT Revenue Funds,03/12/2015,Medical Gases,Whitchurch Hospital Inpatient Ward,BOC LTD,3033236117,38.65,226 5565 55
Department of Health,CT Revenue Funds,03/12/2015,Meeting Expenses/Room Hire,Trust Board Premises- Wroxeter Hotel,WROXETER HOTEL,FB12654,1192.08,
Department of Health,CT Revenue Funds,03/12/2015,Meeting Expenses/Room Hire,Trust Board Premises- Wroxeter Hotel,WROXETER HOTEL,FB12654,238.42,
Department of Health,CT Revenue Funds,03/12/2015,Meeting Expenses/Room Hire,Shropshire CAMHS Team Premises-Haughmond View Medical Practice,HAUGHMOND VIEW MEDICAL PRACTICE,1179,45,
Department of Health,CT Revenue Funds,03/12/2015,Meeting Expenses/Room Hire,Diabetes Specialist Nursing Premises-Marysville Family Medical Practice,MARYSVILLE MEDICAL PRACTICE,01743-145,120,
Department of Health,CT Revenue Funds,03/12/2015,Meeting Expenses/Room Hire,Podiatry Services Premises-Radbrook Green Surgery,RADBROOK GREEN SURGERY,392/CHIR/15,150,
Department of Health,CT Revenue Funds,03/12/2015,Miscellaneous Expenditure,Dudley School Nurses,DUDLEY METROPOLITAN BOROUGH COUNCIL,20706114 345157,155.55,
Department of Health,CT Revenue Funds,03/12/2015,Miscellaneous Expenditure,South West Interdisciplinary Teams,EMMA JONES,REFUND PRESCRIPTION CHG,8.2,
Department of Health,CT Revenue Funds,03/12/2015,Miscellaneous Expenditure,South West Interdisciplinary Teams,MS LISA AUSTIN,REFUND PRESCRIPTION CHG,8.2,
Department of Health,CT Revenue Funds,03/12/2015,Miscellaneous Expenditure,South West Interdisciplinary Teams,JULIE BLOWER,REFUND PRESCRIPTION CHG,8.2,
Department of Health,CT Revenue Funds,03/12/2015,Miscellaneous Expenditure,South West Interdisciplinary Teams,KERRYN RANKINE,REFUND PRESCRIPTION CHG,8.2,
Department of Health,CT Revenue Funds,03/12/2015,Miscellaneous Expenditure,South West Interdisciplinary Teams,A SHARRAD,REFUND PRESCRIPTION CHG,8.2,
Department of Health,CT Revenue Funds,03/12/2015,Miscellaneous Expenditure,South West Interdisciplinary Teams,KARL NASH,REFUND PRESCRIPTION CHG,8.2,
Department of Health,CT Revenue Funds,03/12/2015,Miscellaneous Expenditure,South West Interdisciplinary Teams,SUSAN WOOD,REFUND PRESCRIPTION CHG,8.2,
Department of Health,CT Revenue Funds,03/12/2015,Miscellaneous Expenditure,South West Interdisciplinary Teams,MRS LUCY DAVIES,REFUND PRESCRIPTION CHG,8.2,
Department of Health,CT Revenue Funds,03/12/2015,Mobile Phones,Shrewsbury and Atcham South Interdisciplinary Teams,ORANGE PCS LTD,01217566878,30.59,771 5920 16
Department of Health,CT Revenue Funds,03/12/2015,Mobile Phones,Bishops Castle Hospital Inpatient Ward,ORANGE PCS LTD,01217566878,8.53,771 5920 16
Department of Health,CT Revenue Funds,03/12/2015,Mobile Phones,ALD Community Nurses (T&W),ORANGE PCS LTD,01217566878,2.4,771 5920 16
Department of Health,CT Revenue Funds,03/12/2015,Mobile Phones,Rapid Response (T&W),ORANGE PCS LTD,01217566878,11.81,771 5920 16
Department of Health,CT Revenue Funds,03/12/2015,Mobile Phones,Respiratory Liaison Nurses (T&W),ORANGE PCS LTD,01217566878,13.98,771 5920 16
Department of Health,CT Revenue Funds,03/12/2015,Mobile Phones,Ludlow Hospital Physiotherapy,ORANGE PCS LTD,01217566878,0.8,771 5920 16
Department of Health,CT Revenue Funds,03/12/2015,Mobile Phones,Ludlow Hospital Occupational Therapy,ORANGE PCS LTD,01217566878,7,771 5920 16
Department of Health,CT Revenue Funds,03/12/2015,Mobile Phones,Ludlow Hospital Discharge Liaison,ORANGE PCS LTD,01217566878,11.89,771 5920 16
Department of Health,CT Revenue Funds,03/12/2015,Mobile Phones,Oswestry DAART,ORANGE PCS LTD,01217566878,0.7,771 5920 16
Department of Health,CT Revenue Funds,03/12/2015,Mobile Phones,Podiatry Services,ORANGE PCS LTD,01217566878,42.58,771 5920 16
Department of Health,CT Revenue Funds,03/12/2015,Mobile Phones,Bridgnorth Hospital Administration,ORANGE PCS LTD,01217566878,11.3,771 5920 16
Department of Health,CT Revenue Funds,03/12/2015,Mobile Phones,North East Shropshire Community Matrons,ORANGE PCS LTD,01217566878,17.66,771 5920 16
Department of Health,CT Revenue Funds,03/12/2015,Mobile Phones,APCS - Rheumatology,ORANGE PCS LTD,01217566878,3.03,771 5920 16
Department of Health,CT Revenue Funds,03/12/2015,Mobile Phones,Trainee Health Visitors,ORANGE PCS LTD,01217566878,258.54,771 5920 16
Department of Health,CT Revenue Funds,03/12/2015,Mobile Phones,South West Interdisciplinary Teams,ORANGE PCS LTD,01217566878,764.27,771 5920 16
Department of Health,CT Revenue Funds,03/12/2015,Mobile Phones,APCS Respiratory,ORANGE PCS LTD,01217566878,53.13,771 5920 16
Department of Health,CT Revenue Funds,03/12/2015,Mobile Phones,ICS Central,ORANGE PCS LTD,01217566878,220.02,771 5920 16
Department of Health,CT Revenue Funds,03/12/2015,Mobile Phones,Quality,ORANGE PCS LTD,01217566878,60.36,771 5920 16
Department of Health,CT Revenue Funds,03/12/2015,Mobile Phones,Communications,ORANGE PCS LTD,01217566878,1.57,771 5920 16
Department of Health,CT Revenue Funds,03/12/2015,Mobile Phones,CAMHS Youth Offending Team,ORANGE PCS LTD,01217566878,5.32,771 5920 16
Department of Health,CT Revenue Funds,03/12/2015,Mobile Phones,Ludlow Hospital Occupational Therapy,ORANGE PCS LTD,01217566878,1.4,771 5920 16
Department of Health,CT Revenue Funds,03/12/2015,Mobile Phones,School Community Cluster (T&W),ORANGE PCS LTD,01217566878,23.33,771 5920 16
Department of Health,CT Revenue Funds,03/12/2015,Mobile Phones,Shropshire Primary CAMHS Service,ORANGE PCS LTD,01217566878,27.77,771 5920 16
Department of Health,CT Revenue Funds,03/12/2015,Mobile Phones,Shropshire CAMHS Team,ORANGE PCS LTD,01217566878,262.87,771 5920 16
Department of Health,CT Revenue Funds,03/12/2015,Mobile Phones,Home Respite,ORANGE PCS LTD,01217566878,16.07,771 5920 16
Department of Health,CT Revenue Funds,03/12/2015,Mobile Phones,Community Childrens Nurses,ORANGE PCS LTD,01217566878,42.96,771 5920 16
Department of Health,CT Revenue Funds,03/12/2015,Mobile Phones,Bridgnorth Hospital Management,ORANGE PCS LTD,01217566878,9,771 5920 16
Department of Health,CT Revenue Funds,03/12/2015,Mobile Phones,North East Shropshire Community Matrons,ORANGE PCS LTD,01217566878,3.53,771 5920 16
Department of Health,CT Revenue Funds,03/12/2015,Mobile Phones,Oswestry Minor Injuries Unit,ORANGE PCS LTD,01217566878,1.55,771 5920 16
Department of Health,CT Revenue Funds,03/12/2015,Mobile Phones,Bridgnorth Hospital Hotel Services,ORANGE PCS LTD,01217566878,3.56,771 5920 16
Department of Health,CT Revenue Funds,03/12/2015,Mobile Phones,Bridgnorth Hospital Physiotherapy,ORANGE PCS LTD,01217566878,0.8,771 5920 16
Department of Health,CT Revenue Funds,03/12/2015,Mobile Phones,Shrewsbury and Atcham North Interdisciplinary Teams,ORANGE PCS LTD,01217566878,165.75,771 5920 16
Department of Health,CT Revenue Funds,03/12/2015,Mobile Phones,Information Governance,ORANGE PCS LTD,01217566878,17.33,771 5920 16
Department of Health,CT Revenue Funds,03/12/2015,Mobile Phones,Information,ORANGE PCS LTD,01217566878,10.35,771 5920 16
Department of Health,CT Revenue Funds,03/12/2015,Mobile Phones,Finance Directorate Management,ORANGE PCS LTD,01217566878,3,771 5920 16
Department of Health,CT Revenue Funds,03/12/2015,Mobile Phones,Finance Directorate Management,ORANGE PCS LTD,01217566878,2,771 5920 16
Department of Health,CT Revenue Funds,03/12/2015,Mobile Phones,APCS - Rheumatology,ORANGE PCS LTD,01217566878,15.13,771 5920 16
Department of Health,CT Revenue Funds,03/12/2015,Mobile Phones,APCS - Management - Telford and Wrekin,ORANGE PCS LTD,01217566878,15.74,771 5920 16
Department of Health,CT Revenue Funds,03/12/2015,Mobile Phones,APCS - Management - Telford and Wrekin,ORANGE PCS LTD,01217566878,3.15,771 5920 16
Department of Health,CT Revenue Funds,03/12/2015,Mobile Phones,Quality & Nursing Management,ORANGE PCS LTD,01217566878,11.07,771 5920 16
Department of Health,CT Revenue Funds,03/12/2015,Mobile Phones,Strategy & Business Development,ORANGE PCS LTD,01217566878,3.31,771 5920 16
Department of Health,CT Revenue Funds,03/12/2015,Mobile Phones,Communications,ORANGE PCS LTD,01217566878,7.85,771 5920 16
Department of Health,CT Revenue Funds,03/12/2015,Mobile Phones,Operations Directorate Divisional Management,ORANGE PCS LTD,01217566878,14,771 5920 16
Department of Health,CT Revenue Funds,03/12/2015,Mobile Phones,Frail and Complex,ORANGE PCS LTD,01217566878,1.55,771 5920 16
Department of Health,CT Revenue Funds,03/12/2015,Mobile Phones,Operations Directorate Management,ORANGE PCS LTD,01217566878,14.38,771 5920 16
Department of Health,CT Revenue Funds,03/12/2015,Mobile Phones,New Born Hearing Screening,ORANGE PCS LTD,01217566878,6.29,771 5920 16
Department of Health,CT Revenue Funds,03/12/2015,Mobile Phones,Family Nurse Programme,ORANGE PCS LTD,01217566878,16.23,771 5920 16
Department of Health,CT Revenue Funds,03/12/2015,Mobile Phones,South Shropshire Health Visitors,ORANGE PCS LTD,01217566878,341.29,771 5920 16
Department of Health,CT Revenue Funds,03/12/2015,Mobile Phones,North Shropshire Health Visitors,ORANGE PCS LTD,01217566878,50.2,771 5920 16
Department of Health,CT Revenue Funds,03/12/2015,Mobile Phones,M Drayton Dental Practice,ORANGE PCS LTD,01217566878,1.4,771 5920 16
Department of Health,CT Revenue Funds,03/12/2015,Mobile Phones,Telford Child Development Centre,ORANGE PCS LTD,01217566878,3.5,771 5920 16
Department of Health,CT Revenue Funds,03/12/2015,Mobile Phones,Substance Misuse Teams,ORANGE PCS LTD,01217566878,2.34,771 5920 16
Department of Health,CT Revenue Funds,03/12/2015,Mobile Phones,School Community Cluster (T&W),ORANGE PCS LTD,01217566878,4.67,771 5920 16
Department of Health,CT Revenue Funds,03/12/2015,Mobile Phones,Home Respite,ORANGE PCS LTD,01217566878,3.21,771 5920 16
Department of Health,CT Revenue Funds,03/12/2015,Mobile Phones,Child Support Services Management,ORANGE PCS LTD,01217566878,2.82,771 5920 16
Department of Health,CT Revenue Funds,03/12/2015,Mobile Phones,Shropshire School Nurses,ORANGE PCS LTD,01217566878,315.69,771 5920 16
Department of Health,CT Revenue Funds,03/12/2015,Mobile Phones,Immunisations and Vaccinations,ORANGE PCS LTD,01217566878,85.86,771 5920 16
Department of Health,CT Revenue Funds,03/12/2015,Mobile Phones,Occupational Health Shropshire,ORANGE PCS LTD,01217566878,12.5,771 5920 16
Department of Health,CT Revenue Funds,03/12/2015,Mobile Phones,Information,ORANGE PCS LTD,01217566878,51.75,771 5920 16
Department of Health,CT Revenue Funds,03/12/2015,Mobile Phones,Dental Central Admin,ORANGE PCS LTD,01217566878,6.63,771 5920 16
Department of Health,CT Revenue Funds,03/12/2015,Mobile Phones,Child Speech and Language Therapy,ORANGE PCS LTD,01217566878,878.28,771 5920 16
Department of Health,CT Revenue Funds,03/12/2015,Mobile Phones,Child Speech and Language Therapy,ORANGE PCS LTD,01217566878,175.67,771 5920 16
Department of Health,CT Revenue Funds,03/12/2015,Mobile Phones,Telford Child Development Centre,ORANGE PCS LTD,01217566878,0.7,771 5920 16
Department of Health,CT Revenue Funds,03/12/2015,Mobile Phones,Substance Misuse Teams,ORANGE PCS LTD,01217566878,11.7,771 5920 16
Department of Health,CT Revenue Funds,03/12/2015,Mobile Phones,Bridge School Community Nursing,ORANGE PCS LTD,01217566878,3.89,771 5920 16
Department of Health,CT Revenue Funds,03/12/2015,Mobile Phones,CAMHS Team (T&W),ORANGE PCS LTD,01217566878,34.7,771 5920 16
Department of Health,CT Revenue Funds,03/12/2015,Mobile Phones,Community Nursing Team 5,ORANGE PCS LTD,01217566878,42.82,771 5920 16
Department of Health,CT Revenue Funds,03/12/2015,Mobile Phones,Continence Advisors (T&W),ORANGE PCS LTD,01217566878,5.84,771 5920 16
Department of Health,CT Revenue Funds,03/12/2015,Mobile Phones,Bridgnorth Hospital Inpatient Ward,ORANGE PCS LTD,01217566878,11.25,771 5920 16
Department of Health,CT Revenue Funds,03/12/2015,Mobile Phones,North West Shropshire Interdisciplinary Teams,ORANGE PCS LTD,01217566878,97.12,771 5920 16
Department of Health,CT Revenue Funds,03/12/2015,Mobile Phones,Whitchurch Hospital Hotel Services,ORANGE PCS LTD,01217566878,1.4,771 5920 16
Department of Health,CT Revenue Funds,03/12/2015,Mobile Phones,Oswestry DAART,ORANGE PCS LTD,01217566878,3.5,771 5920 16
Department of Health,CT Revenue Funds,03/12/2015,Mobile Phones,Community Nursing Team 1,ORANGE PCS LTD,01217566878,41.64,771 5920 16
Department of Health,CT Revenue Funds,03/12/2015,Mobile Phones,HR and Workforce,ORANGE PCS LTD,01217566878,51.74,771 5920 16
Department of Health,CT Revenue Funds,03/12/2015,Mobile Phones,Organisational Development,ORANGE PCS LTD,01217566878,37.71,771 5920 16
Department of Health,CT Revenue Funds,03/12/2015,Mobile Phones,Tissue Viability Nurses (T&W),ORANGE PCS LTD,01217566878,2.44,771 5920 16
Department of Health,CT Revenue Funds,03/12/2015,Mobile Phones,HR OD & Workforce Management,ORANGE PCS LTD,01217566878,3.21,771 5920 16
Department of Health,CT Revenue Funds,03/12/2015,Mobile Phones,Counter Fraud,ORANGE PCS LTD,01217566878,7.75,771 5920 16
Department of Health,CT Revenue Funds,03/12/2015,Mobile Phones,Counter Fraud,ORANGE PCS LTD,01217566878,1.55,771 5920 16
Department of Health,CT Revenue Funds,03/12/2015,Mobile Phones,Medicines Management,ORANGE PCS LTD,01217566878,0.7,771 5920 16
Department of Health,CT Revenue Funds,03/12/2015,Mobile Phones,PDS Out of Hours,ORANGE PCS LTD,01217566878,9.96,771 5920 16
Department of Health,CT Revenue Funds,03/12/2015,Mobile Phones,PDS Out of Hours,ORANGE PCS LTD,01217566878,1.99,771 5920 16
Department of Health,CT Revenue Funds,03/12/2015,Mobile Phones,Children and Families Division Management,ORANGE PCS LTD,01217566878,41.94,771 5920 16
Department of Health,CT Revenue Funds,03/12/2015,Mobile Phones,Community Services Division Management,ORANGE PCS LTD,01217566878,111.97,771 5920 16
Department of Health,CT Revenue Funds,03/12/2015,Mobile Phones,Community Medical Staff (T&W),ORANGE PCS LTD,01217566878,10.05,771 5920 16
Department of Health,CT Revenue Funds,03/12/2015,Mobile Phones,Shropshire Child Occupational Therapy,ORANGE PCS LTD,01217566878,7.96,771 5920 16
Department of Health,CT Revenue Funds,03/12/2015,Mobile Phones,Unit 7a Centurian Park Premises,ORANGE PCS LTD,01217566878,1.17,771 5920 16
Department of Health,CT Revenue Funds,03/12/2015,Mobile Phones,Dental Central Admin,ORANGE PCS LTD,01217566878,33.16,771 5920 16
Department of Health,CT Revenue Funds,03/12/2015,Mobile Phones,Shropshire Child Psychiatry,ORANGE PCS LTD,01217566878,2.35,771 5920 16
Department of Health,CT Revenue Funds,03/12/2015,Mobile Phones,Portico House Substance Misuse,ORANGE PCS LTD,01217566878,2.98,771 5920 16
Department of Health,CT Revenue Funds,03/12/2015,Mobile Phones,CAMHS Youth Offending Team,ORANGE PCS LTD,01217566878,26.6,771 5920 16
Department of Health,CT Revenue Funds,03/12/2015,Mobile Phones,Ludlow Hospital Physiotherapy,ORANGE PCS LTD,01217566878,4,771 5920 16
Department of Health,CT Revenue Funds,03/12/2015,Mobile Phones,M Drayton Dental Practice,ORANGE PCS LTD,01217566878,7,771 5920 16
Department of Health,CT Revenue Funds,03/12/2015,Mobile Phones,William Farr House,ORANGE PCS LTD,01217566878,0.26,771 5920 16
Department of Health,CT Revenue Funds,03/12/2015,Mobile Phones,South East Interdisciplinary Teams,ORANGE PCS LTD,01217566878,4.22,771 5920 16
Department of Health,CT Revenue Funds,03/12/2015,Mobile Phones,Children and Families Division Management,ORANGE PCS LTD,01217566878,8.39,771 5920 16
Department of Health,CT Revenue Funds,03/12/2015,Mobile Phones,Frail and Complex,ORANGE PCS LTD,01217566878,7.75,771 5920 16
Department of Health,CT Revenue Funds,03/12/2015,Mobile Phones,Telford Child Psychiatry,ORANGE PCS LTD,01217566878,24.99,771 5920 16
Department of Health,CT Revenue Funds,03/12/2015,Mobile Phones,Breast Feeding Lead,ORANGE PCS LTD,01217566878,13.06,771 5920 16
Department of Health,CT Revenue Funds,03/12/2015,Mobile Phones,North Telford Health Visitors,ORANGE PCS LTD,01217566878,753.91,771 5920 16
Department of Health,CT Revenue Funds,03/12/2015,Mobile Phones,Respiratory Liaison Nurses (T&W),ORANGE PCS LTD,01217566878,69.9,771 5920 16
Department of Health,CT Revenue Funds,03/12/2015,Mobile Phones,Bridgnorth Hospital Physiotherapy,ORANGE PCS LTD,01217566878,4,771 5920 16
Department of Health,CT Revenue Funds,03/12/2015,Mobile Phones,Bridgnorth Hospital Management,ORANGE PCS LTD,01217566878,1.8,771 5920 16
Department of Health,CT Revenue Funds,03/12/2015,Mobile Phones,Single Point of Referral,ORANGE PCS LTD,01217566878,135.64,771 5920 16
Department of Health,CT Revenue Funds,03/12/2015,Mobile Phones,Bridgnorth Hospital Discharge Liaison,ORANGE PCS LTD,01217566878,0.83,771 5920 16
Department of Health,CT Revenue Funds,03/12/2015,Mobile Phones,Ludlow Hospital Management,ORANGE PCS LTD,01217566878,7.46,771 5920 16
Department of Health,CT Revenue Funds,03/12/2015,Mobile Phones,Bishops Castle Hospital Inpatient Ward,ORANGE PCS LTD,01217566878,1.71,771 5920 16
Department of Health,CT Revenue Funds,03/12/2015,Mobile Phones,Community Matrons Telford,ORANGE PCS LTD,01217566878,24.46,771 5920 16
Department of Health,CT Revenue Funds,03/12/2015,Mobile Phones,Community Neuro Rehabilitation Team (CNRT),ORANGE PCS LTD,01217566878,42.64,771 5920 16
Department of Health,CT Revenue Funds,03/12/2015,Mobile Phones,Wheelchair Services,ORANGE PCS LTD,01217566878,108.41,771 5920 16
Department of Health,CT Revenue Funds,03/12/2015,Mobile Phones,Wheelchair Services,ORANGE PCS LTD,01217566878,21.68,771 5920 16
Department of Health,CT Revenue Funds,03/12/2015,Mobile Phones,Macmillan Nursing,ORANGE PCS LTD,01217566878,8.02,771 5920 16
Department of Health,CT Revenue Funds,03/12/2015,Mobile Phones,Diabetes Specialist Nursing,ORANGE PCS LTD,01217566878,302.28,771 5920 16
Department of Health,CT Revenue Funds,03/12/2015,Mobile Phones,Falls Prevention,ORANGE PCS LTD,01217566878,17.57,771 5920 16
Department of Health,CT Revenue Funds,03/12/2015,Mobile Phones,Whitchurch Hospital Occupational Therapy,ORANGE PCS LTD,01217566878,3.5,771 5920 16
Department of Health,CT Revenue Funds,03/12/2015,Mobile Phones,Finance Directorate Management,ORANGE PCS LTD,01217566878,10,771 5920 16
Department of Health,CT Revenue Funds,03/12/2015,Mobile Phones,Trust Board,ORANGE PCS LTD,01217566878,20.84,771 5920 16
Department of Health,CT Revenue Funds,03/12/2015,Mobile Phones,Dudley School Nurses,ORANGE PCS LTD,01217566878,241.52,771 5920 16
Department of Health,CT Revenue Funds,03/12/2015,Mobile Phones,Community Hospitals & Out Patient Svces Divison Management,ORANGE PCS LTD,01217566878,56.74,771 5920 16
Department of Health,CT Revenue Funds,03/12/2015,Mobile Phones,Community Hospitals & Out Patient Svces Divison Management,ORANGE PCS LTD,01217566878,11.35,771 5920 16
Department of Health,CT Revenue Funds,03/12/2015,Mobile Phones,Telford Child Psychiatry,ORANGE PCS LTD,01217566878,5,771 5920 16
Department of Health,CT Revenue Funds,03/12/2015,Mobile Phones,Telford School Nurses,ORANGE PCS LTD,01217566878,207.42,771 5920 16
Department of Health,CT Revenue Funds,03/12/2015,Mobile Phones,Shrewsbury and Atcham South Interdisciplinary Teams,ORANGE PCS LTD,01217566878,152.95,771 5920 16
Department of Health,CT Revenue Funds,03/12/2015,Mobile Phones,Shrewsbury and Atcham Health Visitiors,ORANGE PCS LTD,01217566878,57.04,771 5920 16
Department of Health,CT Revenue Funds,03/12/2015,Mobile Phones,C Arms Dental Practice,ORANGE PCS LTD,01217566878,3.5,771 5920 16
Department of Health,CT Revenue Funds,03/12/2015,Mobile Phones,C Arms Dental Practice,ORANGE PCS LTD,01217566878,0.7,771 5920 16
Department of Health,CT Revenue Funds,03/12/2015,Mobile Phones,Shropshire Child Occupational Therapy,ORANGE PCS LTD,01217566878,39.78,771 5920 16
Department of Health,CT Revenue Funds,03/12/2015,Mobile Phones,Shropshire Child Comm Physiotherapy,ORANGE PCS LTD,01217566878,163.6,771 5920 16
Department of Health,CT Revenue Funds,03/12/2015,Mobile Phones,Safeguarding Team,ORANGE PCS LTD,01217566878,6.5,771 5920 16
Department of Health,CT Revenue Funds,03/12/2015,Mobile Phones,Child Support Services Management,ORANGE PCS LTD,01217566878,14.12,771 5920 16
Department of Health,CT Revenue Funds,03/12/2015,Mobile Phones,Telford School Nurses,ORANGE PCS LTD,01217566878,41.48,771 5920 16
Department of Health,CT Revenue Funds,03/12/2015,Mobile Phones,Shropshire School Nurses,ORANGE PCS LTD,01217566878,63.14,771 5920 16
Department of Health,CT Revenue Funds,03/12/2015,Mobile Phones,Paediatric Psychology,ORANGE PCS LTD,01217566878,2.25,771 5920 16
Department of Health,CT Revenue Funds,03/12/2015,Mobile Phones,Continence Services,ORANGE PCS LTD,01217566878,31.78,771 5920 16
Department of Health,CT Revenue Funds,03/12/2015,Mobile Phones,Bridgnorth Hospital Hotel Services,ORANGE PCS LTD,01217566878,0.71,771 5920 16
Department of Health,CT Revenue Funds,03/12/2015,Mobile Phones,Bridgnorth Hospital Occupational Therapy,ORANGE PCS LTD,01217566878,4,771 5920 16
Department of Health,CT Revenue Funds,03/12/2015,Mobile Phones,Bridgnorth Hospital Discharge Liaison,ORANGE PCS LTD,01217566878,4.15,771 5920 16
Department of Health,CT Revenue Funds,03/12/2015,Mobile Phones,Community Nursing Team 4,ORANGE PCS LTD,01217566878,61.34,771 5920 16
Department of Health,CT Revenue Funds,03/12/2015,Mobile Phones,Community Nursing Team 4,ORANGE PCS LTD,01217566878,12.27,771 5920 16
Department of Health,CT Revenue Funds,03/12/2015,Mobile Phones,Community Nursing Team 1,ORANGE PCS LTD,01217566878,208.22,771 5920 16
Department of Health,CT Revenue Funds,03/12/2015,Mobile Phones,Nurse Liaison Intermediate Care (T&W),ORANGE PCS LTD,01217566878,14.18,771 5920 16
Department of Health,CT Revenue Funds,03/12/2015,Mobile Phones,Ludlow Hospital Discharge Liaison,ORANGE PCS LTD,01217566878,2.38,771 5920 16
Department of Health,CT Revenue Funds,03/12/2015,Mobile Phones,North East Shropshire Interdisciplinary Teams,ORANGE PCS LTD,01217566878,382.5,771 5920 16
Department of Health,CT Revenue Funds,03/12/2015,Mobile Phones,Oswestry Minor Injuries Unit,ORANGE PCS LTD,01217566878,7.75,771 5920 16
Department of Health,CT Revenue Funds,03/12/2015,Mobile Phones,Community Neuro Rehabilitation Team (CNRT),ORANGE PCS LTD,01217566878,24.5,771 5920 16
Department of Health,CT Revenue Funds,03/12/2015,Mobile Phones,Whitchurch Hospital Inpatient Ward,ORANGE PCS LTD,01217566878,3.85,771 5920 16
Department of Health,CT Revenue Funds,03/12/2015,Mobile Phones,Podiatry Services,ORANGE PCS LTD,01217566878,212.89,771 5920 16
Department of Health,CT Revenue Funds,03/12/2015,Mobile Phones,Quality & Nursing Management,ORANGE PCS LTD,01217566878,55.33,771 5920 16
Department of Health,CT Revenue Funds,03/12/2015,Mobile Phones,Strategy & Business Development,ORANGE PCS LTD,01217566878,16.55,771 5920 16
Department of Health,CT Revenue Funds,03/12/2015,Mobile Phones,HR and Workforce,ORANGE PCS LTD,01217566878,10.35,771 5920 16
Department of Health,CT Revenue Funds,03/12/2015,Mobile Phones,Organisational Development,ORANGE PCS LTD,01217566878,7.54,771 5920 16
Department of Health,CT Revenue Funds,03/12/2015,Mobile Phones,IM&T Support,ORANGE PCS LTD,01217566878,309.03,771 5920 16
Department of Health,CT Revenue Funds,03/12/2015,Mobile Phones,Trainee Health Visitors,ORANGE PCS LTD,01217566878,51.71,771 5920 16
Department of Health,CT Revenue Funds,03/12/2015,Mobile Phones,APCS Respiratory,ORANGE PCS LTD,01217566878,10.63,771 5920 16
Department of Health,CT Revenue Funds,03/12/2015,Mobile Phones,Shrewsbury and Atcham Community Matrons,ORANGE PCS LTD,01217566878,30.26,771 5920 16
Department of Health,CT Revenue Funds,03/12/2015,Mobile Phones,Community Medical Staff (T&W),ORANGE PCS LTD,01217566878,50.25,771 5920 16
Department of Health,CT Revenue Funds,03/12/2015,Mobile Phones,New Born Hearing Screening,ORANGE PCS LTD,01217566878,31.47,771 5920 16
Department of Health,CT Revenue Funds,03/12/2015,Mobile Phones,CAMHS Learning Disabilities,ORANGE PCS LTD,01217566878,84.62,771 5920 16
Department of Health,CT Revenue Funds,03/12/2015,Mobile Phones,Shropshire Community Paediatric Medical Staff,ORANGE PCS LTD,01217566878,88,771 5920 16
Department of Health,CT Revenue Funds,03/12/2015,Mobile Phones,Bridge School Community Nursing,ORANGE PCS LTD,01217566878,19.47,771 5920 16
Department of Health,CT Revenue Funds,03/12/2015,Mobile Phones,Community Childrens Nurses,ORANGE PCS LTD,01217566878,214.78,771 5920 16
Department of Health,CT Revenue Funds,03/12/2015,Mobile Phones,Shropshire Primary CAMHS Service,ORANGE PCS LTD,01217566878,5.55,771 5920 16
Department of Health,CT Revenue Funds,03/12/2015,Mobile Phones,Shropshire CAMHS Team,ORANGE PCS LTD,01217566878,52.57,771 5920 16
Department of Health,CT Revenue Funds,03/12/2015,Mobile Phones,Reaching Out Services,ORANGE PCS LTD,01217566878,35.47,771 5920 16
Department of Health,CT Revenue Funds,03/12/2015,Mobile Phones,SpecialCare and Access,ORANGE PCS LTD,01217566878,8.01,771 5920 16
Department of Health,CT Revenue Funds,03/12/2015,Mobile Phones,Portico House Substance Misuse,ORANGE PCS LTD,01217566878,14.91,771 5920 16
Department of Health,CT Revenue Funds,03/12/2015,Mobile Phones,North Telford Health Visitors,ORANGE PCS LTD,01217566878,150.78,771 5920 16
Department of Health,CT Revenue Funds,03/12/2015,Mobile Phones,South Shropshire Health Visitors,ORANGE PCS LTD,01217566878,68.26,771 5920 16
Department of Health,CT Revenue Funds,03/12/2015,Mobile Phones,North Shropshire Health Visitors,ORANGE PCS LTD,01217566878,251.02,771 5920 16
Department of Health,CT Revenue Funds,03/12/2015,Mobile Phones,Nurse Liaison Intermediate Care (T&W),ORANGE PCS LTD,01217566878,70.91,771 5920 16
Department of Health,CT Revenue Funds,03/12/2015,Mobile Phones,Rapid Response (T&W),ORANGE PCS LTD,01217566878,59.03,771 5920 16
Department of Health,CT Revenue Funds,03/12/2015,Mobile Phones,Community Matrons Telford,ORANGE PCS LTD,01217566878,122.3,771 5920 16
Department of Health,CT Revenue Funds,03/12/2015,Mobile Phones,North East Shropshire Interdisciplinary Teams,ORANGE PCS LTD,01217566878,76.5,771 5920 16
Department of Health,CT Revenue Funds,03/12/2015,Mobile Phones,Bridgnorth Hospital Minor Injuries Unit,ORANGE PCS LTD,01217566878,3.5,771 5920 16
Department of Health,CT Revenue Funds,03/12/2015,Mobile Phones,Community Physiotherapy (T&W),ORANGE PCS LTD,01217566878,20.25,771 5920 16
Department of Health,CT Revenue Funds,03/12/2015,Mobile Phones,Macmillan Nursing,ORANGE PCS LTD,01217566878,40.09,771 5920 16
Department of Health,CT Revenue Funds,03/12/2015,Mobile Phones,Occupational Health Shropshire,ORANGE PCS LTD,01217566878,2.5,771 5920 16
Department of Health,CT Revenue Funds,03/12/2015,Mobile Phones,APCS Administration,ORANGE PCS LTD,01217566878,7.86,771 5920 16
Department of Health,CT Revenue Funds,03/12/2015,Mobile Phones,APCS Administration,ORANGE PCS LTD,01217566878,1.57,771 5920 16
Department of Health,CT Revenue Funds,03/12/2015,Mobile Phones,Governance and Strategy Management,ORANGE PCS LTD,01217566878,1.77,771 5920 16
Department of Health,CT Revenue Funds,03/12/2015,Mobile Phones,Shrewsbury and Atcham Community Matrons,ORANGE PCS LTD,01217566878,6.05,771 5920 16
Department of Health,CT Revenue Funds,03/12/2015,Mobile Phones,Community Neuro Rehabilitation Team (CNRT),ORANGE PCS LTD,01217566878,213.22,771 5920 16
Department of Health,CT Revenue Funds,03/12/2015,Mobile Phones,South West Interdisciplinary Teams,ORANGE PCS LTD,01217566878,152.85,771 5920 16
Department of Health,CT Revenue Funds,03/12/2015,Mobile Phones,Immunisations and Vaccinations,ORANGE PCS LTD,01217566878,17.17,771 5920 16
Department of Health,CT Revenue Funds,03/12/2015,Mobile Phones,Shrewsbury and Atcham Health Visitiors,ORANGE PCS LTD,01217566878,285.22,771 5920 16
Department of Health,CT Revenue Funds,03/12/2015,Mobile Phones,Shropshire Community Paediatric Medical Staff,ORANGE PCS LTD,01217566878,17.6,771 5920 16
Department of Health,CT Revenue Funds,03/12/2015,Mobile Phones,Ludlow Hospital Hotel Services,ORANGE PCS LTD,01217566878,4,771 5920 16
Department of Health,CT Revenue Funds,03/12/2015,Mobile Phones,Paediatric Psychology,ORANGE PCS LTD,01217566878,11.26,771 5920 16
Department of Health,CT Revenue Funds,03/12/2015,Mobile Phones,SpecialCare and Access,ORANGE PCS LTD,01217566878,40.07,771 5920 16
Department of Health,CT Revenue Funds,03/12/2015,Mobile Phones,Psychiatry Learning Disabilites,ORANGE PCS LTD,01217566878,1.6,771 5920 16
Department of Health,CT Revenue Funds,03/12/2015,Mobile Phones,Shropshire Child Psychiatry,ORANGE PCS LTD,01217566878,11.75,771 5920 16
Department of Health,CT Revenue Funds,03/12/2015,Mobile Phones,CAMHS Learning Disabilities,ORANGE PCS LTD,01217566878,423.1,771 5920 16
Department of Health,CT Revenue Funds,03/12/2015,Mobile Phones,ICS Management and Admin,ORANGE PCS LTD,01217566878,42.92,771 5920 16
Department of Health,CT Revenue Funds,03/12/2015,Mobile Phones,ICS Management and Admin,ORANGE PCS LTD,01217566878,8.58,771 5920 16
Department of Health,CT Revenue Funds,03/12/2015,Mobile Phones,Dudley School Nurses,ORANGE PCS LTD,01217566878,1207.56,771 5920 16
Department of Health,CT Revenue Funds,03/12/2015,Mobile Phones,William Farr House,ORANGE PCS LTD,01217566878,1.3,771 5920 16
Department of Health,CT Revenue Funds,03/12/2015,Mobile Phones,Medicines Management,ORANGE PCS LTD,01217566878,3.5,771 5920 16
Department of Health,CT Revenue Funds,03/12/2015,Mobile Phones,Shropshire FNP,ORANGE PCS LTD,01217566878,99.56,771 5920 16
Department of Health,CT Revenue Funds,03/12/2015,Mobile Phones,Shropshire Child Comm Physiotherapy,ORANGE PCS LTD,01217566878,32.72,771 5920 16
Department of Health,CT Revenue Funds,03/12/2015,Mobile Phones,Telford LAC Nurses,ORANGE PCS LTD,01217566878,3.04,771 5920 16
Department of Health,CT Revenue Funds,03/12/2015,Mobile Phones,ALD Community Nurses (T&W),ORANGE PCS LTD,01217566878,12,771 5920 16
Department of Health,CT Revenue Funds,03/12/2015,Mobile Phones,Community Nursing Team 5,ORANGE PCS LTD,01217566878,214.1,771 5920 16
Department of Health,CT Revenue Funds,03/12/2015,Mobile Phones,Admiral Nurse,ORANGE PCS LTD,01217566878,13.75,771 5920 16
Department of Health,CT Revenue Funds,03/12/2015,Mobile Phones,Community Physiotherapy (T&W),ORANGE PCS LTD,01217566878,4.05,771 5920 16
Department of Health,CT Revenue Funds,03/12/2015,Mobile Phones,Bridgnorth Hospital Minor Injuries Unit,ORANGE PCS LTD,01217566878,0.7,771 5920 16
Department of Health,CT Revenue Funds,03/12/2015,Mobile Phones,Bridgnorth Hospital Administration,ORANGE PCS LTD,01217566878,2.26,771 5920 16
Department of Health,CT Revenue Funds,03/12/2015,Mobile Phones,North West Shropshire Interdisciplinary Teams,ORANGE PCS LTD,01217566878,485.6,771 5920 16
Department of Health,CT Revenue Funds,03/12/2015,Mobile Phones,Bridgnorth Hospital Inpatient Ward,ORANGE PCS LTD,01217566878,2.25,771 5920 16
Department of Health,CT Revenue Funds,03/12/2015,Mobile Phones,Continence Advisors (T&W),ORANGE PCS LTD,01217566878,29.22,771 5920 16
Department of Health,CT Revenue Funds,03/12/2015,Mobile Phones,Ludlow Hospital Management,ORANGE PCS LTD,01217566878,37.29,771 5920 16
Department of Health,CT Revenue Funds,03/12/2015,Mobile Phones,Whitchurch Hospital Occupational Therapy,ORANGE PCS LTD,01217566878,0.7,771 5920 16
Department of Health,CT Revenue Funds,03/12/2015,Mobile Phones,Whitchurch Hospital Management,ORANGE PCS LTD,01217566878,9.82,771 5920 16
Department of Health,CT Revenue Funds,03/12/2015,Mobile Phones,Whitchurch Hospital Management,ORANGE PCS LTD,01217566878,1.96,771 5920 16
Department of Health,CT Revenue Funds,03/12/2015,Mobile Phones,Whitchurch Hospital Hotel Services,ORANGE PCS LTD,01217566878,7,771 5920 16
Department of Health,CT Revenue Funds,03/12/2015,Mobile Phones,ICS Central,ORANGE PCS LTD,01217566878,44,771 5920 16
Department of Health,CT Revenue Funds,03/12/2015,Mobile Phones,Quality,ORANGE PCS LTD,01217566878,12.07,771 5920 16
Department of Health,CT Revenue Funds,03/12/2015,Mobile Phones,Premises Management,ORANGE PCS LTD,01217566878,49.16,771 5920 16
Department of Health,CT Revenue Funds,03/12/2015,Mobile Phones,Premises Management,ORANGE PCS LTD,01217566878,9.83,771 5920 16
Department of Health,CT Revenue Funds,03/12/2015,Mobile Phones,Chairman and Chief Executives Office,ORANGE PCS LTD,01217566878,82.75,771 5920 16
Department of Health,CT Revenue Funds,03/12/2015,Mobile Phones,Trust Board,ORANGE PCS LTD,01217566878,104.22,771 5920 16
Department of Health,CT Revenue Funds,03/12/2015,Mobile Phones,ICS North East,ORANGE PCS LTD,01217566878,1.69,771 5920 16
Department of Health,CT Revenue Funds,03/12/2015,Mobile Phones,Community Services Division Management,ORANGE PCS LTD,01217566878,22.39,771 5920 16
Department of Health,CT Revenue Funds,03/12/2015,Mobile Phones,Operations Directorate Divisional Management,ORANGE PCS LTD,01217566878,92.01,771 5920 16
Department of Health,CT Revenue Funds,03/12/2015,Mobile Phones,Operations Directorate Divisional Management,ORANGE PCS LTD,01217566878,18.4,771 5920 16
Department of Health,CT Revenue Funds,03/12/2015,Mobile Phones,Unit 7a Centurian Park Premises,ORANGE PCS LTD,01217566878,5.86,771 5920 16
Department of Health,CT Revenue Funds,03/12/2015,Mobile Phones,CAMHS Team (T&W),ORANGE PCS LTD,01217566878,173.49,771 5920 16
Department of Health,CT Revenue Funds,03/12/2015,Mobile Phones,Psychiatry Learning Disabilites,ORANGE PCS LTD,01217566878,8,771 5920 16
Department of Health,CT Revenue Funds,03/12/2015,Mobile Phones,ICS North East,ORANGE PCS LTD,01217566878,8.46,771 5920 16
Department of Health,CT Revenue Funds,03/12/2015,Mobile Phones,Shropshire FNP,ORANGE PCS LTD,01217566878,19.91,771 5920 16
Department of Health,CT Revenue Funds,03/12/2015,Mobile Phones,South East Interdisciplinary Teams,ORANGE PCS LTD,01217566878,21.09,771 5920 16
Department of Health,CT Revenue Funds,03/12/2015,Mobile Phones,Operations Directorate Management,ORANGE PCS LTD,01217566878,71.92,771 5920 16
Department of Health,CT Revenue Funds,03/12/2015,Mobile Phones,Safeguarding Team,ORANGE PCS LTD,01217566878,32.51,771 5920 16
Department of Health,CT Revenue Funds,03/12/2015,Mobile Phones,Telford LAC Nurses,ORANGE PCS LTD,01217566878,15.2,771 5920 16
Department of Health,CT Revenue Funds,03/12/2015,Mobile Phones,Family Nurse Programme,ORANGE PCS LTD,01217566878,81.16,771 5920 16
Department of Health,CT Revenue Funds,03/12/2015,Mobile Phones,Admiral Nurse,ORANGE PCS LTD,01217566878,2.75,771 5920 16
Department of Health,CT Revenue Funds,03/12/2015,Mobile Phones,Continence Services,ORANGE PCS LTD,01217566878,6.36,771 5920 16
Department of Health,CT Revenue Funds,03/12/2015,Mobile Phones,Bridgnorth Hospital Occupational Therapy,ORANGE PCS LTD,01217566878,0.8,771 5920 16
Department of Health,CT Revenue Funds,03/12/2015,Mobile Phones,Reaching Out Services,ORANGE PCS LTD,01217566878,177.36,771 5920 16
Department of Health,CT Revenue Funds,03/12/2015,Mobile Phones,Ludlow Hospital Hotel Services,ORANGE PCS LTD,01217566878,19.99,771 5920 16
Department of Health,CT Revenue Funds,03/12/2015,Mobile Phones,Community Equipment Stores,ORANGE PCS LTD,01217566878,49.79,771 5920 16
Department of Health,CT Revenue Funds,03/12/2015,Mobile Phones,Community Equipment Stores,ORANGE PCS LTD,01217566878,9.96,771 5920 16
Department of Health,CT Revenue Funds,03/12/2015,Mobile Phones,Diabetes Specialist Nursing,ORANGE PCS LTD,01217566878,60.46,771 5920 16
Department of Health,CT Revenue Funds,03/12/2015,Mobile Phones,Whitchurch Hospital Inpatient Ward,ORANGE PCS LTD,01217566878,0.77,771 5920 16
Department of Health,CT Revenue Funds,03/12/2015,Mobile Phones,Single Point of Referral,ORANGE PCS LTD,01217566878,27.13,771 5920 16
Department of Health,CT Revenue Funds,03/12/2015,Mobile Phones,Tissue Viability Nurses (T&W),ORANGE PCS LTD,01217566878,12.21,771 5920 16
Department of Health,CT Revenue Funds,03/12/2015,Mobile Phones,Shrewsbury and Atcham North Interdisciplinary Teams,ORANGE PCS LTD,01217566878,828.68,771 5920 16
Department of Health,CT Revenue Funds,03/12/2015,Mobile Phones,Governance and Strategy Management,ORANGE PCS LTD,01217566878,8.83,771 5920 16
Department of Health,CT Revenue Funds,03/12/2015,Mobile Phones,HR OD & Workforce Management,ORANGE PCS LTD,01217566878,16.04,771 5920 16
Department of Health,CT Revenue Funds,03/12/2015,Mobile Phones,Information Governance,ORANGE PCS LTD,01217566878,3.47,771 5920 16
Department of Health,CT Revenue Funds,03/12/2015,Mobile Phones,IM&T Support,ORANGE PCS LTD,01217566878,61.81,771 5920 16
Department of Health,CT Revenue Funds,03/12/2015,Mobile Phones,Chairman and Chief Executives Office,ORANGE PCS LTD,01217566878,16.55,771 5920 16
Department of Health,CT Revenue Funds,03/12/2015,Mobile Phones,Falls Prevention,ORANGE PCS LTD,01217566878,87.84,771 5920 16
Department of Health,CT Revenue Funds,03/12/2015,Mobile Phones,Breast Feeding Lead,ORANGE PCS LTD,01217566878,65.31,771 5920 16
Department of Health,CT Revenue Funds,03/12/2015,Mobile Phones,HIMP Health Trainers,ORANGE PCS LTD,01217566878,3.5,771 5920 16
Department of Health,CT Revenue Funds,03/12/2015,Mobile Phones,HIMP Health Trainers,ORANGE PCS LTD,01217566878,0.7,771 5920 16
Department of Health,CT Revenue Funds,03/12/2015,Mobile Phones,Glebe Centre Premises,SHROPSHIRE DOCTORS CO-OP LTD,3198,-35.43,125 4330 46
Department of Health,CT Revenue Funds,03/12/2015,Mobile Phones,Glebe Centre Premises,SHROPSHIRE DOCTORS CO-OP LTD,3198,35.43,125 4330 46
Department of Health,CT Revenue Funds,03/12/2015,Mobile Phones,Out of Hours Nursing Project,SHROPSHIRE DOCTORS CO-OP LTD,3198,35.43,125 4330 46
Department of Health,CT Revenue Funds,03/12/2015,N/NHS Non-Agency Admin & Clerical,Glebe Centre Premises,SHROPSHIRE DOCTORS CO-OP LTD,3198,101.3,125 4330 46
Department of Health,CT Revenue Funds,03/12/2015,N/NHS Non-Agency Admin & Clerical,Out of Hours Nursing Project,SHROPSHIRE DOCTORS CO-OP LTD,3198,101.3,125 4330 46
Department of Health,CT Revenue Funds,03/12/2015,N/NHS Non-Agency Admin & Clerical,Glebe Centre Premises,SHROPSHIRE DOCTORS CO-OP LTD,3198,-101.3,125 4330 46
Department of Health,CT Revenue Funds,03/12/2015,N/NHS Non-Agency Nursing,Glebe Centre Premises,SHROPSHIRE DOCTORS CO-OP LTD,3198,-1779.88,125 4330 46
Department of Health,CT Revenue Funds,03/12/2015,N/NHS Non-Agency Nursing,Out of Hours Nursing Project,SHROPSHIRE DOCTORS CO-OP LTD,3198,1779.88,125 4330 46
Department of Health,CT Revenue Funds,03/12/2015,N/NHS Non-Agency Nursing,Glebe Centre Premises,SHROPSHIRE DOCTORS CO-OP LTD,3198,1779.88,125 4330 46
Department of Health,CT Revenue Funds,03/12/2015,N/NHS Non-Agency Other Staff,Out of Hours Nursing Project,SHROPSHIRE DOCTORS CO-OP LTD,3198,941.11,125 4330 46
Department of Health,CT Revenue Funds,03/12/2015,N/NHS Non-Agency Other Staff,Glebe Centre Premises,SHROPSHIRE DOCTORS CO-OP LTD,3198,941.11,125 4330 46
Department of Health,CT Revenue Funds,03/12/2015,N/NHS Non-Agency Other Staff,Glebe Centre Premises,SHROPSHIRE DOCTORS CO-OP LTD,3198,-941.11,125 4330 46
Department of Health,CT Revenue Funds,03/12/2015,Office Equipment & Materials : Purchase,South East Interdisciplinary Teams,ARGOS,01358603,17.99,145 8990 25
Department of Health,CT Revenue Funds,03/12/2015,Office Equipment & Materials : Purchase,South East Interdisciplinary Teams,ARGOS,01358603,1,145 8990 25
Department of Health,CT Revenue Funds,03/12/2015,Office Equipment & Materials : Purchase,South East Interdisciplinary Teams,ARGOS,01358603,89.97,145 8990 25
Department of Health,CT Revenue Funds,03/12/2015,Office Equipment & Materials : Purchase,South East Interdisciplinary Teams,ARGOS,01358603,4.99,145 8990 25
Department of Health,CT Revenue Funds,03/12/2015,Office Equipment & Materials : Purchase,South East Interdisciplinary Teams,ARGOS,01358603,22.47,145 8990 25
Department of Health,CT Revenue Funds,03/12/2015,Office Equipment & Materials : Purchase,South East Interdisciplinary Teams,ARGOS,01358603,0.25,145 8990 25
Department of Health,CT Revenue Funds,03/12/2015,Office Equipment & Materials : Purchase,South East Interdisciplinary Teams,ARGOS,01358603,1.24,145 8990 25
Department of Health,CT Revenue Funds,03/12/2015,Office Equipment & Materials : Purchase,South East Interdisciplinary Teams,ARGOS,01358603,4.49,145 8990 25
Department of Health,CT Revenue Funds,03/12/2015,Office Equipment & Materials : Purchase,Community Neuro Rehabilitation Team (CNRT),NEWMAN BUSINESS SOLUTIONS LTD,432266,477.96,
Department of Health,CT Revenue Funds,03/12/2015,Office Equipment & Materials : Purchase,Community Neuro Rehabilitation Team (CNRT),NEWMAN BUSINESS SOLUTIONS LTD,432266,95.59,
Department of Health,CT Revenue Funds,03/12/2015,Office/Building Removal Expenses,North Telford Health Visitors,GLYN UPTON REMOVALS,S/65769/1115,150,549 7895 65
Department of Health,CT Revenue Funds,03/12/2015,Office/Building Removal Expenses,Podiatry Services,GLYN UPTON REMOVALS,S/65770/1115,50,549 7895 65
Department of Health,CT Revenue Funds,03/12/2015,Other Agency Staff,Finance Directorate Management,PABCAB LTD,000238,2458.42,
Department of Health,CT Revenue Funds,03/12/2015,Other Agency Staff,Finance Directorate Management,PABCAB LTD,000238,12292.1,
Department of Health,CT Revenue Funds,03/12/2015,Other General Supplies & Services,Whitchurch Hospital Management,WHITCHURCH PCC,14209,358,
Department of Health,CT Revenue Funds,03/12/2015,Other Transport Costs,Community Equipment Stores,SSH SELF DRIVE,21/522604/5,263,868311508
Department of Health,CT Revenue Funds,03/12/2015,Other Transport Costs,Community Equipment Stores,SSH SELF DRIVE,21/522604/5,52.6,868311508
Department of Health,CT Revenue Funds,03/12/2015,Other Transport Costs,Community Equipment Stores,SSH SELF DRIVE,21/522604/5,-52.6,868311508
Department of Health,CT Revenue Funds,03/12/2015,Packing & Storage,Bridgnorth Hospital Catering,HIRE THIS LIMITED,46382,50.4,
Department of Health,CT Revenue Funds,03/12/2015,Patient Aids/Appliances : Kitchen,Community Equipment Stores,SIMPLY MED UK LTD,48429,1115,979 7837 26
Department of Health,CT Revenue Funds,03/12/2015,Patient Aids/Appliances : Kitchen,Community Equipment Stores,SIMPLY MED UK LTD,48429,223,979 7837 26
Department of Health,CT Revenue Funds,03/12/2015,Patient Aids/Appliances : Kitchen,Community Equipment Stores,PATTERSON MEDICAL LTD,5143946852,-20.11,945 7652 83
Department of Health,CT Revenue Funds,03/12/2015,Patient Aids/Appliances : Kitchen,Community Equipment Stores,PATTERSON MEDICAL LTD,5143946852,-4.02,945 7652 83
Department of Health,CT Revenue Funds,03/12/2015,Patient Aids/Appliances : Kitchen,Community Equipment Stores,PATTERSON MEDICAL LTD,5143946852,85.62,945 7652 83
Department of Health,CT Revenue Funds,03/12/2015,Patient Aids/Appliances : Kitchen,Community Equipment Stores,PATTERSON MEDICAL LTD,5143946852,17.12,945 7652 83
Department of Health,CT Revenue Funds,03/12/2015,Patient Aids/Appliances : Mobility,Community Equipment Stores,SIMPLY MED UK LTD,48523,130,979 7837 26
Department of Health,CT Revenue Funds,03/12/2015,Patient Aids/Appliances : Mobility,Community Equipment Stores,SIMPLY MED UK LTD,48523,280,979 7837 26
Department of Health,CT Revenue Funds,03/12/2015,Patient Aids/Appliances : Mobility,Community Equipment Stores,SIMPLY MED UK LTD,48523,650,979 7837 26
Department of Health,CT Revenue Funds,03/12/2015,Patient Aids/Appliances : Mobility,Community Equipment Stores,SIMPLY MED UK LTD,48523,1400,979 7837 26
Department of Health,CT Revenue Funds,03/12/2015,Patient Aids/Appliances : Mobility,Community Equipment Stores,SIMPLY MED UK LTD,48692,77.4,979 7837 26
Department of Health,CT Revenue Funds,03/12/2015,Patient Aids/Appliances : Mobility,Community Equipment Stores,SIMPLY MED UK LTD,48692,77.4,979 7837 26
Department of Health,CT Revenue Funds,03/12/2015,Patient Aids/Appliances : Mobility,Community Equipment Stores,SIMPLY MED UK LTD,48692,387,979 7837 26
Department of Health,CT Revenue Funds,03/12/2015,Patient Aids/Appliances : Mobility,Community Equipment Stores,SIMPLY MED UK LTD,48692,387,979 7837 26
Department of Health,CT Revenue Funds,03/12/2015,Patient Aids/Appliances : Mobility,Community Equipment Stores,PATTERSON MEDICAL LTD,5143939641,708,945 7652 83
Department of Health,CT Revenue Funds,03/12/2015,Patient Aids/Appliances : Mobility,Community Equipment Stores,PATTERSON MEDICAL LTD,5143939641,141.6,945 7652 83
Department of Health,CT Revenue Funds,03/12/2015,Patient Aids/Appliances : Mobility,Community Equipment Stores,ROMA MEDICAL AIDS LTD,566470,651,763 0039 51
Department of Health,CT Revenue Funds,03/12/2015,Patient Aids/Appliances : Mobility,Community Equipment Stores,ROMA MEDICAL AIDS LTD,566470,130.2,763 0039 51
Department of Health,CT Revenue Funds,03/12/2015,Patient Aids/Appliances : Mobility,Community Equipment Stores,1ST CALL MOBILITY LTD,9301,3,802 6440 60
Department of Health,CT Revenue Funds,03/12/2015,Patient Aids/Appliances : Mobility,Community Equipment Stores,1ST CALL MOBILITY LTD,9301,-1.5,802 6440 60
Department of Health,CT Revenue Funds,03/12/2015,Patient Aids/Appliances : Mobility,Community Equipment Stores,1ST CALL MOBILITY LTD,9301,5,802 6440 60
Department of Health,CT Revenue Funds,03/12/2015,Patient Aids/Appliances : Mobility,Community Equipment Stores,1ST CALL MOBILITY LTD,9301,15,802 6440 60
Department of Health,CT Revenue Funds,03/12/2015,Patient Aids/Appliances : Mobility,Community Equipment Stores,1ST CALL MOBILITY LTD,9301,25,802 6440 60
Department of Health,CT Revenue Funds,03/12/2015,Patient Aids/Appliances : Mobility,Community Equipment Stores,1ST CALL MOBILITY LTD,9301,-7.5,802 6440 60
Department of Health,CT Revenue Funds,03/12/2015,Patient Aids/Appliances : Mobility,Community Equipment Stores,C&S SEATING (SURREY),9567,1,
Department of Health,CT Revenue Funds,03/12/2015,Patient Aids/Appliances : Mobility,Community Equipment Stores,C&S SEATING (SURREY),9567,17.59,
Department of Health,CT Revenue Funds,03/12/2015,Patient Aids/Appliances : Mobility,Community Equipment Stores,C&S SEATING (SURREY),9567,0.2,
Department of Health,CT Revenue Funds,03/12/2015,Patient Aids/Appliances : Mobility,Community Equipment Stores,C&S SEATING (SURREY),9567,87.95,
Department of Health,CT Revenue Funds,03/12/2015,Patient Aids/Appliances : Toileting,Community Equipment Stores,SIMPLY MED UK LTD,48437,51.6,979 7837 26
Department of Health,CT Revenue Funds,03/12/2015,Patient Aids/Appliances : Toileting,Community Equipment Stores,SIMPLY MED UK LTD,48437,258,979 7837 26
Department of Health,CT Revenue Funds,03/12/2015,Patient Aids/Appliances : Toileting,Community Equipment Stores,SIMPLY MED UK LTD,48523,772.5,979 7837 26
Department of Health,CT Revenue Funds,03/12/2015,Patient Aids/Appliances : Toileting,Community Equipment Stores,SIMPLY MED UK LTD,48523,154.5,979 7837 26
Department of Health,CT Revenue Funds,03/12/2015,Patient Aids/Appliances : Toileting,Community Equipment Stores,SIMPLY MED UK LTD,48523,179,979 7837 26
Department of Health,CT Revenue Funds,03/12/2015,Patient Aids/Appliances : Toileting,Community Equipment Stores,SIMPLY MED UK LTD,48523,895,979 7837 26
Department of Health,CT Revenue Funds,03/12/2015,Patients Aid,Payables,PAYCARE,NOV15,663.3,
Department of Health,CT Revenue Funds,03/12/2015,Pennies from Heaven,Payables,PENNIES FROM HEAVEN,NOV15,15.08,
Department of Health,CT Revenue Funds,03/12/2015,Postage & Carriage,Community Equipment Stores,MOUNTWAY LTD,0000023821,6,
Department of Health,CT Revenue Funds,03/12/2015,Postage & Carriage,Community Equipment Stores,MOUNTWAY LTD,0000023821,30,
Department of Health,CT Revenue Funds,03/12/2015,Postage & Carriage,Community Equipment Stores,MOUNTWAY LTD,0000024903,30,
Department of Health,CT Revenue Funds,03/12/2015,Postage & Carriage,Community Equipment Stores,MOUNTWAY LTD,0000024903,6,
Department of Health,CT Revenue Funds,03/12/2015,Postage & Carriage,South East Interdisciplinary Teams,ARGOS,01358603,3.29,145 8990 25
Department of Health,CT Revenue Funds,03/12/2015,Postage & Carriage,South East Interdisciplinary Teams,ARGOS,01358603,0.66,145 8990 25
Department of Health,CT Revenue Funds,03/12/2015,Postage & Carriage,Bridgnorth Hospital Minor Injuries Unit,MEDTRONIC LTD,1051317439,3,467 2545 26
Department of Health,CT Revenue Funds,03/12/2015,Postage & Carriage,Bridgnorth Hospital Minor Injuries Unit,MEDTRONIC LTD,1051317439,15,467 2545 26
Department of Health,CT Revenue Funds,03/12/2015,Postage & Carriage,Shrewsbury and Atcham Physiotherapy Clinics,MISCO COMPUTER SUPPLIES LTD,10799102,9.99,494 1756 15
Department of Health,CT Revenue Funds,03/12/2015,Postage & Carriage,Shrewsbury and Atcham Physiotherapy Clinics,MISCO COMPUTER SUPPLIES LTD,10799102,2,494 1756 15
Department of Health,CT Revenue Funds,03/12/2015,Postage & Carriage,MSK Management & Admin,MISCO COMPUTER SUPPLIES LTD,10805896,2,494 1756 15
Department of Health,CT Revenue Funds,03/12/2015,Postage & Carriage,MSK Management & Admin,MISCO COMPUTER SUPPLIES LTD,10805896,9.99,494 1756 15
Department of Health,CT Revenue Funds,03/12/2015,Postage & Carriage,North East Shropshire Interdisciplinary Teams,MANATECH LTD,152862,10,706 4913 37
Department of Health,CT Revenue Funds,03/12/2015,Postage & Carriage,North East Shropshire Interdisciplinary Teams,MANATECH LTD,152862,2,706 4913 37
Department of Health,CT Revenue Funds,03/12/2015,Postage & Carriage,APCS - Management - Telford and Wrekin,NEOPOST LTD,2015085861,41.96,597 2654 89
Department of Health,CT Revenue Funds,03/12/2015,Postage & Carriage,APCS - Management - Telford and Wrekin,NEOPOST LTD,2015085861,209.78,597 2654 89
Department of Health,CT Revenue Funds,03/12/2015,Postage & Carriage,Coral House,NEOPOST LTD,246836 2.12.15,1000,597 2654 89
Department of Health,CT Revenue Funds,03/12/2015,Postage & Carriage,Coral House,ASAP COMPUTER SERVICE,42743,66.66,
Department of Health,CT Revenue Funds,03/12/2015,Postage & Carriage,Coral House,ASAP COMPUTER SERVICE,42743,13.33,
Department of Health,CT Revenue Funds,03/12/2015,Postage & Carriage,Community Childrens Nurses,B&D ELECTROMEDICAL LTD,47446,12,551 3055 73
Department of Health,CT Revenue Funds,03/12/2015,Postage & Carriage,Community Childrens Nurses,B&D ELECTROMEDICAL LTD,47446,2.4,551 3055 73
Department of Health,CT Revenue Funds,03/12/2015,Postage & Carriage,APCS - Management - Telford and Wrekin,NEOPOST LTD,80101457,1000,597 2654 89
Department of Health,CT Revenue Funds,03/12/2015,Postage & Carriage,Wheelchair Services,V-TRAK,81337,15,
Department of Health,CT Revenue Funds,03/12/2015,Postage & Carriage,Wheelchair Services,V-TRAK,81337,3,
Department of Health,CT Revenue Funds,03/12/2015,Postage & Carriage,Community Equipment Stores,C&S SEATING (SURREY),9567,1.6,
Department of Health,CT Revenue Funds,03/12/2015,Postage & Carriage,Community Equipment Stores,C&S SEATING (SURREY),9567,8,
Department of Health,CT Revenue Funds,03/12/2015,Postage & Carriage,New Born Hearing Screening,GENESYS MEDICAL SOLUTIONS,IN029933,20,
Department of Health,CT Revenue Funds,03/12/2015,Postage & Carriage,New Born Hearing Screening,GENESYS MEDICAL SOLUTIONS,IN029933,4,
Department of Health,CT Revenue Funds,03/12/2015,Postage & Carriage,North Shropshire Health Visitors,STAMPS DIRECT LTD,LN244586,2.85,283 5042 63
Department of Health,CT Revenue Funds,03/12/2015,Postage & Carriage,North Shropshire Health Visitors,STAMPS DIRECT LTD,LN244586,0.57,283 5042 63
Department of Health,CT Revenue Funds,03/12/2015,Postage & Carriage,APCS Administration,ALEXANDRA WORKWEAR,OLSINV/03041153,0.8,927 1561 21
Department of Health,CT Revenue Funds,03/12/2015,Postage & Carriage,APCS Administration,ALEXANDRA WORKWEAR,OLSINV/03041153,4,927 1561 21
Department of Health,CT Revenue Funds,03/12/2015,Postage & Carriage,Premises Management,SYNERTEC LTD,QS106672,-414.48,
Department of Health,CT Revenue Funds,03/12/2015,Postage & Carriage,Premises Management,SYNERTEC LTD,QS106672,345.4,
Department of Health,CT Revenue Funds,03/12/2015,Postage & Carriage,Premises Management,SYNERTEC LTD,QS106672,414.48,
Department of Health,CT Revenue Funds,03/12/2015,Postage & Carriage,Premises Management,SYNERTEC LTD,QS106972,50,
Department of Health,CT Revenue Funds,03/12/2015,Postage Stamps Stock,Cash & Cash Equivalents,POST OFFICE LTD,STAMPS 30.11.15,2700,
Department of Health,CT Revenue Funds,03/12/2015,Printing Costs,Diabetes Specialist Nursing,XEROX UK,2462309,3.44,232 3646 82
Department of Health,CT Revenue Funds,03/12/2015,Printing Costs,Coral House,SYNERTEC LTD,QS106667,99.95,
Department of Health,CT Revenue Funds,03/12/2015,Printing Costs,Coral House,SYNERTEC LTD,QS106668,3.36,
Department of Health,CT Revenue Funds,03/12/2015,Printing Costs,Coral House,SYNERTEC LTD,QS106669,56.83,
Department of Health,CT Revenue Funds,03/12/2015,Printing Costs,Coral House,SYNERTEC LTD,QS106670,82.69,
Department of Health,CT Revenue Funds,03/12/2015,Printing Costs,Coral House,SYNERTEC LTD,QS106671,136.48,
Department of Health,CT Revenue Funds,03/12/2015,Printing Costs,Coral House,SYNERTEC LTD,QS106971,50,
Department of Health,CT Revenue Funds,03/12/2015,Prudential AVCs,Payables,PRUDENTIAL (N001/18769),LN01/24243-NOV15,200,
Department of Health,CT Revenue Funds,03/12/2015,Qualified Nurse Band 6,Glebe Centre Premises,SHROPSHIRE DOCTORS CO-OP LTD,3198,-1840.34,125 4330 46
Department of Health,CT Revenue Funds,03/12/2015,Qualified Nurse Band 6,Glebe Centre Premises,SHROPSHIRE DOCTORS CO-OP LTD,3198,1840.34,125 4330 46
Department of Health,CT Revenue Funds,03/12/2015,Qualified Nurse Band 6,Out of Hours Nursing Project,SHROPSHIRE DOCTORS CO-OP LTD,3198,1840.34,125 4330 46
Department of Health,CT Revenue Funds,03/12/2015,Rates,Bridgnorth Hospital Management Premises-Bridgnorth Hospital (& temporary site),SHROPSHIRE COUNCIL,2209014650005-15/16,7198,162 3474 72
Department of Health,CT Revenue Funds,03/12/2015,Rates,Organisational Development Premises-Mercian House,SHROPSHIRE COUNCIL,2500000180023-15/16,1245,162 3474 72
Department of Health,CT Revenue Funds,03/12/2015,Rates,Operations Directorate Management Premises-Princess House,SHROPSHIRE COUNCIL,2500000184482-15/16,2662,162 3474 72
Department of Health,CT Revenue Funds,03/12/2015,Rates,"South Shropshire Health Visitors Premises-The Gateway, Craven Arms",SHROPSHIRE COUNCIL,2400572340006-15/16,244.9402798,162 3474 72
Department of Health,CT Revenue Funds,03/12/2015,Rates,"C Arms Dental Practice Premises-The Gateway, Craven Arms",SHROPSHIRE COUNCIL,2400572340006-15/16,379.6107651,162 3474 72
Department of Health,CT Revenue Funds,03/12/2015,Rates,"South West Interdisciplinary Teams Premises-The Gateway, Craven Arms",SHROPSHIRE COUNCIL,2400572340006-15/16,571.4489551,162 3474 72
Department of Health,CT Revenue Funds,03/12/2015,Rates,Whitchurch Hospital Management Premises-Whitchurch Hospital,SHROPSHIRE COUNCIL,2900653200002-15/16,3944,162 3474 72
Department of Health,CT Revenue Funds,03/12/2015,Retirement Gifts,Whitchurch Hospital Physiotherapy,RETIREMENT GIFT,BERRINGTON RETIREMENT GIFT,100,
Department of Health,CT Revenue Funds,03/12/2015,Service User & Volunteer Exps,North Telford Health Visitors,CATHERINE BAILEY,TRAVEL 26/8-17/11/15,77.76,
Department of Health,CT Revenue Funds,03/12/2015,Special Loan Equipment,Ludlow Hospital Inpatient Wards,PREMIERE HEALTHCARE,42727,2.73,
Department of Health,CT Revenue Funds,03/12/2015,Special Loan Equipment,Ludlow Hospital Inpatient Wards,PREMIERE HEALTHCARE,42727,13.65,
Department of Health,CT Revenue Funds,03/12/2015,Special Loan Equipment,Bridgnorth Hospital Management,ARJOHUNTLEIGH UK,IP424745,363.09,382 4746 30
Department of Health,CT Revenue Funds,03/12/2015,Special Loan Equipment,Bridgnorth Hospital Management,ARJOHUNTLEIGH UK,IP424745,72.62,382 4746 30
Department of Health,CT Revenue Funds,03/12/2015,Special Loan Equipment,Bridgnorth Hospital Management,ARJOHUNTLEIGH UK,IP424746,72.62,382 4746 30
Department of Health,CT Revenue Funds,03/12/2015,Special Loan Equipment,Bridgnorth Hospital Management,ARJOHUNTLEIGH UK,IP424746,363.09,382 4746 30
Department of Health,CT Revenue Funds,03/12/2015,Special Seating,Community Equipment Stores,HARVEST HEALTHCARE,0008963853,1975.8,
Department of Health,CT Revenue Funds,03/12/2015,Special Seating,Community Equipment Stores,HARVEST HEALTHCARE,0008963853,395.16,
Department of Health,CT Revenue Funds,03/12/2015,Special Seating,Community Equipment Stores,WESSEX HEALTHCARE LTD,150068,94.79,
Department of Health,CT Revenue Funds,03/12/2015,Special Seating,Community Equipment Stores,WESSEX HEALTHCARE LTD,150068,18.96,
Department of Health,CT Revenue Funds,03/12/2015,Special Seating,Community Equipment Stores,WESSEX HEALTHCARE LTD,150069,18.96,
Department of Health,CT Revenue Funds,03/12/2015,Special Seating,Community Equipment Stores,WESSEX HEALTHCARE LTD,150069,94.79,
Department of Health,CT Revenue Funds,03/12/2015,Special Seating,Wheelchair Services,OTTO BOCK HEALTHCARE PLC,212009916,58,228 4212 81
Department of Health,CT Revenue Funds,03/12/2015,Special Seating,Wheelchair Services,OTTO BOCK HEALTHCARE PLC,212009916,11.6,228 4212 81
Department of Health,CT Revenue Funds,03/12/2015,Special Seating,Wheelchair Services,OTTO BOCK HEALTHCARE PLC,212009917,11.2,228 4212 81
Department of Health,CT Revenue Funds,03/12/2015,Special Seating,Wheelchair Services,OTTO BOCK HEALTHCARE PLC,212009917,5.2,228 4212 81
Department of Health,CT Revenue Funds,03/12/2015,Special Seating,Wheelchair Services,OTTO BOCK HEALTHCARE PLC,212009917,795,228 4212 81
Department of Health,CT Revenue Funds,03/12/2015,Special Seating,Wheelchair Services,OTTO BOCK HEALTHCARE PLC,212009917,56,228 4212 81
Department of Health,CT Revenue Funds,03/12/2015,Special Seating,Wheelchair Services,OTTO BOCK HEALTHCARE PLC,212009917,159,228 4212 81
Department of Health,CT Revenue Funds,03/12/2015,Special Seating,Wheelchair Services,OTTO BOCK HEALTHCARE PLC,212009917,26,228 4212 81
Department of Health,CT Revenue Funds,03/12/2015,Special Seating,Wheelchair Services,OTTO BOCK HEALTHCARE PLC,212010178,1496,228 4212 81
Department of Health,CT Revenue Funds,03/12/2015,Special Seating,Wheelchair Services,OTTO BOCK HEALTHCARE PLC,212010178,299.2,228 4212 81
Department of Health,CT Revenue Funds,03/12/2015,Special Seating,Wheelchair Services,OTTO BOCK HEALTHCARE PLC,212010178,2,228 4212 81
Department of Health,CT Revenue Funds,03/12/2015,Special Seating,Wheelchair Services,OTTO BOCK HEALTHCARE PLC,212010178,0.4,228 4212 81
Department of Health,CT Revenue Funds,03/12/2015,Special Seating,Wheelchair Services,OTTO BOCK HEALTHCARE PLC,212010180,24.2,228 4212 81
Department of Health,CT Revenue Funds,03/12/2015,Special Seating,Wheelchair Services,OTTO BOCK HEALTHCARE PLC,212010180,121,228 4212 81
Department of Health,CT Revenue Funds,03/12/2015,Special Seating,Wheelchair Services,OTTO BOCK HEALTHCARE PLC,212010189,47.81,228 4212 81
Department of Health,CT Revenue Funds,03/12/2015,Special Seating,Wheelchair Services,OTTO BOCK HEALTHCARE PLC,212010189,9.56,228 4212 81
Department of Health,CT Revenue Funds,03/12/2015,Special Seating,Wheelchair Services,OTTO BOCK HEALTHCARE PLC,212010189,22.9,228 4212 81
Department of Health,CT Revenue Funds,03/12/2015,Special Seating,Wheelchair Services,OTTO BOCK HEALTHCARE PLC,212010189,114.48,228 4212 81
Department of Health,CT Revenue Funds,03/12/2015,Special Seating,Wheelchair Services,OTTO BOCK HEALTHCARE PLC,212010190,149,228 4212 81
Department of Health,CT Revenue Funds,03/12/2015,Special Seating,Wheelchair Services,OTTO BOCK HEALTHCARE PLC,212010190,745,228 4212 81
Department of Health,CT Revenue Funds,03/12/2015,Special Seating,Community Equipment Stores,FRONTIER THERAPEUTICS,420428,745.9,700 8536 57
Department of Health,CT Revenue Funds,03/12/2015,Special Seating,Community Equipment Stores,FRONTIER THERAPEUTICS,420428,3729.5,700 8536 57
Department of Health,CT Revenue Funds,03/12/2015,Staff Consultancy & Support,Shropshire CAMHS Team,DR GILL GOODWILLIE,GWYNETH BOTLEY DECEMBER/2015,180,
Department of Health,CT Revenue Funds,03/12/2015,Staff Lottery,Payables,STAFF LOTTERY,LOTTERY AUG15,25,
Department of Health,CT Revenue Funds,03/12/2015,Staff Lottery,Payables,STAFF LOTTERY,LOTTERY FEB 15,25,
Department of Health,CT Revenue Funds,03/12/2015,Staff Lottery,Payables,STAFF LOTTERY,LOTTERY NOV14.,25,
Department of Health,CT Revenue Funds,03/12/2015,Staff Lottery,Payables,STAFF LOTTERY,REPAY MAY12 LOTTERY,25,
Department of Health,CT Revenue Funds,03/12/2015,Staff Uniforms & Clothing,Whitchurch Hospital Catering,NISBETS,11918001,1.8,974 8030 00
Department of Health,CT Revenue Funds,03/12/2015,Staff Uniforms & Clothing,Whitchurch Hospital Catering,NISBETS,11918001,-0.18,974 8030 00
Department of Health,CT Revenue Funds,03/12/2015,Staff Uniforms & Clothing,Whitchurch Hospital Catering,NISBETS,11918001,8.99,974 8030 00
Department of Health,CT Revenue Funds,03/12/2015,Staff Uniforms & Clothing,Whitchurch Hospital Catering,NISBETS,11918001,8.99,974 8030 00
Department of Health,CT Revenue Funds,03/12/2015,Staff Uniforms & Clothing,Whitchurch Hospital Catering,NISBETS,11918001,-0.18,974 8030 00
Department of Health,CT Revenue Funds,03/12/2015,Staff Uniforms & Clothing,Whitchurch Hospital Catering,NISBETS,11918001,3.18,974 8030 00
Department of Health,CT Revenue Funds,03/12/2015,Staff Uniforms & Clothing,Whitchurch Hospital Catering,NISBETS,11918001,-1.6,974 8030 00
Department of Health,CT Revenue Funds,03/12/2015,Staff Uniforms & Clothing,Whitchurch Hospital Catering,NISBETS,11918001,15.92,974 8030 00
Department of Health,CT Revenue Funds,03/12/2015,Staff Uniforms & Clothing,Whitchurch Hospital Catering,NISBETS,11918001,-0.9,974 8030 00
Department of Health,CT Revenue Funds,03/12/2015,Staff Uniforms & Clothing,Whitchurch Hospital Catering,NISBETS,11918001,23.98,974 8030 00
Department of Health,CT Revenue Funds,03/12/2015,Staff Uniforms & Clothing,Whitchurch Hospital Catering,NISBETS,11918001,-0.32,974 8030 00
Department of Health,CT Revenue Funds,03/12/2015,Staff Uniforms & Clothing,Whitchurch Hospital Catering,NISBETS,11918001,-0.9,974 8030 00
Department of Health,CT Revenue Funds,03/12/2015,Staff Uniforms & Clothing,Whitchurch Hospital Catering,NISBETS,11918001,-12,974 8030 00
Department of Health,CT Revenue Funds,03/12/2015,Staff Uniforms & Clothing,Whitchurch Hospital Catering,NISBETS,11918001,119.92,974 8030 00
Department of Health,CT Revenue Funds,03/12/2015,Staff Uniforms & Clothing,Whitchurch Hospital Catering,NISBETS,11918001,-2.4,974 8030 00
Department of Health,CT Revenue Funds,03/12/2015,Staff Uniforms & Clothing,Whitchurch Hospital Catering,NISBETS,11918001,1.8,974 8030 00
Department of Health,CT Revenue Funds,03/12/2015,Staff Uniforms & Clothing,Bridgnorth Hospital Physiotherapy,SIMON JERSEY LTD,7826782,8.55,732 3615 53
Department of Health,CT Revenue Funds,03/12/2015,Staff Uniforms & Clothing,Bridgnorth Hospital Physiotherapy,SIMON JERSEY LTD,7826782,1.71,732 3615 53
Department of Health,CT Revenue Funds,03/12/2015,Staff Uniforms & Clothing,Shrewsbury and Atcham North Interdisciplinary Teams,SIMON JERSEY LTD,7830441,2.58,732 3615 53
Department of Health,CT Revenue Funds,03/12/2015,Staff Uniforms & Clothing,Shrewsbury and Atcham North Interdisciplinary Teams,SIMON JERSEY LTD,7830441,0.44,732 3615 53
Department of Health,CT Revenue Funds,03/12/2015,Staff Uniforms & Clothing,Shrewsbury and Atcham North Interdisciplinary Teams,SIMON JERSEY LTD,7830441,12.9,732 3615 53
Department of Health,CT Revenue Funds,03/12/2015,Staff Uniforms & Clothing,Shrewsbury and Atcham North Interdisciplinary Teams,SIMON JERSEY LTD,7830441,1.52,732 3615 53
Department of Health,CT Revenue Funds,03/12/2015,Staff Uniforms & Clothing,Shrewsbury and Atcham North Interdisciplinary Teams,SIMON JERSEY LTD,7830441,2.2,732 3615 53
Department of Health,CT Revenue Funds,03/12/2015,Staff Uniforms & Clothing,Shrewsbury and Atcham North Interdisciplinary Teams,SIMON JERSEY LTD,7830441,7.6,732 3615 53
Department of Health,CT Revenue Funds,03/12/2015,Staff Uniforms & Clothing,Ludlow Hospital Inpatient Wards,SIMON JERSEY LTD,7830442,1.52,732 3615 53
Department of Health,CT Revenue Funds,03/12/2015,Staff Uniforms & Clothing,Ludlow Hospital Inpatient Wards,SIMON JERSEY LTD,7830442,7.6,732 3615 53
Department of Health,CT Revenue Funds,03/12/2015,Staff Uniforms & Clothing,Ludlow Hospital Inpatient Wards,SIMON JERSEY LTD,7830442,3.18,732 3615 53
Department of Health,CT Revenue Funds,03/12/2015,Staff Uniforms & Clothing,Ludlow Hospital Inpatient Wards,SIMON JERSEY LTD,7830442,15.9,732 3615 53
Department of Health,CT Revenue Funds,03/12/2015,Staff Uniforms & Clothing,Respiratory Liaison Nurses (T&W),SIMON JERSEY LTD,7830443,3.8,732 3615 53
Department of Health,CT Revenue Funds,03/12/2015,Staff Uniforms & Clothing,Respiratory Liaison Nurses (T&W),SIMON JERSEY LTD,7830443,-0.01,732 3615 53
Department of Health,CT Revenue Funds,03/12/2015,Staff Uniforms & Clothing,Respiratory Liaison Nurses (T&W),SIMON JERSEY LTD,7830443,18.85,732 3615 53
Department of Health,CT Revenue Funds,03/12/2015,Staff Uniforms & Clothing,Respiratory Liaison Nurses (T&W),SIMON JERSEY LTD,7830443,3.77,732 3615 53
Department of Health,CT Revenue Funds,03/12/2015,Staff Uniforms & Clothing,Respiratory Liaison Nurses (T&W),SIMON JERSEY LTD,7830443,19,732 3615 53
Department of Health,CT Revenue Funds,03/12/2015,Staff Uniforms & Clothing,Ludlow Hospital Inpatient Wards,SIMON JERSEY LTD,7830452,38.49,732 3615 53
Department of Health,CT Revenue Funds,03/12/2015,Staff Uniforms & Clothing,Ludlow Hospital Inpatient Wards,SIMON JERSEY LTD,7830452,2.28,732 3615 53
Department of Health,CT Revenue Funds,03/12/2015,Staff Uniforms & Clothing,Ludlow Hospital Inpatient Wards,SIMON JERSEY LTD,7830452,7.7,732 3615 53
Department of Health,CT Revenue Funds,03/12/2015,Staff Uniforms & Clothing,Ludlow Hospital Inpatient Wards,SIMON JERSEY LTD,7830452,11.4,732 3615 53
Department of Health,CT Revenue Funds,03/12/2015,Staff Uniforms & Clothing,Single Point of Referral,SIMON JERSEY LTD,7830494,29.28,732 3615 53
Department of Health,CT Revenue Funds,03/12/2015,Staff Uniforms & Clothing,Single Point of Referral,SIMON JERSEY LTD,7830494,6.45,732 3615 53
Department of Health,CT Revenue Funds,03/12/2015,Staff Uniforms & Clothing,Single Point of Referral,SIMON JERSEY LTD,7830494,1.29,732 3615 53
Department of Health,CT Revenue Funds,03/12/2015,Staff Uniforms & Clothing,Single Point of Referral,SIMON JERSEY LTD,7830494,5.86,732 3615 53
Department of Health,CT Revenue Funds,03/12/2015,Staff Uniforms & Clothing,Single Point of Referral,SIMON JERSEY LTD,7830494,3.04,732 3615 53
Department of Health,CT Revenue Funds,03/12/2015,Staff Uniforms & Clothing,Single Point of Referral,SIMON JERSEY LTD,7830494,0.88,732 3615 53
Department of Health,CT Revenue Funds,03/12/2015,Staff Uniforms & Clothing,Single Point of Referral,SIMON JERSEY LTD,7830494,2.26,732 3615 53
Department of Health,CT Revenue Funds,03/12/2015,Staff Uniforms & Clothing,Single Point of Referral,SIMON JERSEY LTD,7830494,15.2,732 3615 53
Department of Health,CT Revenue Funds,03/12/2015,Staff Uniforms & Clothing,Single Point of Referral,SIMON JERSEY LTD,7830494,4.4,732 3615 53
Department of Health,CT Revenue Funds,03/12/2015,Staff Uniforms & Clothing,Single Point of Referral,SIMON JERSEY LTD,7830494,11.31,732 3615 53
Department of Health,CT Revenue Funds,03/12/2015,Staff Uniforms & Clothing,Respiratory Liaison Nurses (T&W),SIMON JERSEY LTD,7831097,0.44,732 3615 53
Department of Health,CT Revenue Funds,03/12/2015,Staff Uniforms & Clothing,Respiratory Liaison Nurses (T&W),SIMON JERSEY LTD,7831097,7.6,732 3615 53
Department of Health,CT Revenue Funds,03/12/2015,Staff Uniforms & Clothing,Respiratory Liaison Nurses (T&W),SIMON JERSEY LTD,7831097,3.22,732 3615 53
Department of Health,CT Revenue Funds,03/12/2015,Staff Uniforms & Clothing,Respiratory Liaison Nurses (T&W),SIMON JERSEY LTD,7831097,2.2,732 3615 53
Department of Health,CT Revenue Funds,03/12/2015,Staff Uniforms & Clothing,Respiratory Liaison Nurses (T&W),SIMON JERSEY LTD,7831097,1.52,732 3615 53
Department of Health,CT Revenue Funds,03/12/2015,Staff Uniforms & Clothing,Respiratory Liaison Nurses (T&W),SIMON JERSEY LTD,7831097,16.11,732 3615 53
Department of Health,CT Revenue Funds,03/12/2015,Staff Uniforms & Clothing,Respiratory Liaison Nurses (T&W),SIMON JERSEY LTD,7831097,1.29,732 3615 53
Department of Health,CT Revenue Funds,03/12/2015,Staff Uniforms & Clothing,Respiratory Liaison Nurses (T&W),SIMON JERSEY LTD,7831097,6.45,732 3615 53
Department of Health,CT Revenue Funds,03/12/2015,Staff Uniforms & Clothing,Shrewsbury and Atcham North Interdisciplinary Teams,SIMON JERSEY LTD,7831290,2.2,732 3615 53
Department of Health,CT Revenue Funds,03/12/2015,Staff Uniforms & Clothing,Shrewsbury and Atcham North Interdisciplinary Teams,SIMON JERSEY LTD,7831290,3.18,732 3615 53
Department of Health,CT Revenue Funds,03/12/2015,Staff Uniforms & Clothing,Shrewsbury and Atcham North Interdisciplinary Teams,SIMON JERSEY LTD,7831290,15.9,732 3615 53
Department of Health,CT Revenue Funds,03/12/2015,Staff Uniforms & Clothing,Shrewsbury and Atcham North Interdisciplinary Teams,SIMON JERSEY LTD,7831290,7.6,732 3615 53
Department of Health,CT Revenue Funds,03/12/2015,Staff Uniforms & Clothing,Shrewsbury and Atcham North Interdisciplinary Teams,SIMON JERSEY LTD,7831290,0.44,732 3615 53
Department of Health,CT Revenue Funds,03/12/2015,Staff Uniforms & Clothing,Shrewsbury and Atcham North Interdisciplinary Teams,SIMON JERSEY LTD,7831290,1.52,732 3615 53
Department of Health,CT Revenue Funds,03/12/2015,Staff Uniforms & Clothing,Community Nursing Team 4,SIMON JERSEY LTD,7831292,23.85,732 3615 53
Department of Health,CT Revenue Funds,03/12/2015,Staff Uniforms & Clothing,Community Nursing Team 4,SIMON JERSEY LTD,7831292,1.96,732 3615 53
Department of Health,CT Revenue Funds,03/12/2015,Staff Uniforms & Clothing,Community Nursing Team 4,SIMON JERSEY LTD,7831292,1.1,732 3615 53
Department of Health,CT Revenue Funds,03/12/2015,Staff Uniforms & Clothing,Community Nursing Team 4,SIMON JERSEY LTD,7831292,4.77,732 3615 53
Department of Health,CT Revenue Funds,03/12/2015,Staff Uniforms & Clothing,Community Nursing Team 4,SIMON JERSEY LTD,7831292,0.76,732 3615 53
Department of Health,CT Revenue Funds,03/12/2015,Staff Uniforms & Clothing,Community Nursing Team 4,SIMON JERSEY LTD,7831292,9.8,732 3615 53
Department of Health,CT Revenue Funds,03/12/2015,Staff Uniforms & Clothing,Community Nursing Team 4,SIMON JERSEY LTD,7831292,3.8,732 3615 53
Department of Health,CT Revenue Funds,03/12/2015,Staff Uniforms & Clothing,Community Nursing Team 4,SIMON JERSEY LTD,7831292,0.22,732 3615 53
Department of Health,CT Revenue Funds,03/12/2015,Staff Uniforms & Clothing,Shrewsbury and Atcham North Interdisciplinary Teams,SIMON JERSEY LTD,7831300,3.87,732 3615 53
Department of Health,CT Revenue Funds,03/12/2015,Staff Uniforms & Clothing,Shrewsbury and Atcham North Interdisciplinary Teams,SIMON JERSEY LTD,7831300,2.2,732 3615 53
Department of Health,CT Revenue Funds,03/12/2015,Staff Uniforms & Clothing,Shrewsbury and Atcham North Interdisciplinary Teams,SIMON JERSEY LTD,7831300,1.52,732 3615 53
Department of Health,CT Revenue Funds,03/12/2015,Staff Uniforms & Clothing,Shrewsbury and Atcham North Interdisciplinary Teams,SIMON JERSEY LTD,7831300,3.8,732 3615 53
Department of Health,CT Revenue Funds,03/12/2015,Staff Uniforms & Clothing,Shrewsbury and Atcham North Interdisciplinary Teams,SIMON JERSEY LTD,7831300,7.6,732 3615 53
Department of Health,CT Revenue Funds,03/12/2015,Staff Uniforms & Clothing,Shrewsbury and Atcham North Interdisciplinary Teams,SIMON JERSEY LTD,7831300,19.35,732 3615 53
Department of Health,CT Revenue Funds,03/12/2015,Staff Uniforms & Clothing,Shrewsbury and Atcham North Interdisciplinary Teams,SIMON JERSEY LTD,7831300,0.44,732 3615 53
Department of Health,CT Revenue Funds,03/12/2015,Staff Uniforms & Clothing,Shrewsbury and Atcham North Interdisciplinary Teams,SIMON JERSEY LTD,7831300,0.76,732 3615 53
Department of Health,CT Revenue Funds,03/12/2015,Staff Uniforms & Clothing,Shrewsbury and Atcham North Interdisciplinary Teams,SIMON JERSEY LTD,7831300,1.1,732 3615 53
Department of Health,CT Revenue Funds,03/12/2015,Staff Uniforms & Clothing,Shrewsbury and Atcham North Interdisciplinary Teams,SIMON JERSEY LTD,7831300,0.22,732 3615 53
Department of Health,CT Revenue Funds,03/12/2015,Staff Uniforms & Clothing,Bishops Castle Hospital Physiotherapy,SIMON JERSEY LTD,7831315,2.58,732 3615 53
Department of Health,CT Revenue Funds,03/12/2015,Staff Uniforms & Clothing,Bishops Castle Hospital Physiotherapy,SIMON JERSEY LTD,7831315,7.6,732 3615 53
Department of Health,CT Revenue Funds,03/12/2015,Staff Uniforms & Clothing,Bishops Castle Hospital Physiotherapy,SIMON JERSEY LTD,7831315,12.9,732 3615 53
Department of Health,CT Revenue Funds,03/12/2015,Staff Uniforms & Clothing,Bishops Castle Hospital Physiotherapy,SIMON JERSEY LTD,7831315,1.52,732 3615 53
Department of Health,CT Revenue Funds,03/12/2015,Staff Uniforms & Clothing,Substance Misuse Teams,SIMON JERSEY LTD,7831721,67.5,732 3615 53
Department of Health,CT Revenue Funds,03/12/2015,Staff Uniforms & Clothing,Substance Misuse Teams,SIMON JERSEY LTD,7831721,13.5,732 3615 53
Department of Health,CT Revenue Funds,03/12/2015,Staff Uniforms & Clothing,Shrewsbury and Atcham North Interdisciplinary Teams,SIMON JERSEY LTD,7831725,11.95,732 3615 53
Department of Health,CT Revenue Funds,03/12/2015,Staff Uniforms & Clothing,Shrewsbury and Atcham North Interdisciplinary Teams,SIMON JERSEY LTD,7831725,59.75,732 3615 53
Department of Health,CT Revenue Funds,03/12/2015,Staff Uniforms & Clothing,Community Nursing Team 5,SIMON JERSEY LTD,7831726,2.39,732 3615 53
Department of Health,CT Revenue Funds,03/12/2015,Staff Uniforms & Clothing,Community Nursing Team 5,SIMON JERSEY LTD,7831726,11.95,732 3615 53
Department of Health,CT Revenue Funds,03/12/2015,Staff Uniforms & Clothing,Ludlow Hospital Management,SIMON JERSEY LTD,7831843,7.65,732 3615 53
Department of Health,CT Revenue Funds,03/12/2015,Staff Uniforms & Clothing,Ludlow Hospital Management,SIMON JERSEY LTD,7831843,38.24,732 3615 53
Department of Health,CT Revenue Funds,03/12/2015,Staff Uniforms & Clothing,Ludlow Hospital Management,SIMON JERSEY LTD,7831843,7.65,732 3615 53
Department of Health,CT Revenue Funds,03/12/2015,Staff Uniforms & Clothing,Ludlow Hospital Management,SIMON JERSEY LTD,7831843,38.24,732 3615 53
Department of Health,CT Revenue Funds,03/12/2015,Staff Uniforms & Clothing,Community Nursing Team 4,SIMON JERSEY LTD,7832080,2.39,732 3615 53
Department of Health,CT Revenue Funds,03/12/2015,Staff Uniforms & Clothing,Community Nursing Team 4,SIMON JERSEY LTD,7832080,11.95,732 3615 53
Department of Health,CT Revenue Funds,03/12/2015,Staff Uniforms & Clothing,ICS North West,SIMON JERSEY LTD,7832081,11.65,732 3615 53
Department of Health,CT Revenue Funds,03/12/2015,Staff Uniforms & Clothing,ICS North West,SIMON JERSEY LTD,7832081,0.3,732 3615 53
Department of Health,CT Revenue Funds,03/12/2015,Staff Uniforms & Clothing,ICS North West,SIMON JERSEY LTD,7832081,2.33,732 3615 53
Department of Health,CT Revenue Funds,03/12/2015,Staff Uniforms & Clothing,ICS North West,SIMON JERSEY LTD,7832081,0.06,732 3615 53
Department of Health,CT Revenue Funds,03/12/2015,Staff Uniforms & Clothing,APCS Respiratory,SIMON JERSEY LTD,7832166,3.8,732 3615 53
Department of Health,CT Revenue Funds,03/12/2015,Staff Uniforms & Clothing,APCS Respiratory,SIMON JERSEY LTD,7832166,7.95,732 3615 53
Department of Health,CT Revenue Funds,03/12/2015,Staff Uniforms & Clothing,APCS Respiratory,SIMON JERSEY LTD,7832166,14.64,732 3615 53
Department of Health,CT Revenue Funds,03/12/2015,Staff Uniforms & Clothing,APCS Respiratory,SIMON JERSEY LTD,7832166,0.76,732 3615 53
Department of Health,CT Revenue Funds,03/12/2015,Staff Uniforms & Clothing,APCS Respiratory,SIMON JERSEY LTD,7832166,1.59,732 3615 53
Department of Health,CT Revenue Funds,03/12/2015,Staff Uniforms & Clothing,APCS Respiratory,SIMON JERSEY LTD,7832166,0.22,732 3615 53
Department of Health,CT Revenue Funds,03/12/2015,Staff Uniforms & Clothing,APCS Respiratory,SIMON JERSEY LTD,7832166,1.1,732 3615 53
Department of Health,CT Revenue Funds,03/12/2015,Staff Uniforms & Clothing,APCS Respiratory,SIMON JERSEY LTD,7832166,2.93,732 3615 53
Department of Health,CT Revenue Funds,03/12/2015,Staff Uniforms & Clothing,Shrewsbury and Atcham North Interdisciplinary Teams,SIMON JERSEY LTD,7832167,19.35,732 3615 53
Department of Health,CT Revenue Funds,03/12/2015,Staff Uniforms & Clothing,Shrewsbury and Atcham North Interdisciplinary Teams,SIMON JERSEY LTD,7832167,-0.3,732 3615 53
Department of Health,CT Revenue Funds,03/12/2015,Staff Uniforms & Clothing,Shrewsbury and Atcham North Interdisciplinary Teams,SIMON JERSEY LTD,7832167,-1.5,732 3615 53
Department of Health,CT Revenue Funds,03/12/2015,Staff Uniforms & Clothing,Shrewsbury and Atcham North Interdisciplinary Teams,SIMON JERSEY LTD,7832167,-0.36,732 3615 53
Department of Health,CT Revenue Funds,03/12/2015,Staff Uniforms & Clothing,Shrewsbury and Atcham North Interdisciplinary Teams,SIMON JERSEY LTD,7832167,11.4,732 3615 53
Department of Health,CT Revenue Funds,03/12/2015,Staff Uniforms & Clothing,Shrewsbury and Atcham North Interdisciplinary Teams,SIMON JERSEY LTD,7832167,-1.8,732 3615 53
Department of Health,CT Revenue Funds,03/12/2015,Staff Uniforms & Clothing,Shrewsbury and Atcham North Interdisciplinary Teams,SIMON JERSEY LTD,7832167,2.28,732 3615 53
Department of Health,CT Revenue Funds,03/12/2015,Staff Uniforms & Clothing,Shrewsbury and Atcham North Interdisciplinary Teams,SIMON JERSEY LTD,7832167,1.32,732 3615 53
Department of Health,CT Revenue Funds,03/12/2015,Staff Uniforms & Clothing,Shrewsbury and Atcham North Interdisciplinary Teams,SIMON JERSEY LTD,7832167,3.87,732 3615 53
Department of Health,CT Revenue Funds,03/12/2015,Staff Uniforms & Clothing,Shrewsbury and Atcham North Interdisciplinary Teams,SIMON JERSEY LTD,7832167,6.6,732 3615 53
Department of Health,CT Revenue Funds,03/12/2015,Staff Uniforms & Clothing,Community Nursing Team 5,SIMON JERSEY LTD,7832194,0.88,732 3615 53
Department of Health,CT Revenue Funds,03/12/2015,Staff Uniforms & Clothing,Community Nursing Team 5,SIMON JERSEY LTD,7832194,25.8,732 3615 53
Department of Health,CT Revenue Funds,03/12/2015,Staff Uniforms & Clothing,Community Nursing Team 5,SIMON JERSEY LTD,7832194,15.2,732 3615 53
Department of Health,CT Revenue Funds,03/12/2015,Staff Uniforms & Clothing,Community Nursing Team 5,SIMON JERSEY LTD,7832194,4.4,732 3615 53
Department of Health,CT Revenue Funds,03/12/2015,Staff Uniforms & Clothing,Community Nursing Team 5,SIMON JERSEY LTD,7832194,3.04,732 3615 53
Department of Health,CT Revenue Funds,03/12/2015,Staff Uniforms & Clothing,Community Nursing Team 5,SIMON JERSEY LTD,7832194,5.16,732 3615 53
Department of Health,CT Revenue Funds,03/12/2015,Staff Uniforms & Clothing,Shrewsbury and Atcham North Interdisciplinary Teams,SIMON JERSEY LTD,7832204,12.9,732 3615 53
Department of Health,CT Revenue Funds,03/12/2015,Staff Uniforms & Clothing,Shrewsbury and Atcham North Interdisciplinary Teams,SIMON JERSEY LTD,7832204,1.52,732 3615 53
Department of Health,CT Revenue Funds,03/12/2015,Staff Uniforms & Clothing,Shrewsbury and Atcham North Interdisciplinary Teams,SIMON JERSEY LTD,7832204,-1.2,732 3615 53
Department of Health,CT Revenue Funds,03/12/2015,Staff Uniforms & Clothing,Shrewsbury and Atcham North Interdisciplinary Teams,SIMON JERSEY LTD,7832204,7.6,732 3615 53
Department of Health,CT Revenue Funds,03/12/2015,Staff Uniforms & Clothing,Shrewsbury and Atcham North Interdisciplinary Teams,SIMON JERSEY LTD,7832204,2.58,732 3615 53
Department of Health,CT Revenue Funds,03/12/2015,Staff Uniforms & Clothing,Shrewsbury and Atcham North Interdisciplinary Teams,SIMON JERSEY LTD,7832204,-1,732 3615 53
Department of Health,CT Revenue Funds,03/12/2015,Staff Uniforms & Clothing,Shrewsbury and Atcham North Interdisciplinary Teams,SIMON JERSEY LTD,7832204,-0.2,732 3615 53
Department of Health,CT Revenue Funds,03/12/2015,Staff Uniforms & Clothing,Shrewsbury and Atcham North Interdisciplinary Teams,SIMON JERSEY LTD,7832204,-0.24,732 3615 53
Department of Health,CT Revenue Funds,03/12/2015,Staff Uniforms & Clothing,Shrewsbury and Atcham North Interdisciplinary Teams,SIMON JERSEY LTD,7832204,4.4,732 3615 53
Department of Health,CT Revenue Funds,03/12/2015,Staff Uniforms & Clothing,Shrewsbury and Atcham North Interdisciplinary Teams,SIMON JERSEY LTD,7832204,0.88,732 3615 53
Department of Health,CT Revenue Funds,03/12/2015,Staff Uniforms & Clothing,Community Nursing Team 1,SIMON JERSEY LTD,7832324,11.95,732 3615 53
Department of Health,CT Revenue Funds,03/12/2015,Staff Uniforms & Clothing,Community Nursing Team 1,SIMON JERSEY LTD,7832324,2.39,732 3615 53
Department of Health,CT Revenue Funds,03/12/2015,Staff Uniforms & Clothing,South West Interdisciplinary Teams,SIMON JERSEY LTD,7832331,23.9,732 3615 53
Department of Health,CT Revenue Funds,03/12/2015,Staff Uniforms & Clothing,South West Interdisciplinary Teams,SIMON JERSEY LTD,7832331,4.78,732 3615 53
Department of Health,CT Revenue Funds,03/12/2015,Staff Uniforms & Clothing,Community Nursing Team 4,SIMON JERSEY LTD,7832564,1.29,732 3615 53
Department of Health,CT Revenue Funds,03/12/2015,Staff Uniforms & Clothing,Community Nursing Team 4,SIMON JERSEY LTD,7832564,6.45,732 3615 53
Department of Health,CT Revenue Funds,03/12/2015,Staff Uniforms & Clothing,APCS Respiratory,SIMON JERSEY LTD,7834490,-6.44,732 3615 53
Department of Health,CT Revenue Funds,03/12/2015,Staff Uniforms & Clothing,APCS Respiratory,SIMON JERSEY LTD,7834490,-32.22,732 3615 53
Department of Health,CT Revenue Funds,03/12/2015,Staff Uniforms & Clothing,Oswestry Primary Care Centre,SIMON JERSEY LTD,7834640,6.74,732 3615 53
Department of Health,CT Revenue Funds,03/12/2015,Staff Uniforms & Clothing,Oswestry Primary Care Centre,SIMON JERSEY LTD,7834640,7.26,732 3615 53
Department of Health,CT Revenue Funds,03/12/2015,Staff Uniforms & Clothing,Oswestry Primary Care Centre,SIMON JERSEY LTD,7834640,33.72,732 3615 53
Department of Health,CT Revenue Funds,03/12/2015,Staff Uniforms & Clothing,Oswestry Primary Care Centre,SIMON JERSEY LTD,7834640,36.3,732 3615 53
Department of Health,CT Revenue Funds,03/12/2015,Staff Uniforms & Clothing,Domiciliary Physio T&W,SIMON JERSEY LTD,7836219,133.65,732 3615 53
Department of Health,CT Revenue Funds,03/12/2015,Staff Uniforms & Clothing,Domiciliary Physio T&W,SIMON JERSEY LTD,7836219,26.73,732 3615 53
Department of Health,CT Revenue Funds,03/12/2015,Staff Uniforms & Clothing,Community Nursing Team 4,SIMON JERSEY LTD,7836781,6.45,732 3615 53
Department of Health,CT Revenue Funds,03/12/2015,Staff Uniforms & Clothing,Community Nursing Team 4,SIMON JERSEY LTD,7836781,1.29,732 3615 53
Department of Health,CT Revenue Funds,03/12/2015,Staff Uniforms & Clothing,APCS Administration,ALEXANDRA WORKWEAR,OLSINV/03041153,2.12,927 1561 21
Department of Health,CT Revenue Funds,03/12/2015,Staff Uniforms & Clothing,APCS Administration,ALEXANDRA WORKWEAR,OLSINV/03041153,10.62,927 1561 21
Department of Health,CT Revenue Funds,03/12/2015,Staff Uniforms & Clothing,APCS Administration,ALEXANDRA WORKWEAR,OLSINV/03041153,2.46,927 1561 21
Department of Health,CT Revenue Funds,03/12/2015,Staff Uniforms & Clothing,APCS Administration,ALEXANDRA WORKWEAR,OLSINV/03041153,12.3,927 1561 21
Department of Health,CT Revenue Funds,03/12/2015,Staff Uniforms & Clothing,APCS Administration,ALEXANDRA WORKWEAR,OLSINV/03041153,-0.14,927 1561 21
Department of Health,CT Revenue Funds,03/12/2015,Staff Uniforms & Clothing,APCS Administration,ALEXANDRA WORKWEAR,OLSINV/03041153,-1.1,927 1561 21
Department of Health,CT Revenue Funds,03/12/2015,Staff Uniforms & Clothing,APCS Administration,ALEXANDRA WORKWEAR,OLSINV/03041153,-0.7,927 1561 21
Department of Health,CT Revenue Funds,03/12/2015,Staff Uniforms & Clothing,APCS Administration,ALEXANDRA WORKWEAR,OLSINV/03041153,-0.22,927 1561 21
Department of Health,CT Revenue Funds,03/12/2015,Standard Life AVC's,Payables,STANDARD LIFE ASSURANCE COMPANY,NOV15,50,
Department of Health,CT Revenue Funds,03/12/2015,Stationery,Library & Knowledge Service,ALAN FERGUSON,CELEBRATING SUCCESS,79.47,
Department of Health,CT Revenue Funds,03/12/2015,Stationery,North Shropshire Health Visitors,STAMPS DIRECT LTD,LN244586,0.98,283 5042 63
Department of Health,CT Revenue Funds,03/12/2015,Stationery,North Shropshire Health Visitors,STAMPS DIRECT LTD,LN244586,4.9,283 5042 63
Department of Health,CT Revenue Funds,03/12/2015,Taxi & Other Vehicle Hire,Monkmoor CDC,COMET CARS LTD,1140,-5.97,
Department of Health,CT Revenue Funds,03/12/2015,Taxi & Other Vehicle Hire,Monkmoor CDC,COMET CARS LTD,1140,29.85,
Department of Health,CT Revenue Funds,03/12/2015,Taxi & Other Vehicle Hire,Monkmoor CDC,COMET CARS LTD,1140,5.97,
Department of Health,CT Revenue Funds,03/12/2015,Taxi & Other Vehicle Hire,Monkmoor CDC,COMET CARS LTD,1141,140,
Department of Health,CT Revenue Funds,03/12/2015,Taxi & Other Vehicle Hire,Monkmoor CDC,COMET CARS LTD,1141,28,
Department of Health,CT Revenue Funds,03/12/2015,Taxi & Other Vehicle Hire,Monkmoor CDC,COMET CARS LTD,1141,-28,
Department of Health,CT Revenue Funds,03/12/2015,Taxi & Other Vehicle Hire,Monkmoor CDC,COMET CARS LTD,1142,-18.72,
Department of Health,CT Revenue Funds,03/12/2015,Taxi & Other Vehicle Hire,Monkmoor CDC,COMET CARS LTD,1142,93.6,
Department of Health,CT Revenue Funds,03/12/2015,Taxi & Other Vehicle Hire,Monkmoor CDC,COMET CARS LTD,1142,18.72,
Department of Health,CT Revenue Funds,03/12/2015,Taxi & Other Vehicle Hire,Monkmoor CDC,COMET CARS LTD,1143,66,
Department of Health,CT Revenue Funds,03/12/2015,Taxi & Other Vehicle Hire,Monkmoor CDC,COMET CARS LTD,1143,330,
Department of Health,CT Revenue Funds,03/12/2015,Taxi & Other Vehicle Hire,Monkmoor CDC,COMET CARS LTD,1143,-66,
Department of Health,CT Revenue Funds,03/12/2015,"Telephone Handsets,  Payphones & Cordless Phones",Diabetes Specialist Nursing,WT COMMUNICATIONS LTD,2364,210,669 9138 73
Department of Health,CT Revenue Funds,03/12/2015,"Telephone Handsets,  Payphones & Cordless Phones",Diabetes Specialist Nursing,WT COMMUNICATIONS LTD,2364,42,669 9138 73
Department of Health,CT Revenue Funds,03/12/2015,Training Expenses,Diabetes Specialist Nursing,X-PERT HEALTH CIC LTD,4456,895,122763919
Department of Health,CT Revenue Funds,03/12/2015,Training Expenses,Diabetes Specialist Nursing,X-PERT HEALTH CIC LTD,4456,179,122763919
Department of Health,CT Revenue Funds,03/12/2015,Training Expenses,Diabetes Specialist Nursing,X-PERT HEALTH CIC LTD,4456,-179,122763919
Department of Health,CT Revenue Funds,03/12/2015,Training Expenses,Library & Knowledge Service,SHROPSHIRE COUNCIL,SGL001612,20,162 3474 72
Department of Health,CT Revenue Funds,03/12/2015,Travel & Subsistence,Glebe Centre Premises,SHROPSHIRE DOCTORS CO-OP LTD,3198,392.28,125 4330 46
Department of Health,CT Revenue Funds,03/12/2015,Travel & Subsistence,Glebe Centre Premises,SHROPSHIRE DOCTORS CO-OP LTD,3198,-392.28,125 4330 46
Department of Health,CT Revenue Funds,03/12/2015,Travel & Subsistence,Out of Hours Nursing Project,SHROPSHIRE DOCTORS CO-OP LTD,3198,392.28,125 4330 46
Department of Health,CT Revenue Funds,03/12/2015,User Agreements/Running Costs,Podiatry Services Premises-Marden Medical Practice,MARDEN MEDICAL PRACTICE,02/12 QUARTER 3,212.07,
Department of Health,CT Revenue Funds,03/12/2015,User Agreements/Running Costs,Shrewsbury and Atcham Physiotherapy Clinics Premises-Marden Medical Practice,MARDEN MEDICAL PRACTICE,02/12 QUARTER 3,212.07,
Department of Health,CT Revenue Funds,03/12/2015,VAT Contracted Out Services Input Tax,Receivables,PEACOCKS MEDICAL GROUP LTD,0000012736,55,755 9980 65
Department of Health,CT Revenue Funds,03/12/2015,VAT Contracted Out Services Input Tax,Receivables,CLEVELAND CLEANING LIMITED,04/9628,126.57,
Department of Health,CT Revenue Funds,03/12/2015,VAT Contracted Out Services Input Tax,Receivables,SPACECARE (SHROPSHIRE),1115024,9,790 8831 89
Department of Health,CT Revenue Funds,03/12/2015,VAT Contracted Out Services Input Tax,Receivables,KONICA BUSINESS MACHINES (UK) LTD,1121401192,12.36,974 9607 63
Department of Health,CT Revenue Funds,03/12/2015,VAT Contracted Out Services Input Tax,Receivables,COMET CARS LTD,1140,5.97,
Department of Health,CT Revenue Funds,03/12/2015,VAT Contracted Out Services Input Tax,Receivables,COMET CARS LTD,1141,28,
Department of Health,CT Revenue Funds,03/12/2015,VAT Contracted Out Services Input Tax,Receivables,COMET CARS LTD,1142,18.72,
Department of Health,CT Revenue Funds,03/12/2015,VAT Contracted Out Services Input Tax,Receivables,COMET CARS LTD,1143,66,
Department of Health,CT Revenue Funds,03/12/2015,VAT Contracted Out Services Input Tax,Receivables,MSI RECRUITMENT LTD,123086,186.4,933 2976 04
Department of Health,CT Revenue Funds,03/12/2015,VAT Contracted Out Services Input Tax,Receivables,BUSINESS WATCH GUARDING LTD,15036,64.86,818 2993 93
Department of Health,CT Revenue Funds,03/12/2015,VAT Contracted Out Services Input Tax,Receivables,XEROX UK,1605026953,48.73,232 3646 82
Department of Health,CT Revenue Funds,03/12/2015,VAT Contracted Out Services Input Tax,Receivables,RANDSTAD CARE LTD,1957766,30.9,
Department of Health,CT Revenue Funds,03/12/2015,VAT Contracted Out Services Input Tax,Receivables,RANDSTAD CARE LTD,1959244,15.45,
Department of Health,CT Revenue Funds,03/12/2015,VAT Contracted Out Services Input Tax,Receivables,SSH SELF DRIVE,21/522604/5,52.6,868311508
Department of Health,CT Revenue Funds,03/12/2015,VAT Contracted Out Services Input Tax,Receivables,CLEANIT CLEANING SERVICES,225380,54.17,
Department of Health,CT Revenue Funds,03/12/2015,VAT Contracted Out Services Input Tax,Receivables,XEROX UK,2462309,0.69,232 3646 82
Department of Health,CT Revenue Funds,03/12/2015,VAT Contracted Out Services Input Tax,Receivables,AFRESH CLEANING SERVICE,317,133.5,
Department of Health,CT Revenue Funds,03/12/2015,VAT Contracted Out Services Input Tax,Receivables,SITEWATCH FIRE & SURVEILLANCE LTD,32025,9,
Department of Health,CT Revenue Funds,03/12/2015,VAT Contracted Out Services Input Tax,Receivables,ENVIRONMENTAL ESSENTIALS,34884,60,
Department of Health,CT Revenue Funds,03/12/2015,VAT Contracted Out Services Input Tax,Receivables,ENVIRONMENTAL ESSENTIALS,34885,43.75,
Department of Health,CT Revenue Funds,03/12/2015,VAT Contracted Out Services Input Tax,Receivables,ENVIRONMENTAL ESSENTIALS,34886,43.75,
Department of Health,CT Revenue Funds,03/12/2015,VAT Contracted Out Services Input Tax,Receivables,ENVIRONMENTAL ESSENTIALS,34887,79,
Department of Health,CT Revenue Funds,03/12/2015,VAT Contracted Out Services Input Tax,Receivables,SANCTUARY PERSONNEL LTD,35242,101.2,
Department of Health,CT Revenue Funds,03/12/2015,VAT Contracted Out Services Input Tax,Receivables,X-PERT HEALTH CIC LTD,4456,179,122763919
Department of Health,CT Revenue Funds,03/12/2015,VAT Contracted Out Services Input Tax,Receivables,HIRE THIS LIMITED,46382,10.08,
Department of Health,CT Revenue Funds,03/12/2015,VAT Contracted Out Services Input Tax,Receivables,VISS SIGN LANGUAGE INTERPRETING SERVICE,5347,23.75,875 9280 71
Department of Health,CT Revenue Funds,03/12/2015,VAT Contracted Out Services Input Tax,Receivables,VISS SIGN LANGUAGE INTERPRETING SERVICE,5349,23.75,875 9280 71
Department of Health,CT Revenue Funds,03/12/2015,VAT Contracted Out Services Input Tax,Receivables,MEDACS HEALTHCARE SERVICES PLC,604-797543,214.12,745 7310 30
Department of Health,CT Revenue Funds,03/12/2015,VAT Contracted Out Services Input Tax,Receivables,PHS GROUP LTD,63065357,2.14,542 9514 38
Department of Health,CT Revenue Funds,03/12/2015,VAT Contracted Out Services Input Tax,Receivables,PHS GROUP LTD,63065357,2.14,542 9514 38
Department of Health,CT Revenue Funds,03/12/2015,VAT Contracted Out Services Input Tax,Receivables,PHS GROUP LTD,63065357,2.13,542 9514 38
Department of Health,CT Revenue Funds,03/12/2015,VAT Contracted Out Services Input Tax,Receivables,PHS GROUP LTD,63065357,2.13,542 9514 38
Department of Health,CT Revenue Funds,03/12/2015,VAT Contracted Out Services Input Tax,Receivables,PHS GROUP LTD,63116021,7.5,542 9514 38
Department of Health,CT Revenue Funds,03/12/2015,VAT Contracted Out Services Input Tax,Receivables,PHS GROUP LTD,63153565,1.68,542 9514 38
Department of Health,CT Revenue Funds,03/12/2015,VAT Contracted Out Services Input Tax,Receivables,PHS GROUP LTD,63153575,1.58,542 9514 38
Department of Health,CT Revenue Funds,03/12/2015,VAT Contracted Out Services Input Tax,Receivables,PHS GROUP LTD,63153577,0.98,542 9514 38
Department of Health,CT Revenue Funds,03/12/2015,VAT Contracted Out Services Input Tax,Receivables,PHS GROUP LTD,63153578,0.84,542 9514 38
Department of Health,CT Revenue Funds,03/12/2015,VAT Contracted Out Services Input Tax,Receivables,PHS GROUP LTD,63153579,1.22,542 9514 38
Department of Health,CT Revenue Funds,03/12/2015,VAT Contracted Out Services Input Tax,Receivables,PHS GROUP LTD,63153580,1.48,542 9514 38
Department of Health,CT Revenue Funds,03/12/2015,VAT Contracted Out Services Input Tax,Receivables,PHS GROUP LTD,63153581,1.3,542 9514 38
Department of Health,CT Revenue Funds,03/12/2015,VAT Contracted Out Services Input Tax,Receivables,PHS GROUP LTD,63172217,14.88,542 9514 38
Department of Health,CT Revenue Funds,03/12/2015,VAT Contracted Out Services Input Tax,Receivables,HEALTHCARE MATTERS,64230,28,862 9754 77
Department of Health,CT Revenue Funds,03/12/2015,VAT Contracted Out Services Input Tax,Receivables,HEALTHCARE MATTERS,64231,27.25,862 9754 77
Department of Health,CT Revenue Funds,03/12/2015,VAT Contracted Out Services Input Tax,Receivables,HEALTHCARE MATTERS,64232,14,862 9754 77
Department of Health,CT Revenue Funds,03/12/2015,VAT Contracted Out Services Input Tax,Receivables,HEALTHCARE MATTERS,64233,19.25,862 9754 77
Department of Health,CT Revenue Funds,03/12/2015,VAT Contracted Out Services Input Tax,Receivables,HEALTHCARE MATTERS,64234,14,862 9754 77
Department of Health,CT Revenue Funds,03/12/2015,VAT Contracted Out Services Input Tax,Receivables,HEALTHCARE MATTERS,64235,13.95,862 9754 77
Department of Health,CT Revenue Funds,03/12/2015,VAT Contracted Out Services Input Tax,Receivables,HEALTHCARE MATTERS,64236,40.8,862 9754 77
Department of Health,CT Revenue Funds,03/12/2015,VAT Contracted Out Services Input Tax,Receivables,HEALTHCARE MATTERS,64239,33.65,862 9754 77
Department of Health,CT Revenue Funds,03/12/2015,VAT Contracted Out Services Input Tax,Receivables,HEALTHCARE MATTERS,64275,40.82,862 9754 77
Department of Health,CT Revenue Funds,03/12/2015,VAT Contracted Out Services Input Tax,Receivables,HEALTHCARE MATTERS,64276,14,862 9754 77
Department of Health,CT Revenue Funds,03/12/2015,VAT Contracted Out Services Input Tax,Receivables,HEALTHCARE MATTERS,64277,61.82,862 9754 77
Department of Health,CT Revenue Funds,03/12/2015,VAT Contracted Out Services Input Tax,Receivables,HEALTHCARE MATTERS,64278,53.85,862 9754 77
Department of Health,CT Revenue Funds,03/12/2015,VAT Contracted Out Services Input Tax,Receivables,HEALTHCARE MATTERS,64279,15,862 9754 77
Department of Health,CT Revenue Funds,03/12/2015,VAT Contracted Out Services Input Tax,Receivables,HEALTHCARE MATTERS,64280,17.5,862 9754 77
Department of Health,CT Revenue Funds,03/12/2015,VAT Contracted Out Services Input Tax,Receivables,XEROX FINANCE LTD,96981879,13.4,232 3646 82
Department of Health,CT Revenue Funds,03/12/2015,VAT Contracted Out Services Input Tax,Receivables,XEROX FINANCE LTD,96981879,13.4,232 3646 82
Department of Health,CT Revenue Funds,03/12/2015,VAT Contracted Out Services Input Tax,Receivables,XEROX FINANCE LTD,96982369,39.76,232 3646 82
Department of Health,CT Revenue Funds,03/12/2015,VAT Contracted Out Services Input Tax,Receivables,XEROX FINANCE LTD,96982637,46.77,232 3646 82
Department of Health,CT Revenue Funds,03/12/2015,VAT Contracted Out Services Input Tax,Receivables,XEROX FINANCE LTD,96982637,28.95,232 3646 82
Department of Health,CT Revenue Funds,03/12/2015,VAT Contracted Out Services Input Tax,Receivables,XEROX FINANCE LTD,96982675,29.46,232 3646 82
Department of Health,CT Revenue Funds,03/12/2015,VAT Contracted Out Services Input Tax,Receivables,XEROX FINANCE LTD,96982676,17.27,232 3646 82
Department of Health,CT Revenue Funds,03/12/2015,VAT Contracted Out Services Input Tax,Receivables,AMPLIVOX LTD,CAM004 16099,93,
Department of Health,CT Revenue Funds,03/12/2015,VAT Contracted Out Services Input Tax,Receivables,IKA MOBILITY,IN0759,25,971 5578 82
Department of Health,CT Revenue Funds,03/12/2015,VAT Contracted Out Services Input Tax,Receivables,IKA MOBILITY,IN0760,25,971 5578 82
Department of Health,CT Revenue Funds,03/12/2015,VAT Contracted Out Services Input Tax,Receivables,COVERAGE CARE LTD,PSI97549,594.35,
Department of Health,CT Revenue Funds,03/12/2015,VAT Contracted Out Services Input Tax,Receivables,SYNERTEC LTD,QS106667,19.99,
Department of Health,CT Revenue Funds,03/12/2015,VAT Contracted Out Services Input Tax,Receivables,SYNERTEC LTD,QS106668,0.67,
Department of Health,CT Revenue Funds,03/12/2015,VAT Contracted Out Services Input Tax,Receivables,SYNERTEC LTD,QS106669,11.37,
Department of Health,CT Revenue Funds,03/12/2015,VAT Contracted Out Services Input Tax,Receivables,SYNERTEC LTD,QS106670,16.54,
Department of Health,CT Revenue Funds,03/12/2015,VAT Contracted Out Services Input Tax,Receivables,SYNERTEC LTD,QS106671,27.3,
Department of Health,CT Revenue Funds,03/12/2015,VAT Contracted Out Services Input Tax,Receivables,SYNERTEC LTD,QS106672,69.08,
Department of Health,CT Revenue Funds,03/12/2015,VAT Contracted Out Services Input Tax,Receivables,SYNERTEC LTD,QS106971,10,
Department of Health,CT Revenue Funds,03/12/2015,VAT Contracted Out Services Input Tax,Receivables,SYNERTEC LTD,QS106972,10,
Department of Health,CT Revenue Funds,03/12/2015,VAT Contracted Out Services Input Tax,Receivables,GLYN UPTON REMOVALS,S/65769/1115,30,549 7895 65
Department of Health,CT Revenue Funds,03/12/2015,VAT Contracted Out Services Input Tax,Receivables,GLYN UPTON REMOVALS,S/65770/1115,10,549 7895 65
Department of Health,CT Revenue Funds,03/12/2015,Vehicle Maintenance,Community Equipment Stores,KEY INDUSTRIAL EQUIPMENT LTD,I0632410,87,
Department of Health,CT Revenue Funds,03/12/2015,Vehicle Maintenance,Community Equipment Stores,KEY INDUSTRIAL EQUIPMENT LTD,I0632410,435,
Department of Health,CT Revenue Funds,03/12/2015,Water Cooler Rental,Occupational Health Shropshire,PRESSURE COOLERS LTD,591100,7.04,756 8952 69
Department of Health,CT Revenue Funds,03/12/2015,Water Cooler Rental,Occupational Health Shropshire,PRESSURE COOLERS LTD,591100,1.41,756 8952 69
Department of Health,CT Revenue Funds,03/12/2015,Wheelchair Cushions,Wheelchair Services,QBITUS PRODUCTS,87810A,1.59,525 8646 22
Department of Health,CT Revenue Funds,03/12/2015,Wheelchair Cushions,Wheelchair Services,QBITUS PRODUCTS,87810A,22.5,525 8646 22
Department of Health,CT Revenue Funds,03/12/2015,Wheelchair Cushions,Wheelchair Services,QBITUS PRODUCTS,87810A,22.5,525 8646 22
Department of Health,CT Revenue Funds,03/12/2015,Wheelchair Cushions,Wheelchair Services,QBITUS PRODUCTS,87810A,7.95,525 8646 22
Department of Health,CT Revenue Funds,03/12/2015,Wheelchair Cushions,Wheelchair Services,QBITUS PRODUCTS,87810A,4.5,525 8646 22
Department of Health,CT Revenue Funds,03/12/2015,Wheelchair Cushions,Wheelchair Services,QBITUS PRODUCTS,87810A,4.5,525 8646 22
Department of Health,CT Revenue Funds,03/12/2015,Wheelchair Cushions,Wheelchair Services,SUMED INTERNATIONAL (UK) LTD,88566,61.3,903 0612 73
Department of Health,CT Revenue Funds,03/12/2015,Wheelchair Cushions,Wheelchair Services,SUMED INTERNATIONAL (UK) LTD,88566,306.5,903 0612 73
Department of Health,CT Revenue Funds,03/12/2015,Wheelchair Parts,Wheelchair Services,BOHLE UK LTD,051471,19,
Department of Health,CT Revenue Funds,03/12/2015,Wheelchair Parts,Wheelchair Services,BOHLE UK LTD,051471,-81,
Department of Health,CT Revenue Funds,03/12/2015,Wheelchair Parts,Wheelchair Services,BOHLE UK LTD,051471,188,
Department of Health,CT Revenue Funds,03/12/2015,Wheelchair Parts,Wheelchair Services,BOHLE UK LTD,051471,24,
Department of Health,CT Revenue Funds,03/12/2015,Wheelchair Parts,Wheelchair Services,BOHLE UK LTD,051471,-16.2,
Department of Health,CT Revenue Funds,03/12/2015,Wheelchair Parts,Wheelchair Services,BOHLE UK LTD,051471,37.6,
Department of Health,CT Revenue Funds,03/12/2015,Wheelchair Parts,Wheelchair Services,BOHLE UK LTD,051471,3.8,
Department of Health,CT Revenue Funds,03/12/2015,Wheelchair Parts,Wheelchair Services,BOHLE UK LTD,051471,22.4,
Department of Health,CT Revenue Funds,03/12/2015,Wheelchair Parts,Wheelchair Services,BOHLE UK LTD,051471,4.8,
Department of Health,CT Revenue Funds,03/12/2015,Wheelchair Parts,Wheelchair Services,BOHLE UK LTD,051471,4.48,
Department of Health,CT Revenue Funds,03/12/2015,Wheelchair Parts,Wheelchair Services,BOHLE UK LTD,051471,90,
Department of Health,CT Revenue Funds,03/12/2015,Wheelchair Parts,Wheelchair Services,BOHLE UK LTD,051471,18,
Department of Health,CT Revenue Funds,03/12/2015,Wheelchair Parts,Wheelchair Services,MANBAT BATTERIES,1607465,103.4,
Department of Health,CT Revenue Funds,03/12/2015,Wheelchair Parts,Wheelchair Services,MANBAT BATTERIES,1607465,517,
Department of Health,CT Revenue Funds,03/12/2015,Wheelchair Parts,Wheelchair Services,MANBAT BATTERIES,1607465,-11,
Department of Health,CT Revenue Funds,03/12/2015,Wheelchair Parts,Wheelchair Services,MANBAT BATTERIES,1607465,-2.2,
Department of Health,CT Revenue Funds,03/12/2015,Wheelchair Parts,Wheelchair Services,INVACARE UK LTD,3283485,-0.56,840 9031 46
Department of Health,CT Revenue Funds,03/12/2015,Wheelchair Parts,Wheelchair Services,INVACARE UK LTD,3283485,-2.8,840 9031 46
Department of Health,CT Revenue Funds,03/12/2015,Wheelchair Parts,Wheelchair Services,INVACARE UK LTD,3283485,11.06,840 9031 46
Department of Health,CT Revenue Funds,03/12/2015,Wheelchair Parts,Wheelchair Services,INVACARE UK LTD,3283485,55.3,840 9031 46
Department of Health,CT Revenue Funds,03/12/2015,Wheelchair Parts,Wheelchair Services,FLAT FREE TYRES LTD T/A GREENTYRE,5414,3,
Department of Health,CT Revenue Funds,03/12/2015,Wheelchair Parts,Wheelchair Services,FLAT FREE TYRES LTD T/A GREENTYRE,5414,15,
Department of Health,CT Revenue Funds,03/12/2015,Wheelchair Parts,Wheelchair Services,FLAT FREE TYRES LTD T/A GREENTYRE,5414,154.2,
Department of Health,CT Revenue Funds,03/12/2015,Wheelchair Parts,Wheelchair Services,FLAT FREE TYRES LTD T/A GREENTYRE,5414,30.84,
Department of Health,CT Revenue Funds,03/12/2015,Wheelchair Parts,Wheelchair Services,FLAT FREE TYRES LTD T/A GREENTYRE,5433,15,
Department of Health,CT Revenue Funds,03/12/2015,Wheelchair Parts,Wheelchair Services,FLAT FREE TYRES LTD T/A GREENTYRE,5433,3,
Department of Health,CT Revenue Funds,03/12/2015,Wheelchair Parts,Wheelchair Services,FLAT FREE TYRES LTD T/A GREENTYRE,5433,32,
Department of Health,CT Revenue Funds,03/12/2015,Wheelchair Parts,Wheelchair Services,FLAT FREE TYRES LTD T/A GREENTYRE,5433,160,
Department of Health,CT Revenue Funds,03/12/2015,Wheelchair Parts,Wheelchair Services,V-TRAK,81337,448.03,
Department of Health,CT Revenue Funds,03/12/2015,Wheelchair Parts,Wheelchair Services,V-TRAK,81337,89.61,
Department of Health,CT Revenue Funds,03/12/2015,Wheelchair Spares & Accessories,Wheelchair Services,MANBAT BATTERIES,1607535,-6.8,
Department of Health,CT Revenue Funds,03/12/2015,Wheelchair Spares & Accessories,Wheelchair Services,MANBAT BATTERIES,1607535,-34,
Department of Health,CT Revenue Funds,03/12/2015,Wheelchair Spares & Accessories,Wheelchair Services,SUNRISE MEDICAL,2426733,127.14,388 6068 02
Department of Health,CT Revenue Funds,03/12/2015,Wheelchair Spares & Accessories,Wheelchair Services,SUNRISE MEDICAL,2426733,25.43,388 6068 02
Department of Health,CT Revenue Funds,03/12/2015,Wheelchair Spares & Accessories,Wheelchair Services,INVACARE UK LTD,3281748,-59.65,840 9031 46
Department of Health,CT Revenue Funds,03/12/2015,Wheelchair Spares & Accessories,Wheelchair Services,INVACARE UK LTD,3281748,59.65,840 9031 46
Department of Health,CT Revenue Funds,03/12/2015,Wheelchair Spares & Accessories,Wheelchair Services,INVACARE UK LTD,3281748,298.27,840 9031 46
Department of Health,CT Revenue Funds,03/12/2015,Wheelchair Spares & Accessories,Wheelchair Services,INVACARE UK LTD,3281748,59.65,840 9031 46
Department of Health,CT Revenue Funds,03/12/2015,Wheelchair Spares & Accessories,Wheelchair Services,INVACARE UK LTD,3281748,0.01,840 9031 46
Department of Health,CT Revenue Funds,03/12/2015,Wheelchair Spares & Accessories,Wheelchair Services,INVACARE UK LTD,3281749,473.24,840 9031 46
Department of Health,CT Revenue Funds,03/12/2015,Wheelchair Spares & Accessories,Wheelchair Services,INVACARE UK LTD,3281749,94.65,840 9031 46
Department of Health,CT Revenue Funds,03/12/2015,Wheelchair Spares & Accessories,Wheelchair Services,INVACARE UK LTD,3284433,123.29,840 9031 46
Department of Health,CT Revenue Funds,03/12/2015,Wheelchair Spares & Accessories,Wheelchair Services,INVACARE UK LTD,3284433,616.46,840 9031 46
Department of Health,CT Revenue Funds,03/12/2015,Wheelchair Spares & Accessories,Wheelchair Services,INVACARE UK LTD,3284434,151.88,840 9031 46
Department of Health,CT Revenue Funds,03/12/2015,Wheelchair Spares & Accessories,Wheelchair Services,INVACARE UK LTD,3284434,30.38,840 9031 46
Department of Health,CT Revenue Funds,03/12/2015,Wheelchair Spares & Accessories,Wheelchair Services,INVACARE UK LTD,3284435,-0.02,840 9031 46
Department of Health,CT Revenue Funds,03/12/2015,Wheelchair Spares & Accessories,Wheelchair Services,INVACARE UK LTD,3284435,895.39,840 9031 46
Department of Health,CT Revenue Funds,03/12/2015,Wheelchair Spares & Accessories,Wheelchair Services,INVACARE UK LTD,3284435,179.08,840 9031 46
Department of Health,CT Revenue Funds,03/12/2015,Wheelchair Spares & Accessories,Wheelchair Services,INVACARE UK LTD,3284436,176,840 9031 46
Department of Health,CT Revenue Funds,03/12/2015,Wheelchair Spares & Accessories,Wheelchair Services,INVACARE UK LTD,3284436,35.2,840 9031 46
Department of Health,CT Revenue Funds,03/12/2015,Wheelchair Spares & Accessories,Wheelchair Services,INVACARE UK LTD,3284437,105.6,840 9031 46
Department of Health,CT Revenue Funds,03/12/2015,Wheelchair Spares & Accessories,Wheelchair Services,INVACARE UK LTD,3284437,528,840 9031 46
Department of Health,CT Revenue Funds,03/12/2015,Wheelchair Spares & Accessories,Wheelchair Services,INVACARE UK LTD,3285536,121.36,840 9031 46
Department of Health,CT Revenue Funds,03/12/2015,Wheelchair Spares & Accessories,Wheelchair Services,INVACARE UK LTD,3285536,606.78,840 9031 46
Department of Health,CT Revenue Funds,03/12/2015,Wheelchair Spares & Accessories,Wheelchair Services,INVACARE UK LTD,3285537,137.74,840 9031 46
Department of Health,CT Revenue Funds,03/12/2015,Wheelchair Spares & Accessories,Wheelchair Services,INVACARE UK LTD,3285537,688.7,840 9031 46
Department of Health,CT Revenue Funds,03/12/2015,Wheelchairs,Wheelchair Services,INVACARE UK LTD,3279431,10,840 9031 46
Department of Health,CT Revenue Funds,03/12/2015,Wheelchairs,Wheelchair Services,INVACARE UK LTD,3279431,50,840 9031 46
Department of Health,CT Revenue Funds,03/12/2015,Wheelchairs,Wheelchair Services,INVACARE UK LTD,3279431,280,840 9031 46
Department of Health,CT Revenue Funds,03/12/2015,Wheelchairs,Wheelchair Services,INVACARE UK LTD,3279431,56,840 9031 46
Department of Health,CT Revenue Funds,03/12/2015,Wound Dressing Pads,North East Shropshire Interdisciplinary Teams,MANATECH LTD,152862,140,706 4913 37
Department of Health,CT Revenue Funds,03/12/2015,Wound Dressing Pads,North East Shropshire Interdisciplinary Teams,MANATECH LTD,152862,28,706 4913 37
Department of Health,CT Revenue Funds,04/12/2015,Absorbents Non X Ray Detectable,South East Interdisciplinary Teams,NHS SUPPLY CHAIN,1016164051,0.01,654 4347 29
Department of Health,CT Revenue Funds,04/12/2015,Absorbents Non X Ray Detectable,Bridgnorth Hospital Inpatient Ward,NHS SUPPLY CHAIN,1016164051,1,654 4347 29
Department of Health,CT Revenue Funds,04/12/2015,Absorbents Non X Ray Detectable,Bridgnorth Hospital Minor Injuries Unit,NHS SUPPLY CHAIN,1016164051,6.12,654 4347 29
Department of Health,CT Revenue Funds,04/12/2015,Absorbents Non X Ray Detectable,Bridgnorth Hospital Minor Injuries Unit,NHS SUPPLY CHAIN,1016164051,0.8,654 4347 29
Department of Health,CT Revenue Funds,04/12/2015,Absorbents Non X Ray Detectable,North East Shropshire Interdisciplinary Teams,NHS SUPPLY CHAIN,1016164051,16.4,654 4347 29
Department of Health,CT Revenue Funds,04/12/2015,Absorbents Non X Ray Detectable,South East Interdisciplinary Teams,NHS SUPPLY CHAIN,1016164051,0.47,654 4347 29
Department of Health,CT Revenue Funds,04/12/2015,Absorbents Non X Ray Detectable,Community Nursing Team 5,NHS SUPPLY CHAIN,1016164051,0.98,654 4347 29
Department of Health,CT Revenue Funds,04/12/2015,Absorbents Non X Ray Detectable,Community Nursing Team 5,NHS SUPPLY CHAIN,1016164051,0.82,654 4347 29
Department of Health,CT Revenue Funds,04/12/2015,Absorbents Non X Ray Detectable,South East Interdisciplinary Teams,NHS SUPPLY CHAIN,1016164051,2.32,654 4347 29
Department of Health,CT Revenue Funds,04/12/2015,Absorbents Non X Ray Detectable,Community Nursing Team 5,NHS SUPPLY CHAIN,1016164051,-0.02,654 4347 29
Department of Health,CT Revenue Funds,04/12/2015,Absorbents Non X Ray Detectable,Community Nursing Team 5,NHS SUPPLY CHAIN,1016164051,-0.02,654 4347 29
Department of Health,CT Revenue Funds,04/12/2015,Absorbents Non X Ray Detectable,Shrewsbury and Atcham DAART,NHS SUPPLY CHAIN,1016164051,0.61,654 4347 29
Department of Health,CT Revenue Funds,04/12/2015,Absorbents Non X Ray Detectable,Community Nursing Team 4,NHS SUPPLY CHAIN,1016164051,3.28,654 4347 29
Department of Health,CT Revenue Funds,04/12/2015,Absorbents Non X Ray Detectable,Community Nursing Team 5,NHS SUPPLY CHAIN,1016164051,4.92,654 4347 29
Department of Health,CT Revenue Funds,04/12/2015,Absorbents Non X Ray Detectable,Bridgnorth Hospital Minor Injuries Unit,NHS SUPPLY CHAIN,1016164051,0.01,654 4347 29
Department of Health,CT Revenue Funds,04/12/2015,Absorbents Non X Ray Detectable,Bridgnorth Hospital Minor Injuries Unit,NHS SUPPLY CHAIN,1016164051,1.23,654 4347 29
Department of Health,CT Revenue Funds,04/12/2015,Absorbents Non X Ray Detectable,Shrewsbury and Atcham DAART,NHS SUPPLY CHAIN,1016164051,3.06,654 4347 29
Department of Health,CT Revenue Funds,04/12/2015,Absorbents Non X Ray Detectable,Shrewsbury and Atcham North Interdisciplinary Teams,NHS SUPPLY CHAIN,1016164051,-0.01,654 4347 29
Department of Health,CT Revenue Funds,04/12/2015,Absorbents Non X Ray Detectable,Bridgnorth Hospital Minor Injuries Unit,NHS SUPPLY CHAIN,1016164051,0.01,654 4347 29
Department of Health,CT Revenue Funds,04/12/2015,Absorbents Non X Ray Detectable,Bridgnorth Hospital Minor Injuries Unit,NHS SUPPLY CHAIN,1016164051,2.32,654 4347 29
Department of Health,CT Revenue Funds,04/12/2015,Absorbents Non X Ray Detectable,Bridgnorth Hospital Minor Injuries Unit,NHS SUPPLY CHAIN,1016164051,0.47,654 4347 29
Department of Health,CT Revenue Funds,04/12/2015,Absorbents Non X Ray Detectable,North West Shropshire Interdisciplinary Teams,NHS SUPPLY CHAIN,1016164051,-0.01,654 4347 29
Department of Health,CT Revenue Funds,04/12/2015,Absorbents Non X Ray Detectable,Community Nursing Team 5,NHS SUPPLY CHAIN,1016164051,4.1,654 4347 29
Department of Health,CT Revenue Funds,04/12/2015,Absorbents Non X Ray Detectable,North East Shropshire Interdisciplinary Teams,NHS SUPPLY CHAIN,1016164051,-0.01,654 4347 29
Department of Health,CT Revenue Funds,04/12/2015,Absorbents Non X Ray Detectable,Community Nursing Team 5,NHS SUPPLY CHAIN,1016164051,-0.01,654 4347 29
Department of Health,CT Revenue Funds,04/12/2015,Absorbents Non X Ray Detectable,Community Nursing Team 5,NHS SUPPLY CHAIN,1016164051,0.81,654 4347 29
Department of Health,CT Revenue Funds,04/12/2015,Absorbents Non X Ray Detectable,Community Nursing Team 4,NHS SUPPLY CHAIN,1016164051,0.65,654 4347 29
Department of Health,CT Revenue Funds,04/12/2015,Absorbents Non X Ray Detectable,North East Shropshire Interdisciplinary Teams,NHS SUPPLY CHAIN,1016164051,3.28,654 4347 29
Department of Health,CT Revenue Funds,04/12/2015,Absorbents Non X Ray Detectable,Whitchurch Hospital Minor Injuries Unit,NHS SUPPLY CHAIN,1016164051,3.12,654 4347 29
Department of Health,CT Revenue Funds,04/12/2015,Absorbents Non X Ray Detectable,Whitchurch Hospital Minor Injuries Unit,NHS SUPPLY CHAIN,1016164051,0.62,654 4347 29
Department of Health,CT Revenue Funds,04/12/2015,Absorbents Non X Ray Detectable,Community Nursing Team 4,NHS SUPPLY CHAIN,1016164051,-0.01,654 4347 29
Department of Health,CT Revenue Funds,04/12/2015,Absorbents Non X Ray Detectable,Community Childrens Nurses,NHS SUPPLY CHAIN,1016164051,13.2,654 4347 29
Department of Health,CT Revenue Funds,04/12/2015,Absorbents Non X Ray Detectable,North West Shropshire Interdisciplinary Teams,NHS SUPPLY CHAIN,1016164051,1.34,654 4347 29
Department of Health,CT Revenue Funds,04/12/2015,Absorbents Non X Ray Detectable,North East Shropshire Interdisciplinary Teams,NHS SUPPLY CHAIN,1016164051,-0.07,654 4347 29
Department of Health,CT Revenue Funds,04/12/2015,Absorbents Non X Ray Detectable,Bridgnorth Hospital Inpatient Ward,NHS SUPPLY CHAIN,1016164051,0.2,654 4347 29
Department of Health,CT Revenue Funds,04/12/2015,Absorbents Non X Ray Detectable,Bridgnorth Hospital Minor Injuries Unit,NHS SUPPLY CHAIN,1016164051,4,654 4347 29
Department of Health,CT Revenue Funds,04/12/2015,Absorbents Non X Ray Detectable,Community Childrens Nurses,NHS SUPPLY CHAIN,1016164051,2.64,654 4347 29
Department of Health,CT Revenue Funds,04/12/2015,Absorbents Non X Ray Detectable,Shrewsbury and Atcham North Interdisciplinary Teams,NHS SUPPLY CHAIN,1016164051,16.4,654 4347 29
Department of Health,CT Revenue Funds,04/12/2015,Absorbents Non X Ray Detectable,Shrewsbury and Atcham North Interdisciplinary Teams,NHS SUPPLY CHAIN,1016164051,-0.07,654 4347 29
Department of Health,CT Revenue Funds,04/12/2015,Absorbents Non X Ray Detectable,Shrewsbury and Atcham North Interdisciplinary Teams,NHS SUPPLY CHAIN,1016164051,3.28,654 4347 29
Department of Health,CT Revenue Funds,04/12/2015,Absorbents Non X Ray Detectable,Community Nursing Team 5,NHS SUPPLY CHAIN,1016164051,4.05,654 4347 29
Department of Health,CT Revenue Funds,04/12/2015,Absorbents Non X Ray Detectable,North West Shropshire Interdisciplinary Teams,NHS SUPPLY CHAIN,1016164051,0.27,654 4347 29
Department of Health,CT Revenue Funds,04/12/2015,Absorbents Non X Ray Detectable,Shrewsbury and Atcham DAART,NHS SUPPLY CHAIN,1016164051,0.01,654 4347 29
Department of Health,CT Revenue Funds,04/12/2015,Adhesive Wound Dressings,Community Nursing Team 5,NHS SUPPLY CHAIN,1016164051,1.05,654 4347 29
Department of Health,CT Revenue Funds,04/12/2015,Adhesive Wound Dressings,North East Shropshire Interdisciplinary Teams,NHS SUPPLY CHAIN,1016164051,6.84,654 4347 29
Department of Health,CT Revenue Funds,04/12/2015,Adhesive Wound Dressings,Community Nursing Team 4,NHS SUPPLY CHAIN,1016164051,0.35,654 4347 29
Department of Health,CT Revenue Funds,04/12/2015,Adhesive Wound Dressings,Community Nursing Team 4,NHS SUPPLY CHAIN,1016164051,0.07,654 4347 29
Department of Health,CT Revenue Funds,04/12/2015,Adhesive Wound Dressings,Shrewsbury and Atcham Interdisciplinary Teams Wound Products Pilot,NHS SUPPLY CHAIN,1016164051,0.01,654 4347 29
Department of Health,CT Revenue Funds,04/12/2015,Adhesive Wound Dressings,Shrewsbury and Atcham North Interdisciplinary Teams,NHS SUPPLY CHAIN,1016164051,9.28,654 4347 29
Department of Health,CT Revenue Funds,04/12/2015,Adhesive Wound Dressings,Shrewsbury and Atcham North Interdisciplinary Teams,NHS SUPPLY CHAIN,1016164051,1.4,654 4347 29
Department of Health,CT Revenue Funds,04/12/2015,Adhesive Wound Dressings,Bridgnorth Hospital Minor Injuries Unit,NHS SUPPLY CHAIN,1016164051,0.91,654 4347 29
Department of Health,CT Revenue Funds,04/12/2015,Adhesive Wound Dressings,Bridgnorth Hospital Minor Injuries Unit,NHS SUPPLY CHAIN,1016164051,0.28,654 4347 29
Department of Health,CT Revenue Funds,04/12/2015,Adhesive Wound Dressings,M Drayton Dental Practice,NHS SUPPLY CHAIN,1016164051,1.04,654 4347 29
Department of Health,CT Revenue Funds,04/12/2015,Adhesive Wound Dressings,North West Shropshire Interdisciplinary Teams,NHS SUPPLY CHAIN,1016164051,-0.01,654 4347 29
Department of Health,CT Revenue Funds,04/12/2015,Adhesive Wound Dressings,North West Shropshire Interdisciplinary Teams,NHS SUPPLY CHAIN,1016164051,0.99,654 4347 29
Department of Health,CT Revenue Funds,04/12/2015,Adhesive Wound Dressings,Bridgnorth Hospital Minor Injuries Unit,NHS SUPPLY CHAIN,1016164051,-0.01,654 4347 29
Department of Health,CT Revenue Funds,04/12/2015,Adhesive Wound Dressings,Bridgnorth Hospital Minor Injuries Unit,NHS SUPPLY CHAIN,1016164051,1.13,654 4347 29
Department of Health,CT Revenue Funds,04/12/2015,Adhesive Wound Dressings,Shrewsbury and Atcham Interdisciplinary Teams Wound Products Pilot,NHS SUPPLY CHAIN,1016164051,3.21,654 4347 29
Department of Health,CT Revenue Funds,04/12/2015,Adhesive Wound Dressings,North East Shropshire Interdisciplinary Teams,NHS SUPPLY CHAIN,1016164051,1.37,654 4347 29
Department of Health,CT Revenue Funds,04/12/2015,Adhesive Wound Dressings,Bridgnorth Hospital Minor Injuries Unit,NHS SUPPLY CHAIN,1016164051,4.56,654 4347 29
Department of Health,CT Revenue Funds,04/12/2015,Adhesive Wound Dressings,Community Nursing Team 4,NHS SUPPLY CHAIN,1016164051,4.56,654 4347 29
Department of Health,CT Revenue Funds,04/12/2015,Adhesive Wound Dressings,Shrewsbury and Atcham Interdisciplinary Teams Wound Products Pilot,NHS SUPPLY CHAIN,1016164051,-0.02,654 4347 29
Department of Health,CT Revenue Funds,04/12/2015,Adhesive Wound Dressings,Shrewsbury and Atcham Interdisciplinary Teams Wound Products Pilot,NHS SUPPLY CHAIN,1016164051,16.08,654 4347 29
Department of Health,CT Revenue Funds,04/12/2015,Adhesive Wound Dressings,Shrewsbury and Atcham Interdisciplinary Teams Wound Products Pilot,NHS SUPPLY CHAIN,1016164051,11.32,654 4347 29
Department of Health,CT Revenue Funds,04/12/2015,Adhesive Wound Dressings,North West Shropshire Interdisciplinary Teams,NHS SUPPLY CHAIN,1016164051,4.56,654 4347 29
Department of Health,CT Revenue Funds,04/12/2015,Adhesive Wound Dressings,North West Shropshire Interdisciplinary Teams,NHS SUPPLY CHAIN,1016164051,0.35,654 4347 29
Department of Health,CT Revenue Funds,04/12/2015,Adhesive Wound Dressings,Community Nursing Team 4,NHS SUPPLY CHAIN,1016164051,0.01,654 4347 29
Department of Health,CT Revenue Funds,04/12/2015,Adhesive Wound Dressings,Community Nursing Team 5,NHS SUPPLY CHAIN,1016164051,0.21,654 4347 29
Department of Health,CT Revenue Funds,04/12/2015,Adhesive Wound Dressings,Shrewsbury and Atcham North Interdisciplinary Teams,NHS SUPPLY CHAIN,1016164051,1.86,654 4347 29
Department of Health,CT Revenue Funds,04/12/2015,Adhesive Wound Dressings,M Drayton Dental Practice,NHS SUPPLY CHAIN,1016164051,0.21,654 4347 29
Department of Health,CT Revenue Funds,04/12/2015,Adhesive Wound Dressings,Bridgnorth Hospital Minor Injuries Unit,NHS SUPPLY CHAIN,1016164051,5.66,654 4347 29
Department of Health,CT Revenue Funds,04/12/2015,Adhesive Wound Dressings,North West Shropshire Interdisciplinary Teams,NHS SUPPLY CHAIN,1016164051,4.93,654 4347 29
Department of Health,CT Revenue Funds,04/12/2015,Adhesive Wound Dressings,North West Shropshire Interdisciplinary Teams,NHS SUPPLY CHAIN,1016164051,5.66,654 4347 29
Department of Health,CT Revenue Funds,04/12/2015,Adhesive Wound Dressings,Shrewsbury and Atcham North Interdisciplinary Teams,NHS SUPPLY CHAIN,1016164051,0.28,654 4347 29
Department of Health,CT Revenue Funds,04/12/2015,Adhesive Wound Dressings,Shrewsbury and Atcham Interdisciplinary Teams Wound Products Pilot,NHS SUPPLY CHAIN,1016164051,-0.01,654 4347 29
Department of Health,CT Revenue Funds,04/12/2015,Adhesive Wound Dressings,Shrewsbury and Atcham Interdisciplinary Teams Wound Products Pilot,NHS SUPPLY CHAIN,1016164051,6.92,654 4347 29
Department of Health,CT Revenue Funds,04/12/2015,Adhesive Wound Dressings,M Drayton Dental Practice,NHS SUPPLY CHAIN,1016164051,-0.01,654 4347 29
Department of Health,CT Revenue Funds,04/12/2015,Adhesive Wound Dressings,North West Shropshire Interdisciplinary Teams,NHS SUPPLY CHAIN,1016164051,0.91,654 4347 29
Department of Health,CT Revenue Funds,04/12/2015,Adhesive Wound Dressings,North East Shropshire Interdisciplinary Teams,NHS SUPPLY CHAIN,1016164051,0.01,654 4347 29
Department of Health,CT Revenue Funds,04/12/2015,Adhesive Wound Dressings,Community Nursing Team 4,NHS SUPPLY CHAIN,1016164051,0.91,654 4347 29
Department of Health,CT Revenue Funds,04/12/2015,Adhesive Wound Dressings,North West Shropshire Interdisciplinary Teams,NHS SUPPLY CHAIN,1016164051,0.07,654 4347 29
Department of Health,CT Revenue Funds,04/12/2015,Adhesive Wound Dressings,North West Shropshire Interdisciplinary Teams,NHS SUPPLY CHAIN,1016164051,1.13,654 4347 29
Department of Health,CT Revenue Funds,04/12/2015,Adhesive Wound Dressings,Shrewsbury and Atcham Interdisciplinary Teams Wound Products Pilot,NHS SUPPLY CHAIN,1016164051,0.03,654 4347 29
Department of Health,CT Revenue Funds,04/12/2015,Adhesive Wound Dressings,Shrewsbury and Atcham Interdisciplinary Teams Wound Products Pilot,NHS SUPPLY CHAIN,1016164051,2.26,654 4347 29
Department of Health,CT Revenue Funds,04/12/2015,Adhesive Wound Dressings,Bridgnorth Hospital Minor Injuries Unit,NHS SUPPLY CHAIN,1016164051,0.01,654 4347 29
Department of Health,CT Revenue Funds,04/12/2015,Adhesive Wound Dressings,Bridgnorth Hospital Minor Injuries Unit,NHS SUPPLY CHAIN,1016164051,1.4,654 4347 29
Department of Health,CT Revenue Funds,04/12/2015,Adhesive Wound Dressings,North West Shropshire Interdisciplinary Teams,NHS SUPPLY CHAIN,1016164051,0.01,654 4347 29
Department of Health,CT Revenue Funds,04/12/2015,Adhesive Wound Dressings,Shrewsbury and Atcham Interdisciplinary Teams Wound Products Pilot,NHS SUPPLY CHAIN,1016164051,34.64,654 4347 29
Department of Health,CT Revenue Funds,04/12/2015,ANAES : Accessories & Equipment,SpecialCare and Access,NHS SUPPLY CHAIN,1016164051,44.26,654 4347 29
Department of Health,CT Revenue Funds,04/12/2015,ANAES : Accessories & Equipment,ICS South East,NHS SUPPLY CHAIN,1016164051,0.01,654 4347 29
Department of Health,CT Revenue Funds,04/12/2015,ANAES : Accessories & Equipment,SpecialCare and Access,NHS SUPPLY CHAIN,1016164051,8.85,654 4347 29
Department of Health,CT Revenue Funds,04/12/2015,ANAES : Accessories & Equipment,SpecialCare and Access,NHS SUPPLY CHAIN,1016164051,-0.01,654 4347 29
Department of Health,CT Revenue Funds,04/12/2015,ANAES : Accessories & Equipment,ICS South East,NHS SUPPLY CHAIN,1016164051,13.92,654 4347 29
Department of Health,CT Revenue Funds,04/12/2015,ANAES : Accessories & Equipment,ICS South East,NHS SUPPLY CHAIN,1016164051,2.79,654 4347 29
Department of Health,CT Revenue Funds,04/12/2015,Analysers,Community Nursing Team 1,NHS SUPPLY CHAIN,1016164051,0.57,654 4347 29
Department of Health,CT Revenue Funds,04/12/2015,Analysers,Ludlow Hospital Inpatient Wards,NHS SUPPLY CHAIN,1016164051,2.88,654 4347 29
Department of Health,CT Revenue Funds,04/12/2015,Analysers,Paediatric Phlebotomy,NHS SUPPLY CHAIN,1016164051,0.01,654 4347 29
Department of Health,CT Revenue Funds,04/12/2015,Analysers,Paediatric Phlebotomy,NHS SUPPLY CHAIN,1016164051,29.63,654 4347 29
Department of Health,CT Revenue Funds,04/12/2015,Analysers,Community Nursing Team 1,NHS SUPPLY CHAIN,1016164051,2.85,654 4347 29
Department of Health,CT Revenue Funds,04/12/2015,Analysers,Ludlow Hospital Inpatient Wards,NHS SUPPLY CHAIN,1016164051,2.6,654 4347 29
Department of Health,CT Revenue Funds,04/12/2015,Analysers,Ludlow Hospital Inpatient Wards,NHS SUPPLY CHAIN,1016164051,-0.01,654 4347 29
Department of Health,CT Revenue Funds,04/12/2015,Analysers,Ludlow Hospital Inpatient Wards,NHS SUPPLY CHAIN,1016164051,0.58,654 4347 29
Department of Health,CT Revenue Funds,04/12/2015,Analysers,Paediatric Phlebotomy,NHS SUPPLY CHAIN,1016164051,148.16,654 4347 29
Department of Health,CT Revenue Funds,04/12/2015,Analysers,Ludlow Hospital Inpatient Wards,NHS SUPPLY CHAIN,1016164051,12.99,654 4347 29
Department of Health,CT Revenue Funds,04/12/2015,APCS Staff SLA From Other NHS Bodies,MSK Therapy,SHREWSBURY AND TELFORD HOSPITAL NHS TRUST,10104657,2815.4,
Department of Health,CT Revenue Funds,04/12/2015,Audiology From Other NHS Bodies,Child Audiology,SHREWSBURY AND TELFORD HOSPITAL NHS TRUST,10104666,8261.13,
Department of Health,CT Revenue Funds,04/12/2015,Bags Sacks,Bridgnorth Hospital Hotel Services,NHS SUPPLY CHAIN,1016164051,2.92,654 4347 29
Department of Health,CT Revenue Funds,04/12/2015,Bags Sacks,Bishops Castle Hospital Inpatient Ward,NHS SUPPLY CHAIN,1016164051,-0.01,654 4347 29
Department of Health,CT Revenue Funds,04/12/2015,Bags Sacks,Whitchurch Hospital Inpatient Ward,NHS SUPPLY CHAIN,1016164051,0.35,654 4347 29
Department of Health,CT Revenue Funds,04/12/2015,Bags Sacks,North East Shropshire Interdisciplinary Teams,NHS SUPPLY CHAIN,1016164051,0.01,654 4347 29
Department of Health,CT Revenue Funds,04/12/2015,Bags Sacks,Community Nursing Team 1,NHS SUPPLY CHAIN,1016164051,1.4,654 4347 29
Department of Health,CT Revenue Funds,04/12/2015,Bags Sacks,SpecialCare and Access,NHS SUPPLY CHAIN,1016164051,-0.01,654 4347 29
Department of Health,CT Revenue Funds,04/12/2015,Bags Sacks,Bridgnorth Hospital Hotel Services,NHS SUPPLY CHAIN,1016164051,0.42,654 4347 29
Department of Health,CT Revenue Funds,04/12/2015,Bags Sacks,Bridgnorth Hospital Hotel Services,NHS SUPPLY CHAIN,1016164051,7.28,654 4347 29
Department of Health,CT Revenue Funds,04/12/2015,Bags Sacks,Bridgnorth Hospital Hotel Services,NHS SUPPLY CHAIN,1016164051,3.3,654 4347 29
Department of Health,CT Revenue Funds,04/12/2015,Bags Sacks,Bishops Castle Hospital Inpatient Ward,NHS SUPPLY CHAIN,1016164051,-0.01,654 4347 29
Department of Health,CT Revenue Funds,04/12/2015,Bags Sacks,Bishops Castle Hospital Inpatient Ward,NHS SUPPLY CHAIN,1016164051,1.37,654 4347 29
Department of Health,CT Revenue Funds,04/12/2015,Bags Sacks,Whitchurch Hospital Inpatient Ward,NHS SUPPLY CHAIN,1016164051,1.75,654 4347 29
Department of Health,CT Revenue Funds,04/12/2015,Bags Sacks,Bridgnorth Hospital Hotel Services,NHS SUPPLY CHAIN,1016164051,1.46,654 4347 29
Department of Health,CT Revenue Funds,04/12/2015,Bags Sacks,Whitchurch Hospital Hotel Services,NHS SUPPLY CHAIN,1016164051,-0.03,654 4347 29
Department of Health,CT Revenue Funds,04/12/2015,Bags Sacks,Whitchurch Hospital Hotel Services,NHS SUPPLY CHAIN,1016164051,2.92,654 4347 29
Department of Health,CT Revenue Funds,04/12/2015,Bags Sacks,Podiatry Services,NHS SUPPLY CHAIN,1016164051,1.43,654 4347 29
Department of Health,CT Revenue Funds,04/12/2015,Bags Sacks,SpecialCare and Access,NHS SUPPLY CHAIN,1016164051,8.58,654 4347 29
Department of Health,CT Revenue Funds,04/12/2015,Bags Sacks,Ludlow Hospital Inpatient Wards,NHS SUPPLY CHAIN,1016164051,0.01,654 4347 29
Department of Health,CT Revenue Funds,04/12/2015,Bags Sacks,Bishops Castle Hospital Inpatient Ward,NHS SUPPLY CHAIN,1016164051,-0.03,654 4347 29
Department of Health,CT Revenue Funds,04/12/2015,Bags Sacks,Shrewsbury and Atcham North Interdisciplinary Teams,NHS SUPPLY CHAIN,1016164051,1.21,654 4347 29
Department of Health,CT Revenue Funds,04/12/2015,Bags Sacks,SpecialCare and Access,NHS SUPPLY CHAIN,1016164051,-0.03,654 4347 29
Department of Health,CT Revenue Funds,04/12/2015,Bags Sacks,Bridgnorth Hospital Hotel Services,NHS SUPPLY CHAIN,1016164051,0.66,654 4347 29
Department of Health,CT Revenue Funds,04/12/2015,Bags Sacks,Shrewsbury and Atcham North Interdisciplinary Teams,NHS SUPPLY CHAIN,1016164051,6.06,654 4347 29
Department of Health,CT Revenue Funds,04/12/2015,Bags Sacks,Bishops Castle Hospital Inpatient Ward,NHS SUPPLY CHAIN,1016164051,6.88,654 4347 29
Department of Health,CT Revenue Funds,04/12/2015,Bags Sacks,Ludlow Hospital Inpatient Wards,NHS SUPPLY CHAIN,1016164051,11.86,654 4347 29
Department of Health,CT Revenue Funds,04/12/2015,Bags Sacks,Whitchurch Hospital Hotel Services,NHS SUPPLY CHAIN,1016164051,-0.01,654 4347 29
Department of Health,CT Revenue Funds,04/12/2015,Bags Sacks,Bridgnorth Hospital Hotel Services,NHS SUPPLY CHAIN,1016164051,14.56,654 4347 29
Department of Health,CT Revenue Funds,04/12/2015,Bags Sacks,Community Nursing Team 1,NHS SUPPLY CHAIN,1016164051,7,654 4347 29
Department of Health,CT Revenue Funds,04/12/2015,Bags Sacks,Shrewsbury and Atcham North Interdisciplinary Teams,NHS SUPPLY CHAIN,1016164051,17.36,654 4347 29
Department of Health,CT Revenue Funds,04/12/2015,Bags Sacks,Bishops Castle Hospital Inpatient Ward,NHS SUPPLY CHAIN,1016164051,23.58,654 4347 29
Department of Health,CT Revenue Funds,04/12/2015,Bags Sacks,Whitchurch Hospital Hotel Services,NHS SUPPLY CHAIN,1016164051,14.56,654 4347 29
Department of Health,CT Revenue Funds,04/12/2015,Bags Sacks,North East Shropshire Interdisciplinary Teams,NHS SUPPLY CHAIN,1016164051,2.61,654 4347 29
Department of Health,CT Revenue Funds,04/12/2015,Bags Sacks,Bridgnorth Hospital Hotel Services,NHS SUPPLY CHAIN,1016164051,0.03,654 4347 29
Department of Health,CT Revenue Funds,04/12/2015,Bags Sacks,Bridgnorth Hospital Hotel Services,NHS SUPPLY CHAIN,1016164051,-0.01,654 4347 29
Department of Health,CT Revenue Funds,04/12/2015,Bags Sacks,Bridgnorth Hospital Hotel Services,NHS SUPPLY CHAIN,1016164051,3.7,654 4347 29
Department of Health,CT Revenue Funds,04/12/2015,Bags Sacks,Shrewsbury and Atcham North Interdisciplinary Teams,NHS SUPPLY CHAIN,1016164051,0.01,654 4347 29
Department of Health,CT Revenue Funds,04/12/2015,Bags Sacks,Shrewsbury and Atcham North Interdisciplinary Teams,NHS SUPPLY CHAIN,1016164051,3.47,654 4347 29
Department of Health,CT Revenue Funds,04/12/2015,Bags Sacks,SpecialCare and Access,NHS SUPPLY CHAIN,1016164051,1.72,654 4347 29
Department of Health,CT Revenue Funds,04/12/2015,Bags Sacks,Bridgnorth Hospital Hotel Services,NHS SUPPLY CHAIN,1016164051,0.13,654 4347 29
Department of Health,CT Revenue Funds,04/12/2015,Bags Sacks,Bridgnorth Hospital Hotel Services,NHS SUPPLY CHAIN,1016164051,-0.03,654 4347 29
Department of Health,CT Revenue Funds,04/12/2015,Bags Sacks,Bridgnorth Hospital Hotel Services,NHS SUPPLY CHAIN,1016164051,16.5,654 4347 29
Department of Health,CT Revenue Funds,04/12/2015,Bags Sacks,Bridgnorth Hospital Hotel Services,NHS SUPPLY CHAIN,1016164051,3.3,654 4347 29
Department of Health,CT Revenue Funds,04/12/2015,Bags Sacks,Bridgnorth Hospital Hotel Services,NHS SUPPLY CHAIN,1016164051,18.48,654 4347 29
Department of Health,CT Revenue Funds,04/12/2015,Bags Sacks,Bridgnorth Hospital Hotel Services,NHS SUPPLY CHAIN,1016164051,0.08,654 4347 29
Department of Health,CT Revenue Funds,04/12/2015,Bags Sacks,Bishops Castle Hospital Inpatient Ward,NHS SUPPLY CHAIN,1016164051,4.72,654 4347 29
Department of Health,CT Revenue Funds,04/12/2015,Bags Sacks,Ludlow Hospital Inpatient Wards,NHS SUPPLY CHAIN,1016164051,2.37,654 4347 29
Department of Health,CT Revenue Funds,04/12/2015,Bags Sacks,North East Shropshire Interdisciplinary Teams,NHS SUPPLY CHAIN,1016164051,13.02,654 4347 29
Department of Health,CT Revenue Funds,04/12/2015,Bags Sacks,Shrewsbury and Atcham North Interdisciplinary Teams,NHS SUPPLY CHAIN,1016164051,0.01,654 4347 29
Department of Health,CT Revenue Funds,04/12/2015,Bags Sacks,Podiatry Services,NHS SUPPLY CHAIN,1016164051,0.29,654 4347 29
Department of Health,CT Revenue Funds,04/12/2015,Bedding & Linen : Non-Disposable,Bridgnorth Hospital Inpatient Ward,NHS SUPPLY CHAIN,1016164051,0.01,654 4347 29
Department of Health,CT Revenue Funds,04/12/2015,Bedding & Linen : Non-Disposable,Bridgnorth Hospital Inpatient Ward,NHS SUPPLY CHAIN,1016164051,9.78,654 4347 29
Department of Health,CT Revenue Funds,04/12/2015,Bedding & Linen : Non-Disposable,Bridgnorth Hospital Inpatient Ward,NHS SUPPLY CHAIN,1016164051,0.29,654 4347 29
Department of Health,CT Revenue Funds,04/12/2015,Bedding & Linen : Non-Disposable,Continence Services,NHS SUPPLY CHAIN,1016164051,0.03,654 4347 29
Department of Health,CT Revenue Funds,04/12/2015,Bedding & Linen : Non-Disposable,Continence Services,NHS SUPPLY CHAIN,1016164051,49.04,654 4347 29
Department of Health,CT Revenue Funds,04/12/2015,Bedding & Linen : Non-Disposable,Continence Services,NHS SUPPLY CHAIN,1016164051,122.76,654 4347 29
Department of Health,CT Revenue Funds,04/12/2015,Bedding & Linen : Non-Disposable,Ludlow Hospital Inpatient Wards,NHS SUPPLY CHAIN,1016164051,7.83,654 4347 29
Department of Health,CT Revenue Funds,04/12/2015,Bedding & Linen : Non-Disposable,Bridgnorth Hospital Inpatient Ward,NHS SUPPLY CHAIN,1016164051,19.56,654 4347 29
Department of Health,CT Revenue Funds,04/12/2015,Bedding & Linen : Non-Disposable,Continence Services,NHS SUPPLY CHAIN,1016164051,0.13,654 4347 29
Department of Health,CT Revenue Funds,04/12/2015,Bedding & Linen : Non-Disposable,Continence Services,NHS SUPPLY CHAIN,1016164051,613.8,654 4347 29
Department of Health,CT Revenue Funds,04/12/2015,Bedding & Linen : Non-Disposable,Whitchurch Hospital Inpatient Ward,NHS SUPPLY CHAIN,1016164051,-0.01,654 4347 29
Department of Health,CT Revenue Funds,04/12/2015,Bedding & Linen : Non-Disposable,Continence Services,NHS SUPPLY CHAIN,1016164051,-0.3,654 4347 29
Department of Health,CT Revenue Funds,04/12/2015,Bedding & Linen : Non-Disposable,Bridgnorth Hospital Inpatient Ward,NHS SUPPLY CHAIN,1016164051,0.06,654 4347 29
Department of Health,CT Revenue Funds,04/12/2015,Bedding & Linen : Non-Disposable,Continence Services,NHS SUPPLY CHAIN,1016164051,245.2,654 4347 29
Department of Health,CT Revenue Funds,04/12/2015,Bedding & Linen : Non-Disposable,Bishops Castle Hospital Inpatient Ward,NHS SUPPLY CHAIN,1016164051,0.01,654 4347 29
Department of Health,CT Revenue Funds,04/12/2015,Bedding & Linen : Non-Disposable,Bishops Castle Hospital Inpatient Ward,NHS SUPPLY CHAIN,1016164051,10.23,654 4347 29
Department of Health,CT Revenue Funds,04/12/2015,Bedding & Linen : Non-Disposable,Whitchurch Hospital Inpatient Ward,NHS SUPPLY CHAIN,1016164051,4.09,654 4347 29
Department of Health,CT Revenue Funds,04/12/2015,Bedding & Linen : Non-Disposable,Bishops Castle Hospital Inpatient Ward,NHS SUPPLY CHAIN,1016164051,10.06,654 4347 29
Department of Health,CT Revenue Funds,04/12/2015,Bedding & Linen : Non-Disposable,Ludlow Hospital Inpatient Wards,NHS SUPPLY CHAIN,1016164051,0.01,654 4347 29
Department of Health,CT Revenue Funds,04/12/2015,Bedding & Linen : Non-Disposable,Ludlow Hospital Inpatient Wards,NHS SUPPLY CHAIN,1016164051,39.12,654 4347 29
Department of Health,CT Revenue Funds,04/12/2015,Bedding & Linen : Non-Disposable,Bridgnorth Hospital Inpatient Ward,NHS SUPPLY CHAIN,1016164051,3.91,654 4347 29
Department of Health,CT Revenue Funds,04/12/2015,Bedding & Linen : Non-Disposable,Whitchurch Hospital Inpatient Ward,NHS SUPPLY CHAIN,1016164051,6.13,654 4347 29
Department of Health,CT Revenue Funds,04/12/2015,Bedding & Linen : Non-Disposable,Whitchurch Hospital Inpatient Ward,NHS SUPPLY CHAIN,1016164051,20.46,654 4347 29
Department of Health,CT Revenue Funds,04/12/2015,Bedding & Linen : Non-Disposable,Bishops Castle Hospital Inpatient Ward,NHS SUPPLY CHAIN,1016164051,2.05,654 4347 29
Department of Health,CT Revenue Funds,04/12/2015,Bedding & Linen : Non-Disposable,Continence Services,NHS SUPPLY CHAIN,1016164051,-0.06,654 4347 29
Department of Health,CT Revenue Funds,04/12/2015,Bedding & Linen : Non-Disposable,Bridgnorth Hospital Inpatient Ward,NHS SUPPLY CHAIN,1016164051,1.95,654 4347 29
Department of Health,CT Revenue Funds,04/12/2015,Bedding & Linen : Non-Disposable,Bishops Castle Hospital Inpatient Ward,NHS SUPPLY CHAIN,1016164051,2.01,654 4347 29
Department of Health,CT Revenue Funds,04/12/2015,Bedding & Linen : Non-Disposable,Whitchurch Hospital Inpatient Ward,NHS SUPPLY CHAIN,1016164051,1.23,654 4347 29
Department of Health,CT Revenue Funds,04/12/2015,Beverages,Ludlow Hospital Catering,NHS SUPPLY CHAIN,1016164051,9.82,654 4347 29
Department of Health,CT Revenue Funds,04/12/2015,Beverages,Whitchurch Hospital Catering,NHS SUPPLY CHAIN,1016164051,21.06,654 4347 29
Department of Health,CT Revenue Funds,04/12/2015,Beverages,Paediatric Psychology,NHS SUPPLY CHAIN,1016164051,6.94,654 4347 29
Department of Health,CT Revenue Funds,04/12/2015,Buffers Compound Solutions,Bishops Castle Hospital Inpatient Ward,NHS SUPPLY CHAIN,1016164051,8.99,654 4347 29
Department of Health,CT Revenue Funds,04/12/2015,Buffers Compound Solutions,Bridgnorth Hospital Inpatient Ward,NHS SUPPLY CHAIN,1016164051,17.98,654 4347 29
Department of Health,CT Revenue Funds,04/12/2015,Buffers Compound Solutions,Bridgnorth Hospital Inpatient Ward,NHS SUPPLY CHAIN,1016164051,3.6,654 4347 29
Department of Health,CT Revenue Funds,04/12/2015,Buffers Compound Solutions,Bishops Castle Hospital Inpatient Ward,NHS SUPPLY CHAIN,1016164051,1.8,654 4347 29
Department of Health,CT Revenue Funds,04/12/2015,Catering Equipment - Purchase,Community Nursing Team 1,NHS SUPPLY CHAIN,1016164051,1.59,654 4347 29
Department of Health,CT Revenue Funds,04/12/2015,Catering Equipment - Purchase,Whitchurch Hospital Inpatient Ward,NHS SUPPLY CHAIN,1016164051,-0.01,654 4347 29
Department of Health,CT Revenue Funds,04/12/2015,Catering Equipment - Purchase,Whitchurch Hospital Inpatient Ward,NHS SUPPLY CHAIN,1016164051,11.04,654 4347 29
Department of Health,CT Revenue Funds,04/12/2015,Catering Equipment - Purchase,Oswestry Minor Injuries Unit,NHS SUPPLY CHAIN,1016164051,3.69,654 4347 29
Department of Health,CT Revenue Funds,04/12/2015,Catering Equipment - Purchase,Oswestry Minor Injuries Unit,NHS SUPPLY CHAIN,1016164051,0.74,654 4347 29
Department of Health,CT Revenue Funds,04/12/2015,Catering Equipment - Purchase,Community Neuro Rehabilitation Team (CNRT),NHS SUPPLY CHAIN,1016164051,2.87,654 4347 29
Department of Health,CT Revenue Funds,04/12/2015,Catering Equipment - Purchase,Whitchurch Hospital Inpatient Ward,NHS SUPPLY CHAIN,1016164051,0.49,654 4347 29
Department of Health,CT Revenue Funds,04/12/2015,Catering Equipment - Purchase,SpecialCare and Access,NHS SUPPLY CHAIN,1016164051,0.01,654 4347 29
Department of Health,CT Revenue Funds,04/12/2015,Catering Equipment - Purchase,Therapy Services Administration,NHS SUPPLY CHAIN,1016164051,8.66,654 4347 29
Department of Health,CT Revenue Funds,04/12/2015,Catering Equipment - Purchase,Oswestry Minor Injuries Unit,NHS SUPPLY CHAIN,1016164051,-0.01,654 4347 29
Department of Health,CT Revenue Funds,04/12/2015,Catering Equipment - Purchase,Whitchurch Hospital Inpatient Ward,NHS SUPPLY CHAIN,1016164051,0.28,654 4347 29
Department of Health,CT Revenue Funds,04/12/2015,Catering Equipment - Purchase,SpecialCare and Access,NHS SUPPLY CHAIN,1016164051,1.34,654 4347 29
Department of Health,CT Revenue Funds,04/12/2015,Catering Equipment - Purchase,Whitchurch Hospital Inpatient Ward,NHS SUPPLY CHAIN,1016164051,1.42,654 4347 29
Department of Health,CT Revenue Funds,04/12/2015,Catering Equipment - Purchase,Whitchurch Hospital Inpatient Ward,NHS SUPPLY CHAIN,1016164051,2.44,654 4347 29
Department of Health,CT Revenue Funds,04/12/2015,Catering Equipment - Purchase,Community Nursing Team 1,NHS SUPPLY CHAIN,1016164051,0.32,654 4347 29
Department of Health,CT Revenue Funds,04/12/2015,Catering Equipment - Purchase,Whitchurch Hospital Minor Injuries Unit,NHS SUPPLY CHAIN,1016164051,0.49,654 4347 29
Department of Health,CT Revenue Funds,04/12/2015,Catering Equipment - Purchase,Community Neuro Rehabilitation Team (CNRT),NHS SUPPLY CHAIN,1016164051,14.33,654 4347 29
Department of Health,CT Revenue Funds,04/12/2015,Catering Equipment - Purchase,SpecialCare and Access,NHS SUPPLY CHAIN,1016164051,6.7,654 4347 29
Department of Health,CT Revenue Funds,04/12/2015,Catering Equipment - Purchase,Therapy Services Administration,NHS SUPPLY CHAIN,1016164051,-0.01,654 4347 29
Department of Health,CT Revenue Funds,04/12/2015,Catering Equipment - Purchase,Therapy Services Administration,NHS SUPPLY CHAIN,1016164051,1.73,654 4347 29
Department of Health,CT Revenue Funds,04/12/2015,Catering Equipment - Purchase,Whitchurch Hospital Inpatient Ward,NHS SUPPLY CHAIN,1016164051,-0.01,654 4347 29
Department of Health,CT Revenue Funds,04/12/2015,Catering Equipment - Purchase,Whitchurch Hospital Inpatient Ward,NHS SUPPLY CHAIN,1016164051,2.21,654 4347 29
Department of Health,CT Revenue Funds,04/12/2015,Catering Equipment - Purchase,Whitchurch Hospital Minor Injuries Unit,NHS SUPPLY CHAIN,1016164051,-0.01,654 4347 29
Department of Health,CT Revenue Funds,04/12/2015,Catering Equipment - Purchase,Whitchurch Hospital Minor Injuries Unit,NHS SUPPLY CHAIN,1016164051,2.46,654 4347 29
Department of Health,CT Revenue Funds,04/12/2015,Catering Equipment - Purchase,Whitchurch Hospital Inpatient Ward,NHS SUPPLY CHAIN,1016164051,-0.04,654 4347 29
Department of Health,CT Revenue Funds,04/12/2015,Catering Provisions,SpecialCare and Access,NHS SUPPLY CHAIN,1016164051,13.25,654 4347 29
Department of Health,CT Revenue Funds,04/12/2015,Catering Provisions,Ludlow Hospital Catering,NHS SUPPLY CHAIN,1016164051,21.13,654 4347 29
Department of Health,CT Revenue Funds,04/12/2015,Catering Provisions,Ludlow Hospital Catering,NHS SUPPLY CHAIN,1016164051,7.17,654 4347 29
Department of Health,CT Revenue Funds,04/12/2015,Catering Provisions,Ludlow Hospital Catering,NHS SUPPLY CHAIN,1016164051,5.67,654 4347 29
Department of Health,CT Revenue Funds,04/12/2015,Catering Provisions,Ludlow Hospital Catering,NHS SUPPLY CHAIN,1016164051,9.33,654 4347 29
Department of Health,CT Revenue Funds,04/12/2015,Catering Provisions,Ludlow Hospital Catering,NHS SUPPLY CHAIN,1016164051,3.13,654 4347 29
Department of Health,CT Revenue Funds,04/12/2015,Catering Provisions,Ludlow Hospital Catering,NHS SUPPLY CHAIN,1016164051,3.87,654 4347 29
Department of Health,CT Revenue Funds,04/12/2015,Catering Provisions,Bridgnorth Hospital Inpatient Ward,NHS SUPPLY CHAIN,1016164051,3.72,654 4347 29
Department of Health,CT Revenue Funds,04/12/2015,Catering Provisions,Whitchurch Hospital Catering,NHS SUPPLY CHAIN,1016164051,-0.01,654 4347 29
Department of Health,CT Revenue Funds,04/12/2015,Catering Provisions,Whitchurch Hospital Catering,NHS SUPPLY CHAIN,1016164051,19.28,654 4347 29
Department of Health,CT Revenue Funds,04/12/2015,Catering Provisions,Falls Prevention,NHS SUPPLY CHAIN,1016164051,2.22,654 4347 29
Department of Health,CT Revenue Funds,04/12/2015,Catering Provisions,Falls Prevention,NHS SUPPLY CHAIN,1016164051,1.23,654 4347 29
Department of Health,CT Revenue Funds,04/12/2015,Catering Provisions,Ludlow Hospital Catering,NHS SUPPLY CHAIN,1016164051,28.92,654 4347 29
Department of Health,CT Revenue Funds,04/12/2015,Catering Provisions,Ludlow Hospital Catering,NHS SUPPLY CHAIN,1016164051,8.12,654 4347 29
Department of Health,CT Revenue Funds,04/12/2015,Catering Provisions,Ludlow Hospital Catering,NHS SUPPLY CHAIN,1016164051,8.38,654 4347 29
Department of Health,CT Revenue Funds,04/12/2015,Catering Provisions,Ludlow Hospital Catering,NHS SUPPLY CHAIN,1016164051,8.38,654 4347 29
Department of Health,CT Revenue Funds,04/12/2015,Catering Provisions,Ludlow Hospital Catering,NHS SUPPLY CHAIN,1016164051,4.12,654 4347 29
Department of Health,CT Revenue Funds,04/12/2015,Catering Provisions,Ludlow Hospital Catering,NHS SUPPLY CHAIN,1016164051,1.68,654 4347 29
Department of Health,CT Revenue Funds,04/12/2015,Catering Provisions,Whitchurch Hospital Catering,NHS SUPPLY CHAIN,1016164051,60.06,654 4347 29
Department of Health,CT Revenue Funds,04/12/2015,Catering Provisions,Whitchurch Hospital Catering,NHS SUPPLY CHAIN,1016164051,33.81,654 4347 29
Department of Health,CT Revenue Funds,04/12/2015,Catering Provisions,Whitchurch Hospital Catering,NHS SUPPLY CHAIN,1016164051,8.12,654 4347 29
Department of Health,CT Revenue Funds,04/12/2015,Catering Provisions,Whitchurch Hospital Inpatient Ward,NHS SUPPLY CHAIN,1016164051,2.04,654 4347 29
Department of Health,CT Revenue Funds,04/12/2015,Catering Provisions,Whitchurch Hospital Inpatient Ward,NHS SUPPLY CHAIN,1016164051,0.41,654 4347 29
Department of Health,CT Revenue Funds,04/12/2015,Catering Provisions,Bridgnorth Hospital Inpatient Ward,NHS SUPPLY CHAIN,1016164051,0.01,654 4347 29
Department of Health,CT Revenue Funds,04/12/2015,Catering Provisions,Whitchurch Hospital Inpatient Ward,NHS SUPPLY CHAIN,1016164051,-0.01,654 4347 29
Department of Health,CT Revenue Funds,04/12/2015,Catering Provisions,Bridgnorth Hospital Radiology,NHS SUPPLY CHAIN,1016164051,-0.01,654 4347 29
Department of Health,CT Revenue Funds,04/12/2015,Catering Provisions,Bridgnorth Hospital Radiology,NHS SUPPLY CHAIN,1016164051,2.04,654 4347 29
Department of Health,CT Revenue Funds,04/12/2015,Catering Provisions,Bridgnorth Hospital Radiology,NHS SUPPLY CHAIN,1016164051,0.41,654 4347 29
Department of Health,CT Revenue Funds,04/12/2015,Catering Provisions,Ludlow Hospital Catering,NHS SUPPLY CHAIN,1016164051,8.12,654 4347 29
Department of Health,CT Revenue Funds,04/12/2015,Catering Provisions,Whitchurch Hospital Catering,NHS SUPPLY CHAIN,1016164051,8.12,654 4347 29
Department of Health,CT Revenue Funds,04/12/2015,Catering Provisions,Ludlow Hospital Catering,NHS SUPPLY CHAIN,1016164051,9.68,654 4347 29
Department of Health,CT Revenue Funds,04/12/2015,Catering Provisions,Ludlow Hospital Catering,NHS SUPPLY CHAIN,1016164051,5.3,654 4347 29
Department of Health,CT Revenue Funds,04/12/2015,Catering Provisions,Whitchurch Hospital Catering,NHS SUPPLY CHAIN,1016164051,11.1,654 4347 29
Department of Health,CT Revenue Funds,04/12/2015,Catering Provisions,Whitchurch Hospital Catering,NHS SUPPLY CHAIN,1016164051,18.84,654 4347 29
Department of Health,CT Revenue Funds,04/12/2015,Catering Provisions,SpecialCare and Access,NHS SUPPLY CHAIN,1016164051,2.65,654 4347 29
Department of Health,CT Revenue Funds,04/12/2015,Catering Provisions,Ludlow Hospital Catering,NHS SUPPLY CHAIN,1016164051,16.41,654 4347 29
Department of Health,CT Revenue Funds,04/12/2015,Catering Provisions,Ludlow Hospital Catering,NHS SUPPLY CHAIN,1016164051,6.13,654 4347 29
Department of Health,CT Revenue Funds,04/12/2015,Catering Provisions,Ludlow Hospital Catering,NHS SUPPLY CHAIN,1016164051,18.95,654 4347 29
Department of Health,CT Revenue Funds,04/12/2015,Catering Provisions,Ludlow Hospital Catering,NHS SUPPLY CHAIN,1016164051,15.18,654 4347 29
Department of Health,CT Revenue Funds,04/12/2015,Catering Provisions,Ludlow Hospital Catering,NHS SUPPLY CHAIN,1016164051,8.47,654 4347 29
Department of Health,CT Revenue Funds,04/12/2015,Catering Provisions,Ludlow Hospital Catering,NHS SUPPLY CHAIN,1016164051,8.4,654 4347 29
Department of Health,CT Revenue Funds,04/12/2015,Catering Provisions,Ludlow Hospital Catering,NHS SUPPLY CHAIN,1016164051,4.23,654 4347 29
Department of Health,CT Revenue Funds,04/12/2015,Catering Provisions,Ludlow Hospital Catering,NHS SUPPLY CHAIN,1016164051,3.79,654 4347 29
Department of Health,CT Revenue Funds,04/12/2015,Catering Provisions,Bridgnorth Hospital Inpatient Ward,NHS SUPPLY CHAIN,1016164051,13.25,654 4347 29
Department of Health,CT Revenue Funds,04/12/2015,Catering Provisions,Whitchurch Hospital Catering,NHS SUPPLY CHAIN,1016164051,12.01,654 4347 29
Department of Health,CT Revenue Funds,04/12/2015,Catering Provisions,Ludlow Hospital Catering,NHS SUPPLY CHAIN,1016164051,19.33,654 4347 29
Department of Health,CT Revenue Funds,04/12/2015,Catering Provisions,Ludlow Hospital Catering,NHS SUPPLY CHAIN,1016164051,11.86,654 4347 29
Department of Health,CT Revenue Funds,04/12/2015,Catering Provisions,Ludlow Hospital Catering,NHS SUPPLY CHAIN,1016164051,4.7,654 4347 29
Department of Health,CT Revenue Funds,04/12/2015,Catering Provisions,Ludlow Hospital Catering,NHS SUPPLY CHAIN,1016164051,10.28,654 4347 29
Department of Health,CT Revenue Funds,04/12/2015,Catering Provisions,Ludlow Hospital Catering,NHS SUPPLY CHAIN,1016164051,4.16,654 4347 29
Department of Health,CT Revenue Funds,04/12/2015,Catering Provisions,Bridgnorth Hospital Inpatient Ward,NHS SUPPLY CHAIN,1016164051,0.75,654 4347 29
Department of Health,CT Revenue Funds,04/12/2015,Catering Provisions,Bridgnorth Hospital Inpatient Ward,NHS SUPPLY CHAIN,1016164051,2.65,654 4347 29
Department of Health,CT Revenue Funds,04/12/2015,Catering Provisions,Whitchurch Hospital Catering,NHS SUPPLY CHAIN,1016164051,11.66,654 4347 29
